Workbook

Sheet GENERAL_INSTRUCTIONS
C1: DURABILITY INDEX WORKSHEET OF TELEVISION
C2: GENERAL INSTRUCTIONS
C4: PURPOSE OF THE FILE
C5: This Excel file calculates the durability index of a television.
C7: REGULATORY FRAMEWORK
C8: Article L. 541-9-2 of the French Environmental Code states that : Manufacturers, importers, marketers and other retailers which put electrical and electronic equipment (EEE) on the French market have to inform, free of charge, downstream sellers and any person who made the request of "the durability index" of their products, as well as the paramaters explaining how such index was established. This durability index will inform consumers about the durability the product category concerned. All information entered in this file must be truthful and verifiable.
C9: The methods and rules of implementation for the durability index are specified in the durability index Decree N°2024-316 for electrical and electronic equipment (EEE), the Decision 2024-04-05 on display conditions and parameters for calculating the durability index and the Decision 2024-04-05 on criteria, subcritera, rating system and display of thedurability index of television.
C11: A complementary instructions manual provides explanatory informations and additional instructions on how to apply Decree and Orders of the durability index of electrical and electronic equipement.
C13: FILE CONTENT
C14: General instructions | D14: Description of the purpose of this Excel file, description of regulatory framework of the reparabily index and description of file content and how it will be completed.
C15: Product information | D15: Description of the product and the assessment of its repairability index.
B16: Reliability | C16: C1_RESISTANCE TO STRESS AND/OR WEAR | D16: Detailed criteria for assessing the product's durabilty index. For each tab, all the "orange boxes" must be filled in by selecting the right information from the "drop-down menu" or by entering the right information directly in the box. Once the information has been entered, the box in question turns "green". No box should be left blank. Note that the cells must be filled in one by one (they must not be drawn).
C17: C2_MAINTENANCE AND SERVICING
C18: C3_GUARANTEE AND QUALITY PROCESS
B19: Reparability | C19: C4_DOCUMENTATION
C20: C5_DISASSEMBLY
C21: C6_AVAILABILITY OF SAPRE PARTS
C22: C7_PRICE
C23: FINAL SCORE | D23: This tab automatically calculate final score of the durability index of the product and also scores per criteria and sub-criteria, before and after weighting.
C24: NOTE FINAL | D24: This tab is the French translation of the "Final score" tab. It is automatically completed. This tab is to be sent to all applicants.
C25: Annex 1 | D25: Details about the therminology used for the durability index.
C26: Annex 2 | D26: Details about the list of "basic" tools and their reference standards.
C27: Annex 3 | D27: Details and application case about the concept of disassembly step.
C29: RESET ALL DATA
D30: This button reset all data entered in the workbook. If you want to perform this action, please enable the file macro and click this button. WARNING: this action is irreversible.
C34: EXTRACTION OF DATA IN CSV
D35: Name of file to create | G35: .csv
D37: This button allows you to extract the data entered in the workbook, then export it to a file in CSV format. If you want to perform this action, please enable the file macro and click this button.
C42: link to access the data entry platform for TV | D42: https://publier.etalab.studio/fr/upload?schema=etalab%2Findice-durabilite-televiseur
C44: OTHER DETAILS OF A TRANSVERSAL NATURE
C45: Use of European vocabulary (criteria 4, 5 and 6)
C46: The vocabulary used to describe the information to be documented, whatever the category concerned, as well as certain spare parts, is taken from Commission Regulation (EU) 2019/2023 of 1 October 2019 for Televisions and Commission Regulation (EU) 2019/2021 of 1 October 2019 for electronic displays. The list of these documents and items is given in Annex 1 of this notice.
C47: Different commitments of availability period between documentation and spare parts (criteria 4 and 6)
C48: The producer or importer may make different commitments for the periods of availability of documentation and spare parts for the same equipment, for example: 9 years for the availability of documentation and 7 years for the availability of spare parts.
C49: Absence of a part on the equipment
C50: If the equipment does not include a part listed in List 1 or 2 of the category concerned, then the points corresponding to the part in question are awarded. For WIFI and Bluetooth modules, see the special case of televisions below.
C51: Concerning criterion 4 relating to price, the price of the absent part does not appear in the calculation.
C52: Televisions
C53: External power source and remote control
C54: The external power source and the remote control do not need to be disassembled for counting the disassembly steps. The steps to be counted are limited to disconnecting the power source and removing the battery from the remote control.

Sheet PRODUCT_INFORMATION
B1: INFORMATIONS RELATING TO THE PRODUCT AND THE CALCULATION OF ITS REPAIRABILITY INDEX | F1: Television
H4: link to access the data entry platform for television
H5: https://publier.etalab.studio/fr/upload?schema=etalab%2Findice-durabilite-televiseur
B6: DATE OF CALCULATION | D6: 2025-04-09
B7: REQUESTOR OF THE ASSESSMENT | H7: ID UNIQUE | J7: =J9&"-"&J11&"-"&D6 -> K-43S3--2025-04-09 | N7: Automatically completed
C8: LAST NAME | D8: OKADA | H8: REFERENTIEL ID MODELE | J8: GTIN_EAN | N8: The type of reference used for the product itentification according internationnal standard ISO15459 (SH4 ou GTIN_EAN)
C9: FIRST NAME | D9: HARUO | H9: ID MODELE | J9: K-43S3 | N9: Model commercial reference or model identifier
C10: MAIL | D10: harry.okada@sony.com | H10: REFERENTIEL ID METTEUR SUR LE MARCHE | J10: Select a choice | N10: the type of reference used for the marketer identifier (GLN ou SYDEREP)
C11: PHONE NUMBER | D11: 81 53750 4266 | H11: ID METTEUR SUR LE MARCHE | N11: Official model name (GLN ou SYDEREP)
B12: RESPONSIBLE FOR EVALUATION | D12: A compléter | H12: URL TABLEAU DETAIL NOTATION | J12: Please fill out | N12: The link to the detailed rating table (format: https://)
C13: LAST NAME | D13: Please fill out
C14: FIRST NAME | D14: Please fill out
C15: MAIL | D15: Please fill out
C16: PHONE NUMBER | D16: Please fill out
B17: RATED PRODUCT
C18: Producer's or importer's name or trademark | D18: Sony France, succursale de Sony. Europe B.V.
C19: Producer or importer adress | D19: Located at 49/51, quai de Dion Bouton, 92800 Puteaux, France
C20: Producer's or importer's model identifier | D20: K-43S3

Sheet C1_RESISTANCE
B1: ='C1_DATA'!C1 -> CRITERION 1: RESISTANCE TO STRESS AND/OR WEAR | I1: Television
B4: ='C1_DATA'!C2 -> SUB-CRITERION 1.1: | D4: ='C1_DATA'!D2 -> RESISTANCE TO EXTERNAL STRESS
B5: PRÉCISIONS :
B6: If the model has an equipment safety feature, then the point is awarded.
B8: Resistance to external stress | G8: Column A
B10: Type of documentation | G10: Select a choice | H10: Subtotal
B11: 1.1 | C11: Presence of a switch allowing disconnection from the electricity network | G11: Presence | H11: =IF(G11='C1_DATA'!E6,'C1_DATA'!F6,IF(G11='C1_DATA'!E7,'C1_DATA'!F7,IF(G11='C1_DATA'!E8,'C1_DATA'!F8,0))) -> 1
B12: Total sub-criterion 1.1 | H12: =SUM(H11:H11) -> 1 | I12: / 1
H13: =H12*10/1 -> 10 | I13: / 10
B15: ='C1_DATA'!C9 -> SUB-CRITERION 1.2: | D15: ='C1_DATA'!D9 -> WEAR RESISTANCE
B17: PRÉCISIONS :
B18: - Carrying out reliability tests: Factory tests carried out on a minimum number of 5 production models per chassis (equivalent model), falling within a clearly defined and documented methodology for validating the reliability of the model concerned. To award points, proof of having passed the tests is required (quality manual integrated into an ISO 9001 certification and summary of test results). These tests are complementary to the tests carried out with the aim of verifying compliance with European regulations. The tests must be carried out on the equipment as a whole, and not on part of the components. - Theoretical lifespan of the TV panel: Information provided by panel manufacturers (Proof = technical sheets from panel manufacturers) based on LM 80 and TM 21 standards for LED and LCD televisions and tests by panel manufacturers for OLED televisions - Warranty relating to TV panle marking : points are awarded if the guarantee is free of charge for the consumer, over a period of at least 4 years. Maximum points are awarded if the television has technology preventing panel marking - Warranty relating to defective pixels: Points are awarded if the guarantee is free of charge for the consumer and is based on the international standard ISO 9241-307.
B21: Wear resistance | G21: ='C1_DATA'!D11 -> Column A
B23: Type of documentation | G23: Select a choice | H23: Subtotal | I23: Sub-criterion score out 10 | J23: Coefficient du sous critère
B24: ='C1_DATA'!C10 -> 1.2.A | C24: Carrying out reliability tests | G24: 1 or 2 simple test (heat, or shock, ou humindity) | H24: =IF(G24='C1_DATA'!E13,'C1_DATA'!F13,IF(G24='C1_DATA'!E14,'C1_DATA'!F14,IF(G24='C1_DATA'!E15,'C1_DATA'!F15,IF(G24='C1_DATA'!E16,'C1_DATA'!F16,0)))) -> 1 | I24: =H24/4*10 -> 2.5 | J24: 4
B25: ='C1_DATA'!C17 -> 1.2.B | C25: ='C1_DATA'!D17 -> TV panel theoretical lifespan | G25: If X ≥ 40 000 hours | H25: =IF(G25='C1_DATA'!E20,'C1_DATA'!F20,IF(G25='C1_DATA'!E21,'C1_DATA'!F21,IF(G25='C1_DATA'!E22,'C1_DATA'!F22,IF(G25='C1_DATA'!E23,'C1_DATA'!F23,IF(G25='C1_DATA'!E24,'C1_DATA'!F24,IF(G25='C1_DATA'!E25,'C1_DATA'!F25,0)))))) -> 4 | I25: =H25/4*10 -> 10 | J25: 5
B26: ='C1_DATA'!C26 -> 1.2.C | C26: ='C1_DATA'!D26 -> Existence of a TV panel marking warranty and/or anti-marking software | G26: Yes | H26: =IF(G26='C1_DATA'!E29,'C1_DATA'!F29,IF(G26='C1_DATA'!E30,'C1_DATA'!F30,IF(G26='C1_DATA'!E31,'C1_DATA'!F31,0))) -> 1 | I26: =H26/1*10 -> 10 | J26: 0.5
B27: ='C1_DATA'!C32 -> 1.2.D | C27: ='C1_DATA'!D32 -> Existence of a warranty for defective pixels | G27: Absence | H27: =IF(G27='C1_DATA'!E35,'C1_DATA'!F35,IF(G27='C1_DATA'!E36,'C1_DATA'!F36,IF(G27='C1_DATA'!E37,'C1_DATA'!F37,0))) -> 0 | I27: =H27/1*10 -> 0 | J27: 0.5
B28: Total sub-criterion 1.2
H29: =(I24*J24+I25*J25+I26*J26++I27*J27)/10 -> 6.5 | I29: / 10
D30: =SUM(H28) -> 0 | E30: / | F30: 11
D31: =SUM(H29) -> 6.5 | E31: / | F31: 10

Sheet C1_DATA (hidden)
C1: CRITERION 1: RESISTANCE TO STRESS AND/OR WEAR
C2: SUB-CRITERION 1.1: | D2: RESISTANCE TO EXTERNAL STRESS
C3: 1.1.A | D3: Presence of a switch
D4: Column A
D6: Condition 1 : 0 point | E6: Absence | F6: 0
D7: Condition 2 : 1 point | E7: Presence | F7: 1
D8: Condition 3 : 2 points | E8: Select a choice | F8: 0
C9: SUB-CRITERION 1.2: | D9: WEAR RESISTANCE
C10: 1.2.A | D10: Existence of reliability test
D11: Column A
D13: Condition 1 : 0 point | E13: 1 or 2 simple test (heat, or shock, ou humindity) | F13: 1
D14: Condition 2 : 1 point | E14: 3 simple tests | F14: 2
D15: Condition 3 : 2 points | E15: Accelerated ageing tests (ALT or HALT type) - in accordance with standard IEC 62506:2013 | F15: 4
D16: Condition 4 : 3 points | E16: Select a choice | F16: 0
C17: 1.2.B | D17: TV panel theoretical lifespan
D18: Column A
D20: Condition 1 : 0 point | E20: If X < 10 000 hours | F20: 0
D21: Condition 2 : 1 point | E21: If X ≤ 10 000 hours < 20 000 hours | F21: 1
D22: Condition 3 : 2 points | E22: If X ≤ 20 000 hours < 30 000 hours | F22: 2
D23: Condition 4 : 3 points | E23: If X ≤ 30 000 hours < 40 000 hours | F23: 3
D24: Condition 5 : 4 points | E24: If X ≥ 40 000 hours | F24: 4
D25: Condition 6 : 5 points | E25: Select a choice | F25: 0
C26: 1.2.C | D26: Existence of a TV panel marking warranty and/or anti-marking software
D27: Column A
D29: Condition 1 : 0 point | E29: No | F29: 0
D30: Condition 2 : 1 point | E30: Yes | F30: 1
D31: Condition 5 : 4 points | E31: Select a choice | F31: 0
C32: 1.2.D | D32: Existence of a warranty for defective pixels
D33: Column A
D35: Condition 1 : 0 point | E35: Absence | F35: 0
D36: Condition 2 : 1 point | E36: Existence | F36: 1
D37: Condition 3 : 2 points | E37: Select a choice | F37: 0

Sheet C2_MAINTENANCE_SERVICING
B1: ='C2_DATA'!C1 -> CRITERION 2 : MAINTENANCE (INCLUDING SOFTWARE) & SERVICING | I1: Television
B4: ='C2_DATA'!C2 -> SUB-CRITERION 2.1 : MAINTENANCE (INCLUDING SOFTWARE)
B8: Maintenance | G8: ='C2_DATA'!D4 -> Column A
B10: Type of documentation | G10: Select a choice | H10: Subtotal | I10: Note du sous-critère sur 10 | J10: Coefficient du sous critère
B11: ='C2_DATA'!C3 -> 2.1.A | C11: ='C2_DATA'!D3 -> Accessibility usage meter | G11: Visible or easily accessible: The consumer learns the value displayed by the usage meter by performing three operations or less | H11: =IF(G11='C2_DATA'!E6,'C2_DATA'!F6,IF(G11='C2_DATA'!E7,'C2_DATA'!F7,IF(G11='C2_DATA'!E8,'C2_DATA'!F8,IF(G11='C2_DATA'!E9,'C2_DATA'!F9,0)))) -> 2 | I11: =H11/2*10 -> 10 | J11: 3
B12: ='C2_DATA'!C18 -> 2.1.D | C12: ='C2_DATA'!D18 -> Firmware reset | G12: Operating system reset and firmware reset | H12: =IF(G12='C2_DATA'!E21,'C2_DATA'!F21,IF(G12='C2_DATA'!E22,'C2_DATA'!F22,IF(G12='C2_DATA'!E25,'C2_DATA'!F25,IF(G12='C2_DATA'!E23,'C2_DATA'!F23,IF(G12='C2_DATA'!E24,'C2_DATA'!F24,0))))) -> 2 | I12: =H12/2*10 -> 10 | J12: 3
B13: ='C2_DATA'!C31 -> 2.1.C | C13: ='C2_DATA'!D31 -> Commitment on the duration of the supply of compliance software updates (including bug fixes and security updates) | G13: If X >12 years | H13: =IF(G13='C2_DATA'!E34,'C2_DATA'!F34,IF(G13='C2_DATA'!E35,'C2_DATA'!F35,IF(G13='C2_DATA'!E36,'C2_DATA'!F36,IF(G13='C2_DATA'!E37,'C2_DATA'!F37,IF(G13='C2_DATA'!E38,'C2_DATA'!F38,0))))) -> 12 | I13: =H13/12*10 -> 10 | J13: 2
B14: ='C2_DATA'!C42 -> 2.1.B | C14: ='C2_DATA'!D42 -> Commitment on the duration of firmware availability to the consumer | G14: If X >12 years | H14: =IF(G14='C2_DATA'!E34,'C2_DATA'!F34,IF(G14='C2_DATA'!E35,'C2_DATA'!F35,IF(G14='C2_DATA'!E36,'C2_DATA'!F36,IF(G14='C2_DATA'!E37,'C2_DATA'!F37,IF(G14='C2_DATA'!E38,'C2_DATA'!F38,0))))) -> 12 | I14: =H14/12*10 -> 10 | J14: 2
B15: Total sub-criterion 2.1
H16: =+SUMPRODUCT(I11:I14,J11:J14)/10 -> 10 | I16: / 10
D17: =SUM(H15) -> 0 | E17: / | F17: 28
D18: =SUM(H16) -> 10 | E18: / | F18: 10
B22: ='C2_DATA'!C53 -> SUB-CRITERION 2.2: SERVICING
B26: Servicing | G26: Column A Information made available directly on the equipment | I26: Column B Quality of the model-specific information made available by the manufacturer on a mobile application or on the manufacturer's website, with an indication of the frequency.
B28: List of maintenance procedures | G28: Availability | H28: Subtotal | I28: Availability | J28: Subtotal
B29: 2.2.A | C29: Choose a good location for the television, in a clean place, away from sources of heat (sun, radiators, fireplaces), plants (pollen, dust, water) and the ground (risk of knocks, dust). (sun, radiators, fireplace), plants (pollen, dust, water) and the ground (risk of knocks, dust) | I29: Written information + diagram or tutorial video content | J29: =IF(I29='C2_DATA'!$E$76,'C2_DATA'!$F$76,IF(I29='C2_DATA'!$E$77,'C2_DATA'!$F$77,IF(I29='C2_DATA'!$E$78,'C2_DATA'!$F$78,IF(I29='C2_DATA'!$E$79,'C2_DATA'!$F$79,IF(I29='C2_DATA'!$E$80,'C2_DATA'!$F$80,IF(I29='C2_DATA'!$E$81,'C2_DATA'!$F$81,IF(I29='C2_DATA'!$E$82,'C2_DATA'!$F$82,IF(I29='C2_DATA'!$E$83,'C2_DATA'!$F$83,0)))))))) -> 2
B30: 2.2.B | C30: Do not place cloth, paper or other materials over the openings on the top, sides or bottom of the appliance. | G30: Information displayed directly on the device via a display in the equipment parameters | H30: =IF(G30='C2_DATA'!$E$65,'C2_DATA'!$F$65,IF(G30='C2_DATA'!$E$66,'C2_DATA'!$F$66,IF(G30='C2_DATA'!$E$67,'C2_DATA'!$F$67,IF(G30='C2_DATA'!$E$68,'C2_DATA'!$F$68,IF(G30='C2_DATA'!$E$69,'C2_DATA'!$F$69,0))))) -> 1 | I30: Written information + diagram or tutorial video content | J30: =IF(I30='C2_DATA'!$E$76,'C2_DATA'!$F$76,IF(I30='C2_DATA'!$E$77,'C2_DATA'!$F$77,IF(I30='C2_DATA'!$E$78,'C2_DATA'!$F$78,IF(I30='C2_DATA'!$E$79,'C2_DATA'!$F$79,IF(I30='C2_DATA'!$E$80,'C2_DATA'!$F$80,IF(I30='C2_DATA'!$E$81,'C2_DATA'!$F$81,IF(I30='C2_DATA'!$E$82,'C2_DATA'!$F$82,IF(I30='C2_DATA'!$E$83,'C2_DATA'!$F$83,0)))))))) -> 2
B31: 2.2.C | C31: Switch off the television after use (unless the manufacturer's operating instructions advise against it, as is usually the case for OLED televisions) and unplug it if it is not going to be used for (if it is an OLED television, leave it on standby before unplugging it) | G31: Information displayed directly on the device via a display in the equipment parameters | H31: =IF(G31='C2_DATA'!$E$65,'C2_DATA'!$F$65,IF(G31='C2_DATA'!$E$66,'C2_DATA'!$F$66,IF(G31='C2_DATA'!$E$67,'C2_DATA'!$F$67,IF(G31='C2_DATA'!$E$68,'C2_DATA'!$F$68,IF(G31='C2_DATA'!$E$69,'C2_DATA'!$F$69,0))))) -> 1 | I31: Written information + diagram or tutorial video content | J31: =IF(I31='C2_DATA'!$E$76,'C2_DATA'!$F$76,IF(I31='C2_DATA'!$E$77,'C2_DATA'!$F$77,IF(I31='C2_DATA'!$E$78,'C2_DATA'!$F$78,IF(I31='C2_DATA'!$E$79,'C2_DATA'!$F$79,IF(I31='C2_DATA'!$E$80,'C2_DATA'!$F$80,IF(I31='C2_DATA'!$E$81,'C2_DATA'!$F$81,IF(I31='C2_DATA'!$E$82,'C2_DATA'!$F$82,IF(I31='C2_DATA'!$E$83,'C2_DATA'!$F$83,0)))))))) -> 2 | K31: Column | L31: Sub-criterion score out of 10 | M31: Sub-criterion coefficient
B32: 2.2.D | C32: Store the remote control carefully, do not expose it to liquids and check the condition of the remote control batteries regularly to prevent corrosion of the contacts. | G32: Information displayed directly on the device via a display in the equipment parameters | H32: =IF(G32='C2_DATA'!$E$65,'C2_DATA'!$F$65,IF(G32='C2_DATA'!$E$66,'C2_DATA'!$F$66,IF(G32='C2_DATA'!$E$67,'C2_DATA'!$F$67,IF(G32='C2_DATA'!$E$68,'C2_DATA'!$F$68,IF(G32='C2_DATA'!$E$69,'C2_DATA'!$F$69,0))))) -> 1 | I32: Written information + diagram or tutorial video content | J32: =IF(I32='C2_DATA'!$E$76,'C2_DATA'!$F$76,IF(I32='C2_DATA'!$E$77,'C2_DATA'!$F$77,IF(I32='C2_DATA'!$E$78,'C2_DATA'!$F$78,IF(I32='C2_DATA'!$E$79,'C2_DATA'!$F$79,IF(I32='C2_DATA'!$E$80,'C2_DATA'!$F$80,IF(I32='C2_DATA'!$E$81,'C2_DATA'!$F$81,IF(I32='C2_DATA'!$E$82,'C2_DATA'!$F$82,IF(I32='C2_DATA'!$E$83,'C2_DATA'!$F$83,0)))))))) -> 2
B33: 2.2.E | C33: Clean the screen with a soft, dry cloth after switching off and unplugging the television. and avoid glass sprays and other household cleaning agents. | G33: Information displayed directly on the device via a display in the equipment parameters | H33: =IF(G33='C2_DATA'!$E$65,'C2_DATA'!$F$65,IF(G33='C2_DATA'!$E$66,'C2_DATA'!$F$66,IF(G33='C2_DATA'!$E$67,'C2_DATA'!$F$67,IF(G33='C2_DATA'!$E$68,'C2_DATA'!$F$68,IF(G33='C2_DATA'!$E$69,'C2_DATA'!$F$69,0))))) -> 1 | I33: Written information + diagram or tutorial video content | J33: =IF(I33='C2_DATA'!$E$76,'C2_DATA'!$F$76,IF(I33='C2_DATA'!$E$77,'C2_DATA'!$F$77,IF(I33='C2_DATA'!$E$78,'C2_DATA'!$F$78,IF(I33='C2_DATA'!$E$79,'C2_DATA'!$F$79,IF(I33='C2_DATA'!$E$80,'C2_DATA'!$F$80,IF(I33='C2_DATA'!$E$81,'C2_DATA'!$F$81,IF(I33='C2_DATA'!$E$82,'C2_DATA'!$F$82,IF(I33='C2_DATA'!$E$83,'C2_DATA'!$F$83,0)))))))) -> 2 | K33: A | L33: =H34*10/12 -> 3.333333333 | M33: 3
H34: =SUM(H29:H33) -> 4 | J34: =SUM(J29:J33) -> 10 | K34: B | L34: =J34 -> 10 | M34: 1
K35: Overall score | L35: =(L33*M33+L34*M34)/4 -> 5 | M35: / 10

Sheet C2_DATA (hidden)
C1: CRITERION 2 : MAINTENANCE (INCLUDING SOFTWARE) & SERVICING
C2: SUB-CRITERION 2.1 : MAINTENANCE (INCLUDING SOFTWARE) | D2: Maintenance (including software)
C3: 2.1.A | D3: Accessibility usage meter
D4: Column A
D6: A : Absence : Absence de compteur ou compteur d'usage inaccessible pour le consommateur = 0 point. | E6: Absence: No meter or meter inaccessible to the consumer | F6: 0
D7: - B : Difficilement accessible : Le consommateur prend connaissance de la valeur affichée par le compteur d'usage en effectuant strictement plus de trois manipulations = 1 point. | E7: Difficult to access: The consumer only learns the value displayed by the usage meter by carrying out more than three operations | F7: 1
D8: - C : Visible ou facilement accessible : Le consommateur prend connaissance de la valeur affichée par le compteur d'usage en effectuant trois manipulations ou moins = 2 points. | E8: Visible or easily accessible: The consumer learns the value displayed by the usage meter by performing three operations or less | F8: 2
E9: Select a choice | F9: 0
C18: 2.1.D | D18: Firmware reset
D19: Column A
D21: Impossible 0 point | E21: Impossible | F21: 0
D22: Possible 1 point | E22: Firmware reset | F22: 1
E23: Operating system reset | F23: 1
E24: Operating system reset and firmware reset | F24: 2
E25: Select a choice | F25: 0
C31: 2.1.C | D31: Commitment on the duration of the supply of compliance software updates (including bug fixes and security updates)
D32: Column A
E34: If X ≤ 8 years | F34: 0
E35: If 8 years < X ≤ 10 years | F35: 8
E36: If 10 years < X ≤ 12 years | F36: 10
E37: If X >12 years | F37: 12
E38: Select a choice | F38: 0
C40: B
C42: 2.1.B | D42: Commitment on the duration of firmware availability to the consumer
D43: Column A
E45: If X ≤ 8 years | F45: 0
E46: If 8 years < X ≤ 10 years | F46: 8
E47: If 10 years < X ≤ 12 years | F47: 10
E48: If X >12 years | F48: 12
E49: Select a choice | F49: 0
C53: SUB-CRITERION 2.2: SERVICING | D53: SERVICING
D54: Quality of the model-specific information made available by the manufacturer on a mobile application or on the manufacturer's website, with an indication of the frequency.
D56: Aucune information : 0 point | E56: Absence of information | F56: 0
D57: Information à l'écrit : 1 point | E57: Written information | F57: 1
D58: Information écrit + schéma ou du contenu vidéo tuto : 2 points | E58: Written information + diagram or tutorial video content | F58: 2
E59: Select a choice | F59: 0
C62: 2.2.B
D63: Information provided directly on the equipment (usage meter, indicator light, electronic display)
D65: Aucun : 0 point | E65: None | F65: 0
E66: Information displayed directly on the device via a display in the equipment parameters | F66: 1
E67: Information displayed directly on the device via a regular display determined by the manufacturer | F67: 2
E68: Information displayed in the parameters and via a regular display determined by the manufacturer | F68: 3
E69: Select a choice | F69: 0
D73: Quality of the model-specific information made available by the manufacturer on a mobile application or on the manufacturer's website, with an indication of the frequency.
D75: Aucune information : 0 point | E75: No information | F75: 0
D76: Information à l'écrit : 1 point | E76: Written information | F76: 1
D77: Information écrit + schéma ou du contenu vidéo tuto : 2 points | E77: Written information + diagram or tutorial video content | F77: 2
E78: Select a choice | F78: 0
C83: 2.2.C
D84: Information provided directly on the equipment (usage meter, indicator light, electronic display)
D86: Aucun : 0 point | E86: None | F86: 0
D87: Signal quelconque directement sur l'appareil : 1 point | E87: Any signal directly on the device | F87: 1
D88: Indication à l'utilisateur qu'une phase de maintenance est nécessaire directement accéssible sur l'appareil avec des informations claires sur les manipulations à effectuer : 2 points | E88: Indication to the user that a maintenance phase is required, directly accessible on the device with clear information on the operations to be carried out | F88: 2
E89: Select a choice
D94: Quality of the model-specific information made available by the manufacturer on a mobile application or on the manufacturer's website, with an indication of the frequency.
D96: Aucune information : 0 point | E96: No information | F96: 0
D97: Information à l'écrit : 1 point | E97: Written information | F97: 1
D98: Information écrit + schéma ou du contenu vidéo tuto : 2 points | E98: Written information + diagram or tutorial video content | F98: 2
E99: Select a choice

Sheet C3_GUARANTEE
B1: ='C3_DATA'!C1 -> CRITERION 3 : GUARANTEE AND QUALITY PROCESS | I1: Television
B4: ='C3_DATA'!C2 -> SUB-CRITERION 3.1 : COMMERCIAL GUARANTEE OF DURABIITY
B5: PRÉCISIONS :
B6: Determined by the consent of the producer, or marketer, to the consumer of a commercial guarantee of durability defined in article L217-23 of the Consumer Code, for a given period. For the purposes of awarding points, the commercial guarantee of durability is free of charge and must favour the repair of goods over the replacement as new of the products concerned. In addition, any lack of conformity that appears during the period of the commercial guarantee of durability, including for goods containing digital elements, is, in the absence of proof to the contrary, presumed to have existed at the time of delivery, unless this presumption is incompatible with the nature of the goods or the defect claimed.
B8: SUB-CRITERION 3.1 : COMMERCIAL GUARANTEE OF DURABIITY | G8: ='C3_DATA'!D4 -> Column A
B10: Type of documentation | G10: Select a choice | H10: Subtotal
B11: ='C3_DATA'!C3 -> 3.1.A | C11: ='C3_DATA'!D3 -> Duration of the commercial guarantee of durability | G11: No guarantee | H11: =IF(G11='C3_DATA'!E6,'C3_DATA'!F6,IF(G11='C3_DATA'!E7,'C3_DATA'!F7,IF(G11='C3_DATA'!E8,'C3_DATA'!F8,IF(G11='C3_DATA'!E10,'C3_DATA'!F10,0)))) -> 0
B12: Total sub-criterion 3.1 | H12: =SUM(H11:H11) -> 0 | I12: / 3
H13: =H12*F15/F14 -> 0 | I13: / 10
D14: =SUM(H12) -> 0 | E14: / | F14: 3
D15: =SUM(H13) -> 0 | E15: / | F15: 10
B17: ='C3_DATA'!C15 -> SUB-CRITERION 3.2 : IMPLEMENTATION OF AN UPGRADING PROCESS
B19: PRÉCISIONS :
B20: Establishment within the company of a documented and demonstrable continuous improvement process to increase the sustainability of each product model put on the market, through product monitoring and improvement: To obtain the points, the manufacturer must be able to show : - That failures are identified and monitored by the technical departments of the manufacturer or its subsidiaries - Supporting statistics - That these failures are the subject of documented reports according to structured and systematic processes sent up to the central departments (Technical / Quality / R&D) - That these reports are taken on board and processed by the R&D departments, with specific modifications being made to the products in order to constantly improve their reliability and durability. - That the modifications made are then traced and their impact measured statistically to attest to the effectiveness of the improvements made.
B23: ='C3_DATA'!C15 -> SUB-CRITERION 3.2 : IMPLEMENTATION OF AN UPGRADING PROCESS | G23: ='C3_DATA'!D17 -> Column A
B25: Type of documentation | G25: Select a choice | H25: Subtotal
B26: ='C3_DATA'!C16 -> 3.2.A | C26: ='C3_DATA'!D16 -> Implementation of a continuous upgrading process | G26: Yes | H26: =IF(G26='C3_DATA'!E19,'C3_DATA'!F19,IF(G26='C3_DATA'!E20,'C3_DATA'!F20,IF(G26='C3_DATA'!E21,'C3_DATA'!F21,0))) -> 1
B27: Total sub-criterion 3.2 | H27: =SUM(H26:H26) -> 1 | I27: / 1
H28: =H27*F30/F29 -> 10 | I28: / 10
D29: =SUM(H27) -> 1 | E29: / | F29: 1
D30: =SUM(H28) -> 10 | E30: / | F30: 10

Sheet C3_DATA (hidden)
C1: CRITERION 3 : GUARANTEE AND QUALITY PROCESS
C2: SUB-CRITERION 3.1 : COMMERCIAL GUARANTEE OF DURABIITY | D2: Commercial guarantee of durability
C3: 3.1.A | D3: Duration of the commercial guarantee of durability | E3: Determined by the consent of the producer, or marketer, to the consumer of a commercial guarantee of durability defined in article L217-23 of the Consumer Code, for a given period. For the purposes of awarding points, the commercial guarantee of durability is free of charge and must favour the repair of goods over the replacement as new of the products concerned. In addition, any lack of conformity that appears during the period of the commercial guarantee of durability, including for goods containing digital elements, is, in the absence of proof to the contrary, presumed to have existed at the time of delivery, unless this presumption is incompatible with the nature of the goods or the defect claimed.
D4: Column A
D6: Garantie sans frais de 1 an à compter de la fin de la garantie légale de conformité : 1 point | E6: Free 1-year guarantee from the end of the legal guarantee of conformity | F6: 1
D7: Garantie sans frais de 3 years à compter de la fin de la garantie légale de conformité : 2 points | E7: Free 3-year guarantee from the end of the legal guarantee of conformity | F7: 2
D8: Garantie sans frais > 3 years à compter de la fin de la garantie légale de conformité : 3 points | E8: Free guarantee > 3 years from the end of the legal guarantee of conformity | F8: 3
E9: No guarantee | F9: 0
E10: Select a choice | F10: 0
C15: SUB-CRITERION 3.2 : IMPLEMENTATION OF AN UPGRADING PROCESS | D15: Implementation of an upgrading process
C16: 3.2.A | D16: Implementation of a continuous upgrading process | E16: Establishment within the company of a documented and demonstrable continuous improvement process to increase the sustainability of each product model put on the market, through product monitoring and improvement: To obtain the points, the manufacturer must be able to show : - That failures are identified and monitored by the technical departments of the manufacturer or its subsidiaries - Supporting statistics - That these failures are the subject of documented reports according to structured and systematic processes sent up to the central departments (Technical / Quality / R&D) - That these reports are taken on board and processed by the R&D departments, with specific modifications being made to the products in order to constantly improve their reliability and durability. - That the modifications made are then traced and their impact measured statistically to attest to the effectiveness of the improvements made.
D17: Column A
D19: Oui : 1 point | E19: Yes | F19: 1
D20: Non : 0 point | E20: No | F20: 0
E21: Select a choice | F21: 0

Sheet C4_DOCUMENTATION
B1: CRITERION 4 : DOCUMENTATION | I1: Television
B4: SUB-CRITERION 4.1 : COMMITMENT ON THE AVAILABILITY OVER TIME (WITHOUT CHARGE) OF THE TECHNICAL DOCUMENTATION AND THE OTHER DOCUMENTATION RELATED TO USER AND MAINTENANCE INSTRUCTIONS
B7: ADDITIONAL INFORMATIONS:
B8: Documents/informations: The information can be freely distributed at the initiative of the producer in various physical or dematerialized
B9: documents. Scoring points are awarded if the information referred to is available in any document.
B10: Language of documents: In accordance with the law of August 4, 1994 on the use of the French language, information intended for
B11: consumers must be drawn up in French ; English is tolerated for very technical aspects intended for professional repairers (example:
B12: technical bulletins).
B13: Technical bulletins: This wording covers announcements made by the producer to professional repairers, informing them, for example, of
B14: recently discovered bugs, of the corrections to be made, of the supply disruption of parts which have been replaced by others. Points are
B15: awarded if the edition of a technical bulletin is planned on an ongoing basis (when necessary).
B16: Information on access to professional repairers: The producer or importer is free to indicate to consumers the professional repairers of his
B17: choice, but it is advisable to mention at least the repairer directories listed by Ademe : www.annuaire-reparation.fr
B18: Instructions for self-repair: Points corresponding to years of availability are only granted if one or more operations are specified to
B19: consumers for self-repair, with adequate safety instructions, in a specific section under the title “self-repair”, for example in the technical
B20: manual or of the instructions for use and maintenance. Article L 441-5 of the Consumer Code specifies the responsibility of the producer
B21: regarding self-repair.
B26: Commitment on the availability over time of the documentation (in years) | E26: Repairers | G26: Consumers
B28: Type of documentation | E28: Duration of availability | F28: Subtotal | G28: Duration of availability | H28: Subtotal
B29: 4.1.A | C29: The unequivocal identification of the product (type of product, trademark, trade name, model, and possibly, serial number) | E29: If X ≥ 11 years | F29: =IF(E29='C4_Data'!$E$7,'C4_Data'!$F$7,IF(E29='C4_Data'!$E$8,'C4_Data'!$F$8,IF(E29='C4_Data'!$E$9,'C4_Data'!$F$9,IF(E29='C4_Data'!$E$10,'C4_Data'!$F$10,IF(E29='C4_Data'!$E$11,'C4_Data'!$F$11,0))))) -> 11 | G29: If X ≥ 11 years | H29: =IF(G29='C4_Data'!$E$7,'C4_Data'!$F$7,IF(G29='C4_Data'!$E$8,'C4_Data'!$F$8,IF(G29='C4_Data'!$E$9,'C4_Data'!$F$9,IF(G29='C4_Data'!$E$10,'C4_Data'!$F$10,IF(G29='C4_Data'!$E$11,'C4_Data'!$F$11,0))))) -> 11
B30: 4.1.B | C30: A dissasembly map or exploded view | E30: If X ≥ 11 years | F30: =IF(E30='C4_Data'!$E$7,'C4_Data'!$F$7,IF(E30='C4_Data'!$E$8,'C4_Data'!$F$8,IF(E30='C4_Data'!$E$9,'C4_Data'!$F$9,IF(E30='C4_Data'!$E$10,'C4_Data'!$F$10,IF(E30='C4_Data'!$E$11,'C4_Data'!$F$11,0))))) -> 11 | G30: If X ≥ 11 years | H30: =IF(G30='C4_Data'!$E$7,'C4_Data'!$F$7,IF(G30='C4_Data'!$E$8,'C4_Data'!$F$8,IF(G30='C4_Data'!$E$9,'C4_Data'!$F$9,IF(G30='C4_Data'!$E$10,'C4_Data'!$F$10,IF(G30='C4_Data'!$E$11,'C4_Data'!$F$11,0))))) -> 11
B31: 4.1.C | C31: Wiring and connection diagrams | E31: If X ≥ 11 years | F31: =IF(E31='C4_Data'!$E$7,'C4_Data'!$F$7,IF(E31='C4_Data'!$E$8,'C4_Data'!$F$8,IF(E31='C4_Data'!$E$9,'C4_Data'!$F$9,IF(E31='C4_Data'!$E$10,'C4_Data'!$F$10,IF(E31='C4_Data'!$E$11,'C4_Data'!$F$11,0))))) -> 11 | G31: If X ≥ 11 years | H31: =IF(G31='C4_Data'!$E$7,'C4_Data'!$F$7,IF(G31='C4_Data'!$E$8,'C4_Data'!$F$8,IF(G31='C4_Data'!$E$9,'C4_Data'!$F$9,IF(G31='C4_Data'!$E$10,'C4_Data'!$F$10,IF(G31='C4_Data'!$E$11,'C4_Data'!$F$11,0))))) -> 11
B32: 4.1.D | C32: Electronic boards diagrams | E32: If X ≥ 11 years | F32: =IF(E32='C4_Data'!$E$7,'C4_Data'!$F$7,IF(E32='C4_Data'!$E$8,'C4_Data'!$F$8,IF(E32='C4_Data'!$E$9,'C4_Data'!$F$9,IF(E32='C4_Data'!$E$10,'C4_Data'!$F$10,IF(E32='C4_Data'!$E$11,'C4_Data'!$F$11,0))))) -> 11 | G32: If X ≥ 11 years | H32: =IF(G32='C4_Data'!$E$7,'C4_Data'!$F$7,IF(G32='C4_Data'!$E$8,'C4_Data'!$F$8,IF(G32='C4_Data'!$E$9,'C4_Data'!$F$9,IF(G32='C4_Data'!$E$10,'C4_Data'!$F$10,IF(G32='C4_Data'!$E$11,'C4_Data'!$F$11,0))))) -> 11
B33: 4.1.E | C33: List of necessary repair and test equipment | E33: If X ≥ 11 years | F33: =IF(E33='C4_Data'!$E$7,'C4_Data'!$F$7,IF(E33='C4_Data'!$E$8,'C4_Data'!$F$8,IF(E33='C4_Data'!$E$9,'C4_Data'!$F$9,IF(E33='C4_Data'!$E$10,'C4_Data'!$F$10,IF(E33='C4_Data'!$E$11,'C4_Data'!$F$11,0))))) -> 11 | G33: If X ≥ 11 years | H33: =IF(G33='C4_Data'!$E$7,'C4_Data'!$F$7,IF(G33='C4_Data'!$E$8,'C4_Data'!$F$8,IF(G33='C4_Data'!$E$9,'C4_Data'!$F$9,IF(G33='C4_Data'!$E$10,'C4_Data'!$F$10,IF(G33='C4_Data'!$E$11,'C4_Data'!$F$11,0))))) -> 11
B34: 4.1.F | C34: Technical manual of instructions for repair | E34: If X ≥ 11 years | F34: =IF(E34='C4_Data'!$E$7,'C4_Data'!$F$7,IF(E34='C4_Data'!$E$8,'C4_Data'!$F$8,IF(E34='C4_Data'!$E$9,'C4_Data'!$F$9,IF(E34='C4_Data'!$E$10,'C4_Data'!$F$10,IF(E34='C4_Data'!$E$11,'C4_Data'!$F$11,0))))) -> 11 | G34: If X ≥ 11 years | H34: =IF(G34='C4_Data'!$E$7,'C4_Data'!$F$7,IF(G34='C4_Data'!$E$8,'C4_Data'!$F$8,IF(G34='C4_Data'!$E$9,'C4_Data'!$F$9,IF(G34='C4_Data'!$E$10,'C4_Data'!$F$10,IF(G34='C4_Data'!$E$11,'C4_Data'!$F$11,0))))) -> 11
B35: 4.1.G | C35: diagnosis fault and error codes | E35: If X ≥ 11 years | F35: =IF(E35='C4_Data'!$E$7,'C4_Data'!$F$7,IF(E35='C4_Data'!$E$8,'C4_Data'!$F$8,IF(E35='C4_Data'!$E$9,'C4_Data'!$F$9,IF(E35='C4_Data'!$E$10,'C4_Data'!$F$10,IF(E35='C4_Data'!$E$11,'C4_Data'!$F$11,0))))) -> 11 | G35: If X ≥ 11 years | H35: =IF(G35='C4_Data'!$E$7,'C4_Data'!$F$7,IF(G35='C4_Data'!$E$8,'C4_Data'!$F$8,IF(G35='C4_Data'!$E$9,'C4_Data'!$F$9,IF(G35='C4_Data'!$E$10,'C4_Data'!$F$10,IF(G35='C4_Data'!$E$11,'C4_Data'!$F$11,0))))) -> 11
B36: 4.1.H | C36: Component and diagnosis information | E36: If X ≥ 11 years | F36: =IF(E36='C4_Data'!$E$7,'C4_Data'!$F$7,IF(E36='C4_Data'!$E$8,'C4_Data'!$F$8,IF(E36='C4_Data'!$E$9,'C4_Data'!$F$9,IF(E36='C4_Data'!$E$10,'C4_Data'!$F$10,IF(E36='C4_Data'!$E$11,'C4_Data'!$F$11,0))))) -> 11 | G36: If X ≥ 11 years | H36: =IF(G36='C4_Data'!$E$7,'C4_Data'!$F$7,IF(G36='C4_Data'!$E$8,'C4_Data'!$F$8,IF(G36='C4_Data'!$E$9,'C4_Data'!$F$9,IF(G36='C4_Data'!$E$10,'C4_Data'!$F$10,IF(G36='C4_Data'!$E$11,'C4_Data'!$F$11,0))))) -> 11
B37: 4.1.I | C37: Instructions for software and firmware (including reset software) | E37: If X ≥ 11 years | F37: =IF(E37='C4_Data'!$E$7,'C4_Data'!$F$7,IF(E37='C4_Data'!$E$8,'C4_Data'!$F$8,IF(E37='C4_Data'!$E$9,'C4_Data'!$F$9,IF(E37='C4_Data'!$E$10,'C4_Data'!$F$10,IF(E37='C4_Data'!$E$11,'C4_Data'!$F$11,0))))) -> 11 | G37: If X ≥ 11 years | H37: =IF(G37='C4_Data'!$E$7,'C4_Data'!$F$7,IF(G37='C4_Data'!$E$8,'C4_Data'!$F$8,IF(G37='C4_Data'!$E$9,'C4_Data'!$F$9,IF(G37='C4_Data'!$E$10,'C4_Data'!$F$10,IF(G37='C4_Data'!$E$11,'C4_Data'!$F$11,0))))) -> 11
B38: 4.1.J | C38: Information on how to access data records of reported failure incidents stored on the product | E38: If X ≥ 11 years | F38: =IF(E38='C4_Data'!$E$7,'C4_Data'!$F$7,IF(E38='C4_Data'!$E$8,'C4_Data'!$F$8,IF(E38='C4_Data'!$E$9,'C4_Data'!$F$9,IF(E38='C4_Data'!$E$10,'C4_Data'!$F$10,IF(E38='C4_Data'!$E$11,'C4_Data'!$F$11,0))))) -> 11 | G38: If X ≥ 11 years | H38: =IF(G38='C4_Data'!$E$7,'C4_Data'!$F$7,IF(G38='C4_Data'!$E$8,'C4_Data'!$F$8,IF(G38='C4_Data'!$E$9,'C4_Data'!$F$9,IF(G38='C4_Data'!$E$10,'C4_Data'!$F$10,IF(G38='C4_Data'!$E$11,'C4_Data'!$F$11,0))))) -> 11
B39: 4.1.K | C39: Technical bulletins | E39: If X ≥ 11 years | F39: =IF(E39='C4_Data'!$E$7,'C4_Data'!$F$7,IF(E39='C4_Data'!$E$8,'C4_Data'!$F$8,IF(E39='C4_Data'!$E$9,'C4_Data'!$F$9,IF(E39='C4_Data'!$E$10,'C4_Data'!$F$10,IF(E39='C4_Data'!$E$11,'C4_Data'!$F$11,0))))) -> 11 | G39: If X ≥ 11 years | H39: =IF(G39='C4_Data'!$E$7,'C4_Data'!$F$7,IF(G39='C4_Data'!$E$8,'C4_Data'!$F$8,IF(G39='C4_Data'!$E$9,'C4_Data'!$F$9,IF(G39='C4_Data'!$E$10,'C4_Data'!$F$10,IF(G39='C4_Data'!$E$11,'C4_Data'!$F$11,0))))) -> 11
B40: Total sub-criterion 4.1 | F40: =SUM(F29:F39) -> 121 | H40: =SUM(H29:H39) -> 121 | I40: =F40+H40 -> 242 | J40: / 242
I41: =I40*10/242 -> 10 | J41: / 10
B42: *Points corresponding to years of availability are only awarded if one or more operations are specified to consumers for self-repair, with adequate safety instructions, in a specific section entitled “self-repair”, for example into a technical manual or user and maintenance instructions. See article L. 441-5 of the French Consumer Code wich specifies the responsibility of the producer for self-repair.
B47: SUB-CRITERION 4.2: CONSUMER SUPPORT FOR DIAGNOSIS AND REPAIR
B49: PRECISIONS :
B50: Remote information should concern : - repair assistance for consumers (website, FAQ, etc.), - information on access to professional repairers, with the manufacturer or marketer indicating the professional repairers of their choice or mentioning a directory of repairers listed by ADEME: www.annuaire-reparation.fr) - instructions for self-repair by proposing operations to consumers for self-repair, with the appropriate safety instructions, in a specific section under the heading "self-repair", for example in the technical manual. Article L441-5 of the French Consumer Code specifies the producer's responsibility for self-repair.
B51: - Remote assistance includes any system whose purpose is to facilitate the search for information in the event of a breakdown, information to identify the origin of a breakdown or remote assistance to carry out repairs. In the case of remote repair assistance, the device must be capable of providing precise technical support to the user.
B53: - Remote assistance systems include: remote information (website, FAQ, etc.), remote diagnosis assistance (telephone hotline, chat, application included with the equipment, interactive decision tree, etc.) and remote repair assistance (telephone hotline, video call, remote control of the equipment, etc.).
B56: - Remote assistance systems must be completely free of charge (including telephone calls in the case of a hotline). - To be awarded points for remote assistance, it must at least concern diagnosis.
B59: CONSUMER SUPPORT FOR DIAGNOSIS AND REPAIR | G59: Consumers
B61: Type of documentation | G61: Select a choice | H61: Subtotal
B62: 4.2.A | C62: Consumer information | G62: Yes | H62: =IF(G62='C4_Data'!E27,'C4_Data'!F27,0) -> 1
B63: 4.2.B | C63: Remote assistance | G63: Remote repair assistance | H63: =IF(G63='C4_Data'!E33,'C4_Data'!F33,IF(G63='C4_Data'!E34,'C4_Data'!F34,0)) -> 4
B64: Total sub-criterion 5.2 | H64: =SUM(H62:H63) -> 5 | I64: / 5
H65: =H64*10/5 -> 10 | I65: / 10
D66: =H64 -> 5 | E66: / | F66: 5
D67: =H65 -> 10 | E67: / | F67: 10
D69: Link to documentation for repairers | F69: Please fill out | K69: (link format : https://)
D71: Link to documentation for consumeurs | F71: Please fill out | K71: (link format : https://)

Sheet C4_Data (hidden)
C1: CRITERION 5 : DOCUMENTATION
C2: SUB-CRITERION 4.1 : COMMITMENT ON THE AVAILABILITY OVER TIME (WITHOUT CHARGE) OF THE TECHNICAL DOCUMENTATION AND THE OTHER DOCUMENTATION RELATED TO USER AND MAINTENANCE INSTRUCTIONS
C3: 4.1
D4: Column A : Repairers
D6: Non disponible : 0 point | E6: Not available | F6: 0
D7: si X < 6 ans : 0 point | E7: If X < 6 years | F7: 0
D8: si 7 <= X < 9 ans : 7 points | E8: If 7 ≤ X < 9 years | F8: 7
D9: si 9 <= X < 11 ans : 9 points | E9: If 9 ≤ X < 11 years | F9: 9
D10: si X ≥ 11 ans : 11 points | E10: If X ≥ 11 years | F10: 11
D11: Non applicable : 0 point | E11: Not applicable | F11: 11
D12: Choix à sélectionner | E12: Select a choice | F12: 0
D13: Consommateurs
D15: Non disponible : 0 point | E15: Not available | F15: 0
D16: si X < 6 ans : 0 point | E16: If X < 6 years | F16: 0
D17: si 7 <= X < 9 ans : 7 points | E17: If 7 ≤ X < 9 years | F17: 7
D18: si 9 <= X < 11 ans : 9 points | E18: If 9 ≤ X < 11 years | F18: 9
D19: si X ≥ 11 ans : 11 points | E19: If X ≥ 11 years | F19: 11
D20: Non applicable : 0 point | E20: Not applicable | F20: 11
D21: Choix à sélectionner | E21: Select a choice | F21: 0
C22: SUB-CRITERION 4.2: CONSUMER SUPPORT FOR DIAGNOSIS AND REPAIR
C23: 4.2.A | D23: Consumer information
D24: Column A
D26: No : 0 point | E26: No | F26: 0
D27: Yes : 1 point | E27: Yes | F27: 1
D28: Select a choice | E28: Select a choice | F28: 0
C29: 4.2.B | D29: Remote assistance
D30: Column A : A remplir
D32: None : 0 point | E32: None | F32: 0
D33: Remote diagnosis assistance : 2 points | E33: Remote diagnosis assistance | F33: 2
D34: Remote repair assistance : 4 points | E34: Remote repair assistance | F34: 4
D35: Select a choice | E35: Select a choice | F35: 0

Sheet C5_DISASSEMBLY
B1: CRITERION 5 : DISASSEMBLY, ACCESSIBILITY, TOOLS, FASTENERS | K1: Television
B4: =IF(OR(F7="Select a choice",F8="Select a choice",F9="Select a choice"),"Please answer this 3 questions","") -> 
B6: PLEASE yearsWER THE FOLLOWING QUESTIONS : | F6: ANSWERS
B7: 1) | C7: Does the product have any internal power supply ? | F7: Yes
B8: 2) | C8: Does the porduct have any WiFi module ? | F8: Yes
B9: 3) | C9: Does the product have any Bluetooth module ? | F9: Yes
B11: SUB-CRITERION 5.1 : EASE OF DISASSEMBLY OF SPARE PARTS - BROKEN / MALFUNCTIONING PARTS (LIST 2)
B13: PRECISION : | K13: PARTICULAR CASE OF TELEVISION
B14: Details of the dismantling steps can be found on the right side of this sheet and in Annex 3 grid. A part is considered non-removable if it is not individually accessible and cannot be detached from the equipment or a sub-assembly, with a view to its replacement. In this case, the points for the corresponding criterion 5.1 are not awarded.A link is established between the rating of sub-criterion 5.1 and that of sub-criterion 6.1, in the case where a part cannot be dismantled: the zero score is then passed on from one sub-criterion to another. | K14: External power supply and remote control do not need to be disassembled for disassembly steps. For these parts, the steps counted shall be : disconnecting the power cord and removing accumulators and battery from remote control.
B17: Ease of disassembly | E17: Rating
B19: List 2 : Broken / malfunctioning parts | E19: Number of steps required to disassemble the spare part | F19: Subtotal
B20: 5.1.A | C20: LED bar | E20: If DDi < 8 | F20: =IF(E20='C5_Data'!$E$6,'C5_Data'!$F$6,IF(E20='C5_Data'!$E$7,'C5_Data'!$F$7,IF(E20='C5_Data'!$E$8,'C5_Data'!$F$8,IF(E20='C5_Data'!$E$9,'C5_Data'!$F$9,IF(E20='C5_Data'!$E$10,'C5_Data'!$F$10,IF(E20='C5_Data'!$E$11,'C5_Data'!$F$11,IF(E20='C5_Data'!$E$12,'C5_Data'!$F$12,0))))))) -> 3
B21: 5.1.B | C21: External power supply
B22: 5.1.C | C22: Internal power supply | E22: If DDi < 8 | F22: =IF($F$7="No",0,IF(E22='C5_Data'!$E$6,'C5_Data'!$F$6,IF(E22='C5_Data'!$E$7,'C5_Data'!$F$7,IF(E22='C5_Data'!$E$8,'C5_Data'!$F$8,IF(E22='C5_Data'!$E$9,'C5_Data'!$F$9,IF(E22='C5_Data'!$E$10,'C5_Data'!$F$10,IF(E22='C5_Data'!$E$11,'C5_Data'!$F$11,IF(E22='C5_Data'!$E$12,'C5_Data'!$F$12,0)))))))) -> 3
B23: 5.1.D | C23: Main board | E23: If DDi < 8 | F23: =IF(E23='C5_Data'!$E$6,'C5_Data'!$F$6,IF(E23='C5_Data'!$E$7,'C5_Data'!$F$7,IF(E23='C5_Data'!$E$8,'C5_Data'!$F$8,IF(E23='C5_Data'!$E$9,'C5_Data'!$F$9,IF(E23='C5_Data'!$E$10,'C5_Data'!$F$10,IF(E23='C5_Data'!$E$11,'C5_Data'!$F$11,IF(E23='C5_Data'!$E$12,'C5_Data'!$F$12,0))))))) -> 3
B24: 5.1.E | C24: Display panel / LCD panel | E24: If DDi < 8 | F24: =IF(E24='C5_Data'!$E$6,'C5_Data'!$F$6,IF(E24='C5_Data'!$E$7,'C5_Data'!$F$7,IF(E24='C5_Data'!$E$8,'C5_Data'!$F$8,IF(E24='C5_Data'!$E$9,'C5_Data'!$F$9,IF(E24='C5_Data'!$E$10,'C5_Data'!$F$10,IF(E24='C5_Data'!$E$11,'C5_Data'!$F$11,IF(E24='C5_Data'!$E$12,'C5_Data'!$F$12,0))))))) -> 3
B25: Total sub-criterion 5.1 | F25: =SUM(F20:F24) -> 12 | G25: =IF(F7="Yes","/ 12","/ 9") -> / 12
F26: =IF(F7="yes",F25*10/12,F25*10/9) -> 10 | G26: / 10
B28: SUB-CRITERION 5.2 : NECESSARY TOOLS TO REMOVE SPARE PARTS - BROKEN / MALFUNCTIONING PARTS (LIST 2)
B30: ADDITIONAL INFORMATIONS:
B31: - Necessary tools to unitarily disassemble a spare part include all tools used to get access and disassemble the concerned part without causing
B32: damage to the product (which might include getting access to fasteners).
B33: - Tools used are classified according to the complexity of the operation to final users and the availability of tools.
B34: - In case of using different types of tools in the disassembly and reassembly sequences of a spare part, the worst score shall be considered.
B36: =IF(OR(E21="Select a choice",E22="Select a choice",E23="Select a choice",E24="Select a choice",E20="Select a choice"),"Please fully complete criterion 5.1 before criterion 5.2","") -> 
B38: Necessary tools for disassembly | E38: Rating
B40: List 2 : Broken / malfunctioning parts | E40: Type of tools used for disassembly | F40: Subtotal
B41: 5.2.A | C41: LED bar | E41: D : Removable with no tool, with tools supplied with the product or with basic tools | F41: =IF(E41='C5_Data'!$E$18,'C5_Data'!$F$18,IF(E41='C5_Data'!$E$19,'C5_Data'!$F$19,IF(E41='C5_Data'!$E$20,'C5_Data'!$F$20,IF(E41='C5_Data'!$E$21,'C5_Data'!$F$21,IF(E41='C5_Data'!$E$22,'C5_Data'!$F$22,IF(E41='C5_Data'!$E$23,'C5_Data'!$F$23,IF(E41='C5_Data'!$E$24,'C5_Data'!$F$24,IF(E41='C5_Data'!$E$25,'C5_Data'!$F$25,0)))))))) -> 4
B42: 5.2.B | C42: External power supply
B43: 5.2.C | C43: Internal power supply | E43: D : Removable with no tool, with tools supplied with the product or with basic tools | F43: =IF($F$7="No",0,IF(E43='C5_Data'!$E$18,'C5_Data'!$F$18,IF(E43='C5_Data'!$E$19,'C5_Data'!$F$19,IF(E43='C5_Data'!$E$20,'C5_Data'!$F$20,IF(E43='C5_Data'!$E$21,'C5_Data'!$F$21,IF(E43='C5_Data'!$E$22,'C5_Data'!$F$22,IF(E43='C5_Data'!$E$23,'C5_Data'!$F$23,IF(E43='C5_Data'!$E$24,'C5_Data'!$F$24,IF(E43='C5_Data'!$E$25,'C5_Data'!$F$25,0))))))))) -> 4
B44: 5.2.D | C44: Main board | E44: D : Removable with no tool, with tools supplied with the product or with basic tools | F44: =IF(E44='C5_Data'!$E$18,'C5_Data'!$F$18,IF(E44='C5_Data'!$E$19,'C5_Data'!$F$19,IF(E44='C5_Data'!$E$20,'C5_Data'!$F$20,IF(E44='C5_Data'!$E$21,'C5_Data'!$F$21,IF(E44='C5_Data'!$E$22,'C5_Data'!$F$22,IF(E44='C5_Data'!$E$23,'C5_Data'!$F$23,IF(E44='C5_Data'!$E$24,'C5_Data'!$F$24,IF(E44='C5_Data'!$E$25,'C5_Data'!$F$25,0)))))))) -> 4
B45: 5.2.E | C45: Display panel / LCD panel | E45: D : Removable with no tool, with tools supplied with the product or with basic tools | F45: =IF(E45='C5_Data'!$E$18,'C5_Data'!$F$18,IF(E45='C5_Data'!$E$19,'C5_Data'!$F$19,IF(E45='C5_Data'!$E$20,'C5_Data'!$F$20,IF(E45='C5_Data'!$E$21,'C5_Data'!$F$21,IF(E45='C5_Data'!$E$22,'C5_Data'!$F$22,IF(E45='C5_Data'!$E$23,'C5_Data'!$F$23,IF(E45='C5_Data'!$E$24,'C5_Data'!$F$24,IF(E45='C5_Data'!$E$25,'C5_Data'!$F$25,0)))))))) -> 4
B46: Total sub-criterion 5.2 | F46: =SUM(F41:F45) -> 16 | G46: =IF(F7="Yes","/ 16","/ 12") -> / 16
F47: =IF(F7="YES",F46*10/16,F46*10/12) -> 10 | G47: / 10
B49: SUB-CRITERION 5.3 : CHARACTERISTICS OF FASTENERS FOR THE ASSEMBLY OF SPARE PARTS (LISTS 1 AND 2)
B51: ADDITIONAL INFORMATIONS:
B52: - Fasteners : A hardware device that mechanically or magnetically connects or fixes two or more objects, parts or pieces. A fastener is generally
B53: non-permanent, i.e., it can be easily removed or disassembled without damaging the objects, parts or pieces connected or fixed together (e.g., screws
B54: or clips). Welds and some glues are in contrast to permanent fixings. Adhesives are considered non-reusable fasteners unless new ones are supplied
B55: with the spare part.
B56: - Fasteners removed are classified according to their accessibility, reusability, amovibility and also their constraints imposed to the product
B57: reparability (e.g. fasteners causing damage or leaving welding or glue residues which preclude reusabiliy of the removed part).
B58: - In case of removing different types of fasteners during the disassembly step of a spare part, the worst score shall be considered.
B60: =IF(OR(E20="Select a choice",E22="Select a choice",E23="Select a choice",E24="Select a choice"),"Please fully complete criterion 5.1 before criterion 5.3","") -> 
B62: Fasteners characteristics | E62: Rating
B64: List 1 : Functional parts List 2 : Broken / malfunctioning parts | E64: Type of fasteners | F64: Subtotal
B66: 5.3.A | C66: Rear cover | E66: C : Removable and reusable | F66: =IF(E66='C5_Data'!$E$29,'C5_Data'!$F$29,IF(E66='C5_Data'!$E$30,'C5_Data'!$F$30,IF(E66='C5_Data'!$E$31,'C5_Data'!$F$31,IF(E66='C5_Data'!$E$32,'C5_Data'!$F$32,IF(E66='C5_Data'!$E$33,'C5_Data'!$F$33,0))))) -> 2
B67: 5.3.B | C67: Wifi module | E67: C : Removable and reusable | F67: =IF(F8="No",0,IF(E67='C5_Data'!$E$29,'C5_Data'!$F$29,IF(E67='C5_Data'!$E$30,'C5_Data'!$F$30,IF(E67='C5_Data'!$E$31,'C5_Data'!$F$31,IF(E67='C5_Data'!$E$32,'C5_Data'!$F$32,IF(E67='C5_Data'!$E$33,'C5_Data'!$F$33,0)))))) -> 2
B68: 5.3.C | C68: Bluetooth module | E68: C : Removable and reusable | F68: =IF(F9="No",0,IF(E68='C5_Data'!$E$29,'C5_Data'!$F$29,IF(E68='C5_Data'!$E$30,'C5_Data'!$F$30,IF(E68='C5_Data'!$E$31,'C5_Data'!$F$31,IF(E68='C5_Data'!$E$32,'C5_Data'!$F$32,IF(E68='C5_Data'!$E$33,'C5_Data'!$F$33,0)))))) -> 2
B69: 5.3.D | C69: Infrared receiver (IR) | E69: C : Removable and reusable | F69: =IF(E69="A : Neither removable nor reusable",0,IF(E69="B : Removable but not reusable",1,IF(E69="C : Removable and reusable",2,IF(E69="Part not included",2,0)))) -> 2
B70: 5.3.E | C70: Loudspeaker | E70: C : Removable and reusable | F70: 2
B71: 5.3.F | C71: Connectors to connect external equipment (cable,, antenna, USB, DVD and Blue-Ray) | E71: B : Removable but not reusable | F71: =IF(E71="A : Neither removable nor reusable",0,IF(E71="B : Removable but not reusable",1,IF(E71="C : Removable and reusable",2,IF(E71="Part not included",2,0)))) -> 1 | M71: Sortie2
B72: 5.3.G | C72: Remote control | E72: C : Removable and reusable | F72: 2 | I72: E5 | J72: E6 | K72: E7 | L72: Sortie1 | M72: Sortie2
B73: 5.3.H | C73: LED bar | E73: C : Removable and reusable | F73: =IF(E73="A : Neither removable nor reusable",0,IF(E73="B : Removable but not reusable",1,IF(E73="C : Removable and reusable",2,IF(E73="Part not included",2,0)))) -> 2 | I73: Yes | J73: Yes | K73: Yes | L73: "22" | M73: =IF(AND($F$7=I73,$F$8=J73,$F$9=K73),L73,"") -> "22"
B74: 5.3.I | C74: External power supply | I74: Yes | J74: Yes | K74: No | L74: "20"
B75: 5.3.J | C75: Internal power supply | E75: C : Removable and reusable | F75: =IF(F7="No",0,IF(E75='C5_Data'!$E$29,'C5_Data'!$F$29,IF(E75='C5_Data'!$E$30,'C5_Data'!$F$30,IF(E75='C5_Data'!$E$31,'C5_Data'!$F$31,IF(E75='C5_Data'!$E$32,'C5_Data'!$F$32,IF(E75='C5_Data'!$E$33,'C5_Data'!$F$33,0)))))) -> 2 | I75: Yes | J75: No | K75: Yes | L75: "20"
B76: 5.3.K | C76: Main board | E76: C : Removable and reusable | F76: =IF(E76="A : Neither removable nor reusable",0,IF(E76="B : Removable but not reusable",1,IF(E76="C : Removable and reusable",2,IF(E76="Part not included",2,0)))) -> 2 | I76: Yes | J76: No | K76: No | L76: "18"
B77: 5.3.L | C77: Display panel / LCD panel | E77: C : Removable and reusable | F77: =IF(E77="A : Neither removable nor reusable",0,IF(E77="B : Removable but not reusable",1,IF(E77="C : Removable and reusable",2,IF(E77="Part not included",2,0)))) -> 2 | I77: No | J77: Yes | K77: Yes | L77: "20"
B78: Total sub-criterion 5.3 | F78: =SUM(F66:F77) -> 21 | G78: =IF(F7="Select a choice","/22",M83) -> /22 | I78: No | J78: Yes | K78: No | L78: "18"
F79: =IF(F7="Select a choice","0",F78*10/M82) -> 9.545454545 | G79: /10 | I79: No | J79: No | K79: Yes | L79: "18"
I80: No | J80: No | K80: No | L80: "16"
M81: =CONCATENATE(M73,M74,M75,M76,M77,M78,M79,M80) -> "22"
M82: =MID($M$81,FIND("""",$M$81,1)+1,FIND("/",SUBSTITUTE($M$81,"""","/",2))-FIND("""",$M$81,1)-1) -> 22
M83: ="/"&MID($M$81,FIND("""",$M$81,1)+1,FIND("/",SUBSTITUTE($M$81,"""","/",2))-FIND("""",$M$81,1)-1) -> /22
I84: =IF(AND($F$7=I73,$F$8=J73,$F$9=K73),L73,"") -> "22"

Sheet C5_Data (hidden)
C1: CRITERION 5 : DOCUMENTATION
C2: SUB-CRITERION 5.1 : EASE OF DISASSEMBLY OF SPARE PARTS - BROKEN / MALFUNCTIONING PARTS (LIST 2)
D6: Select a choice | E6: Select a choice | F6: 0
D7: Not removable | E7: Not removable | F7: 0
D8: If DDi ≥ 12 | E8: If DDi ≥ 12 | F8: 0
D9: If 12 > DDi ≥ 10 | E9: If 12 > DDi ≥ 10 | F9: 1
D10: If 10 > DDi ≥ 8 | E10: If 10 > DDi ≥ 8 | F10: 2
D11: If DDi < 8 | E11: If DDi < 8 | F11: 3
D12: Part not included | E12: Part not included | F12: 3
C13: SUB-CRITERION 5.2: CONSUMER SUPPORT FOR DIAGNOSIS AND REPAIR
C14: 5.2.A | D14: Consumer information
D15: Column A
D17: outils | E17: outils
D18: Select a choice | E18: Select a choice | F18: 0
D19: A : Not removable | E19: A : Not removable | F19: 0
D20: B : Removable with proprietary tools | E20: B : Removable with proprietary tools | F20: 1
D21: C : Removable with specific tools | E21: C : Removable with specific tools | F21: 2
D22: D : Removable with no tool, with tools supplied with the product or with basic tools | E22: D : Removable with no tool, with tools supplied with the product or with basic tools | F22: 4
D23: Select a choice | E23: Select a choice | F23: 0
D24: Part not included | E24: Part not included | F24: 4
D25: A : Not removable | E25: A : Not removable | F25: 0
C26: 5.2.B | D26: Remote assistance
D27: Column A : A remplir
D29: Select a choice | E29: Select a choice | F29: 0
D30: A : Neither removable nor reusable | E30: A : Neither removable nor reusable | F30: 0
D31: B : Removable but not reusable | E31: B : Removable but not reusable | F31: 1
D32: C : Removable and reusable | E32: C : Removable and reusable | F32: 2
D33: Part not included | E33: Part not included | F33: 2

Sheet C6_AVAILABILITY_SP
B1: CRITERION 6 : AVAILABILITY OF SPARE PARTS | K1: Television
B4: SUB-CRITERION 6.1 : COMMITMENT ON THE AVAILABILITY OVER TIME OF SPARE PARTS - BROKEN/MALFUNCTIONING PARTS (LIST 2)
B6: ADDITIONAL INFORMATIONS:
B7: Definition of spare parts distributor: The definition of a spare parts distributor is given in the glossary in appendix 1 of the gird
B8: Commitments on the availability of spare parts and delivery times (except Sunday and fest days): To award points to the A columns, the producer should have his own in-house repair service (example: via the after-sales service). Whether for the period of availability of spare parts or the delivery time, the producer or the importer must retain, among all of their practices towards authorized and independent repairers, the period or the most penalizing time for each spare part. In the event that the producer or importer does not make spare parts directly available to independent repairers, then points are not awarded in column C of criterion 6.1, 6.2, 6.3 and 6.4.
L10: ='C5_DISASSEMBLY'!F7 -> Yes | M10: INTER
L11: ='C5_DISASSEMBLY'!F8 -> Yes | M11: WIFI
L12: ='C5_DISASSEMBLY'!F9 -> Yes | M12: BLEU
B14: In addition, in the event that the producer or importer does not have an approved repairers network, the points are awarded
B15: based on the most penalizing practices towards independent repairers.
B16: Delivery time: The delivery time is understood in working days between the day of the order and the day of arrival at the actor
B17: concerned.
B19: =IF(OR('C5_DISASSEMBLY'!E20="Select a choice",'C5_DISASSEMBLY'!E22="Select a choice",'C5_DISASSEMBLY'!E23="Select a choice",'C5_DISASSEMBLY'!E24="Select a choice"),"Please fully complete criterion 5.1 before criterion 6.1","") -> 
B21: Commitment on the availability over time of spare parts (in years) | E21: Column A | G21: Column B | I21: Column C | K21: Column D
E22: Producer | G22: Spare parts retailers | I22: Repairers | K22: Consumers
B23: List 2 : Broken / malfunctioning parts | E23: Duration of availability | F23: Subtotal | G23: Duration of availability | H23: Subtotal | I23: Duration of availability | J23: Subtotal | K23: Duration of availability | L23: Subtotal
B24: 6.1.A | C24: LED bar | E24: If X ≥ 11 years | F24: =IF(E24='C6_Data'!$E$6,'C6_Data'!$F$6,IF(E24='C6_Data'!$E$7,'C6_Data'!$F$7,IF(E24='C6_Data'!$E$8,'C6_Data'!$F$8,IF(E24='C6_Data'!$E$9,'C6_Data'!$F$9,IF(E24='C6_Data'!$E$10,'C6_Data'!$F$10,IF(E24='C6_Data'!$E$11,'C6_Data'!$F$11,IF(E24='C6_Data'!$E$12,'C6_Data'!$F$12,IF(E24='C6_Data'!$E$13,'C6_Data'!$F$13,IF(E24='C6_Data'!$E$14,'C6_Data'!$F$14,IF(E24='C6_Data'!$E$15,'C6_Data'!$F$15,IF(E24='C6_Data'!$E$16,'C6_Data'!$F$16,0))))))))))) -> 11 | G24: If X ≥ 11 years | H24: =IF(G24='C6_Data'!$E$6,'C6_Data'!$F$6,IF(G24='C6_Data'!$E$7,'C6_Data'!$F$7,IF(G24='C6_Data'!$E$8,'C6_Data'!$F$8,IF(G24='C6_Data'!$E$9,'C6_Data'!$F$9,IF(G24='C6_Data'!$E$10,'C6_Data'!$F$10,IF(G24='C6_Data'!$E$11,'C6_Data'!$F$11,IF(G24='C6_Data'!$E$12,'C6_Data'!$F$12,IF(G24='C6_Data'!$E$13,'C6_Data'!$F$13,IF(G24='C6_Data'!$E$14,'C6_Data'!$F$14,IF(G24='C6_Data'!$E$15,'C6_Data'!$F$15,IF(G24='C6_Data'!$E$16,'C6_Data'!$F$16,0))))))))))) -> 11 | I24: If X < 7 years | J24: =IF(I24='C6_Data'!$E$6,'C6_Data'!$F$6,IF(I24='C6_Data'!$E$7,'C6_Data'!$F$7,IF(I24='C6_Data'!$E$8,'C6_Data'!$F$8,IF(I24='C6_Data'!$E$9,'C6_Data'!$F$9,IF(I24='C6_Data'!$E$10,'C6_Data'!$F$10,IF(I24='C6_Data'!$E$11,'C6_Data'!$F$11,IF(I24='C6_Data'!$E$12,'C6_Data'!$F$12,IF(I24='C6_Data'!$E$13,'C6_Data'!$F$13,IF(I24='C6_Data'!$E$14,'C6_Data'!$F$14,IF(I24='C6_Data'!$E$15,'C6_Data'!$F$15,IF(I24='C6_Data'!$E$16,'C6_Data'!$F$16,0))))))))))) -> 0 | K24: If X < 7 years | L24: =IF(K24='C6_Data'!$E$6,'C6_Data'!$F$6,IF(K24='C6_Data'!$E$7,'C6_Data'!$F$7,IF(K24='C6_Data'!$E$8,'C6_Data'!$F$8,IF(K24='C6_Data'!$E$9,'C6_Data'!$F$9,IF(K24='C6_Data'!$E$10,'C6_Data'!$F$10,IF(K24='C6_Data'!$E$11,'C6_Data'!$F$11,IF(K24='C6_Data'!$E$12,'C6_Data'!$F$12,IF(K24='C6_Data'!$E$13,'C6_Data'!$F$13,IF(K24='C6_Data'!$E$14,'C6_Data'!$F$14,IF(K24='C6_Data'!$E$15,'C6_Data'!$F$15,IF(K24='C6_Data'!$E$16,'C6_Data'!$F$16,0))))))))))) -> 0 | M24: ='C5_DISASSEMBLY'!E20 -> If DDi < 8
B25: 6.1.B | C25: External power supply | F25: =IF($L$10="Yes",0,IF(E25='C6_Data'!$E$6,'C6_Data'!$F$6,IF(E25='C6_Data'!$E$7,'C6_Data'!$F$7,IF(E25='C6_Data'!$E$8,'C6_Data'!$F$8,IF(E25='C6_Data'!$E$9,'C6_Data'!$F$9,IF(E25='C6_Data'!$E$10,'C6_Data'!$F$10,IF(E25='C6_Data'!$E$11,'C6_Data'!$F$11,IF(E25='C6_Data'!$E$12,'C6_Data'!$F$12,IF(E25='C6_Data'!$E$13,'C6_Data'!$F$13,IF(E25='C6_Data'!$E$14,'C6_Data'!$F$14,IF(E25='C6_Data'!$E$15,'C6_Data'!$F$15,IF(E25='C6_Data'!$E$16,'C6_Data'!$F$16,0)))))))))))) -> 0 | H25: =IF($L$10="Yes",0,IF(G25='C6_Data'!$E$6,'C6_Data'!$F$6,IF(G25='C6_Data'!$E$7,'C6_Data'!$F$7,IF(G25='C6_Data'!$E$8,'C6_Data'!$F$8,IF(G25='C6_Data'!$E$9,'C6_Data'!$F$9,IF(G25='C6_Data'!$E$10,'C6_Data'!$F$10,IF(G25='C6_Data'!$E$11,'C6_Data'!$F$11,IF(G25='C6_Data'!$E$12,'C6_Data'!$F$12,IF(G25='C6_Data'!$E$13,'C6_Data'!$F$13,IF(G25='C6_Data'!$E$14,'C6_Data'!$F$14,IF(G25='C6_Data'!$E$15,'C6_Data'!$F$15,IF(G25='C6_Data'!$E$16,'C6_Data'!$F$16,0)))))))))))) -> 0 | J25: =IF($L$10="Yes",0,IF(I25='C6_Data'!$E$6,'C6_Data'!$F$6,IF(I25='C6_Data'!$E$7,'C6_Data'!$F$7,IF(I25='C6_Data'!$E$8,'C6_Data'!$F$8,IF(I25='C6_Data'!$E$9,'C6_Data'!$F$9,IF(I25='C6_Data'!$E$10,'C6_Data'!$F$10,IF(I25='C6_Data'!$E$11,'C6_Data'!$F$11,IF(I25='C6_Data'!$E$12,'C6_Data'!$F$12,IF(I25='C6_Data'!$E$13,'C6_Data'!$F$13,IF(I25='C6_Data'!$E$14,'C6_Data'!$F$14,IF(I25='C6_Data'!$E$15,'C6_Data'!$F$15,IF(I25='C6_Data'!$E$16,'C6_Data'!$F$16,0)))))))))))) -> 0 | L25: =IF($L$10="Yes",0,IF(K25='C6_Data'!$E$6,'C6_Data'!$F$6,IF(K25='C6_Data'!$E$7,'C6_Data'!$F$7,IF(K25='C6_Data'!$E$8,'C6_Data'!$F$8,IF(K25='C6_Data'!$E$9,'C6_Data'!$F$9,IF(K25='C6_Data'!$E$10,'C6_Data'!$F$10,IF(K25='C6_Data'!$E$11,'C6_Data'!$F$11,IF(K25='C6_Data'!$E$12,'C6_Data'!$F$12,IF(K25='C6_Data'!$E$13,'C6_Data'!$F$13,IF(K25='C6_Data'!$E$14,'C6_Data'!$F$14,IF(K25='C6_Data'!$E$15,'C6_Data'!$F$15,IF(K25='C6_Data'!$E$16,'C6_Data'!$F$16,0)))))))))))) -> 0 | M25: ='C5_DISASSEMBLY'!E21 -> 0
B26: 6.1.C | C26: Internal power supply | E26: If X ≥ 11 years | F26: =IF($L$10="No",0,IF(E26='C6_Data'!$E$6,'C6_Data'!$F$6,IF(E26='C6_Data'!$E$7,'C6_Data'!$F$7,IF(E26='C6_Data'!$E$8,'C6_Data'!$F$8,IF(E26='C6_Data'!$E$9,'C6_Data'!$F$9,IF(E26='C6_Data'!$E$10,'C6_Data'!$F$10,IF(E26='C6_Data'!$E$11,'C6_Data'!$F$11,IF(E26='C6_Data'!$E$12,'C6_Data'!$F$12,IF(E26='C6_Data'!$E$13,'C6_Data'!$F$13,IF(E26='C6_Data'!$E$14,'C6_Data'!$F$14,IF(E26='C6_Data'!$E$15,'C6_Data'!$F$15,IF(E26='C6_Data'!$E$16,'C6_Data'!$F$16,0)))))))))))) -> 11 | G26: If X ≥ 11 years | H26: =IF($L$10="No",0,IF(G26='C6_Data'!$E$6,'C6_Data'!$F$6,IF(G26='C6_Data'!$E$7,'C6_Data'!$F$7,IF(G26='C6_Data'!$E$8,'C6_Data'!$F$8,IF(G26='C6_Data'!$E$9,'C6_Data'!$F$9,IF(G26='C6_Data'!$E$10,'C6_Data'!$F$10,IF(G26='C6_Data'!$E$11,'C6_Data'!$F$11,IF(G26='C6_Data'!$E$12,'C6_Data'!$F$12,IF(G26='C6_Data'!$E$13,'C6_Data'!$F$13,IF(G26='C6_Data'!$E$14,'C6_Data'!$F$14,IF(G26='C6_Data'!$E$15,'C6_Data'!$F$15,IF(G26='C6_Data'!$E$16,'C6_Data'!$F$16,0)))))))))))) -> 11 | I26: If X < 7 years | J26: =IF($L$10="No",0,IF(I26='C6_Data'!$E$6,'C6_Data'!$F$6,IF(I26='C6_Data'!$E$7,'C6_Data'!$F$7,IF(I26='C6_Data'!$E$8,'C6_Data'!$F$8,IF(I26='C6_Data'!$E$9,'C6_Data'!$F$9,IF(I26='C6_Data'!$E$10,'C6_Data'!$F$10,IF(I26='C6_Data'!$E$11,'C6_Data'!$F$11,IF(I26='C6_Data'!$E$12,'C6_Data'!$F$12,IF(I26='C6_Data'!$E$13,'C6_Data'!$F$13,IF(I26='C6_Data'!$E$14,'C6_Data'!$F$14,IF(I26='C6_Data'!$E$15,'C6_Data'!$F$15,IF(I26='C6_Data'!$E$16,'C6_Data'!$F$16,0)))))))))))) -> 0 | K26: If X < 7 years | L26: =IF($L$10="No",0,IF(K26='C6_Data'!$E$6,'C6_Data'!$F$6,IF(K26='C6_Data'!$E$7,'C6_Data'!$F$7,IF(K26='C6_Data'!$E$8,'C6_Data'!$F$8,IF(K26='C6_Data'!$E$9,'C6_Data'!$F$9,IF(K26='C6_Data'!$E$10,'C6_Data'!$F$10,IF(K26='C6_Data'!$E$11,'C6_Data'!$F$11,IF(K26='C6_Data'!$E$12,'C6_Data'!$F$12,IF(K26='C6_Data'!$E$13,'C6_Data'!$F$13,IF(K26='C6_Data'!$E$14,'C6_Data'!$F$14,IF(K26='C6_Data'!$E$15,'C6_Data'!$F$15,IF(K26='C6_Data'!$E$16,'C6_Data'!$F$16,0)))))))))))) -> 0 | M26: ='C5_DISASSEMBLY'!E22 -> If DDi < 8
B27: 6.1.D | C27: Main board | E27: If X ≥ 11 years | F27: =IF(E27='C6_Data'!$E$6,'C6_Data'!$F$6,IF(E27='C6_Data'!$E$7,'C6_Data'!$F$7,IF(E27='C6_Data'!$E$8,'C6_Data'!$F$8,IF(E27='C6_Data'!$E$9,'C6_Data'!$F$9,IF(E27='C6_Data'!$E$10,'C6_Data'!$F$10,IF(E27='C6_Data'!$E$11,'C6_Data'!$F$11,IF(E27='C6_Data'!$E$12,'C6_Data'!$F$12,IF(E27='C6_Data'!$E$13,'C6_Data'!$F$13,IF(E27='C6_Data'!$E$14,'C6_Data'!$F$14,IF(E27='C6_Data'!$E$15,'C6_Data'!$F$15,IF(E27='C6_Data'!$E$16,'C6_Data'!$F$16,0))))))))))) -> 11 | G27: If X ≥ 11 years | H27: =IF(G27='C6_Data'!$E$6,'C6_Data'!$F$6,IF(G27='C6_Data'!$E$7,'C6_Data'!$F$7,IF(G27='C6_Data'!$E$8,'C6_Data'!$F$8,IF(G27='C6_Data'!$E$9,'C6_Data'!$F$9,IF(G27='C6_Data'!$E$10,'C6_Data'!$F$10,IF(G27='C6_Data'!$E$11,'C6_Data'!$F$11,IF(G27='C6_Data'!$E$12,'C6_Data'!$F$12,IF(G27='C6_Data'!$E$13,'C6_Data'!$F$13,IF(G27='C6_Data'!$E$14,'C6_Data'!$F$14,IF(G27='C6_Data'!$E$15,'C6_Data'!$F$15,IF(G27='C6_Data'!$E$16,'C6_Data'!$F$16,0))))))))))) -> 11 | I27: If X < 7 years | J27: =IF(I27='C6_Data'!$E$6,'C6_Data'!$F$6,IF(I27='C6_Data'!$E$7,'C6_Data'!$F$7,IF(I27='C6_Data'!$E$8,'C6_Data'!$F$8,IF(I27='C6_Data'!$E$9,'C6_Data'!$F$9,IF(I27='C6_Data'!$E$10,'C6_Data'!$F$10,IF(I27='C6_Data'!$E$11,'C6_Data'!$F$11,IF(I27='C6_Data'!$E$12,'C6_Data'!$F$12,IF(I27='C6_Data'!$E$13,'C6_Data'!$F$13,IF(I27='C6_Data'!$E$14,'C6_Data'!$F$14,IF(I27='C6_Data'!$E$15,'C6_Data'!$F$15,IF(I27='C6_Data'!$E$16,'C6_Data'!$F$16,0))))))))))) -> 0 | K27: If X < 7 years | L27: =IF(K27='C6_Data'!$E$6,'C6_Data'!$F$6,IF(K27='C6_Data'!$E$7,'C6_Data'!$F$7,IF(K27='C6_Data'!$E$8,'C6_Data'!$F$8,IF(K27='C6_Data'!$E$9,'C6_Data'!$F$9,IF(K27='C6_Data'!$E$10,'C6_Data'!$F$10,IF(K27='C6_Data'!$E$11,'C6_Data'!$F$11,IF(K27='C6_Data'!$E$12,'C6_Data'!$F$12,IF(K27='C6_Data'!$E$13,'C6_Data'!$F$13,IF(K27='C6_Data'!$E$14,'C6_Data'!$F$14,IF(K27='C6_Data'!$E$15,'C6_Data'!$F$15,IF(K27='C6_Data'!$E$16,'C6_Data'!$F$16,0))))))))))) -> 0 | M27: ='C5_DISASSEMBLY'!E23 -> If DDi < 8
B28: 6.1.E | C28: Display panel / LCD panel | E28: If X ≥ 11 years | F28: =IF(E28='C6_Data'!$E$6,'C6_Data'!$F$6,IF(E28='C6_Data'!$E$7,'C6_Data'!$F$7,IF(E28='C6_Data'!$E$8,'C6_Data'!$F$8,IF(E28='C6_Data'!$E$9,'C6_Data'!$F$9,IF(E28='C6_Data'!$E$10,'C6_Data'!$F$10,IF(E28='C6_Data'!$E$11,'C6_Data'!$F$11,IF(E28='C6_Data'!$E$12,'C6_Data'!$F$12,IF(E28='C6_Data'!$E$13,'C6_Data'!$F$13,IF(E28='C6_Data'!$E$14,'C6_Data'!$F$14,IF(E28='C6_Data'!$E$15,'C6_Data'!$F$15,IF(E28='C6_Data'!$E$16,'C6_Data'!$F$16,0))))))))))) -> 11 | G28: If X ≥ 11 years | H28: =IF(G28='C6_Data'!$E$6,'C6_Data'!$F$6,IF(G28='C6_Data'!$E$7,'C6_Data'!$F$7,IF(G28='C6_Data'!$E$8,'C6_Data'!$F$8,IF(G28='C6_Data'!$E$9,'C6_Data'!$F$9,IF(G28='C6_Data'!$E$10,'C6_Data'!$F$10,IF(G28='C6_Data'!$E$11,'C6_Data'!$F$11,IF(G28='C6_Data'!$E$12,'C6_Data'!$F$12,IF(G28='C6_Data'!$E$13,'C6_Data'!$F$13,IF(G28='C6_Data'!$E$14,'C6_Data'!$F$14,IF(G28='C6_Data'!$E$15,'C6_Data'!$F$15,IF(G28='C6_Data'!$E$16,'C6_Data'!$F$16,0))))))))))) -> 11 | I28: If X < 7 years | J28: =IF(I28='C6_Data'!$E$6,'C6_Data'!$F$6,IF(I28='C6_Data'!$E$7,'C6_Data'!$F$7,IF(I28='C6_Data'!$E$8,'C6_Data'!$F$8,IF(I28='C6_Data'!$E$9,'C6_Data'!$F$9,IF(I28='C6_Data'!$E$10,'C6_Data'!$F$10,IF(I28='C6_Data'!$E$11,'C6_Data'!$F$11,IF(I28='C6_Data'!$E$12,'C6_Data'!$F$12,IF(I28='C6_Data'!$E$13,'C6_Data'!$F$13,IF(I28='C6_Data'!$E$14,'C6_Data'!$F$14,IF(I28='C6_Data'!$E$15,'C6_Data'!$F$15,IF(I28='C6_Data'!$E$16,'C6_Data'!$F$16,0))))))))))) -> 0 | K28: If X < 7 years | L28: =IF(K28='C6_Data'!$E$6,'C6_Data'!$F$6,IF(K28='C6_Data'!$E$7,'C6_Data'!$F$7,IF(K28='C6_Data'!$E$8,'C6_Data'!$F$8,IF(K28='C6_Data'!$E$9,'C6_Data'!$F$9,IF(K28='C6_Data'!$E$10,'C6_Data'!$F$10,IF(K28='C6_Data'!$E$11,'C6_Data'!$F$11,IF(K28='C6_Data'!$E$12,'C6_Data'!$F$12,IF(K28='C6_Data'!$E$13,'C6_Data'!$F$13,IF(K28='C6_Data'!$E$14,'C6_Data'!$F$14,IF(K28='C6_Data'!$E$15,'C6_Data'!$F$15,IF(K28='C6_Data'!$E$16,'C6_Data'!$F$16,0))))))))))) -> 0 | M28: ='C5_DISASSEMBLY'!E24 -> If DDi < 8
B29: Total sub-criterion 6.1 | F29: =SUM(F24:F28) -> 44 | H29: =SUM(H24:H28) -> 44 | J29: =SUM(J24:J28) -> 0 | L29: =SUM(L24:L28) -> 0 | M29: =F29+H29+J29+L29 -> 88 | N29: / 176
M30: =M29*10/176 -> 5 | N30: / 10
B32: SUB-CRITERION 6.2 : COMMITMENT ON THE AVAILABILITY OVER TIME OF SPARE PARTS - FUNCTIONAL PARTS (LIST 1)
B34: =IF(OR('C5_DISASSEMBLY'!E66="Select a choice",'C5_DISASSEMBLY'!E67="Select a choice",'C5_DISASSEMBLY'!E68="Select a choice",'C5_DISASSEMBLY'!E69="Select a choice",'C5_DISASSEMBLY'!E70="Select a choice",'C5_DISASSEMBLY'!E72="Select a choice"),"Please fully complete criterion 5.3 before criterion 6.2","") -> 
B36: Commitment on the availability over time of spare parts (in years) | E36: Column A | G36: Column B | I36: Column C | K36: Column D
E37: Producer | G37: Spare parts retailers | I37: Repairers | K37: Consumers
B38: List 1 : Functional parts | E38: Duration of availability | F38: Subtotal | G38: Duration of availability | H38: Subtotal | I38: Duration of availability | J38: Subtotal | K38: Duration of availability | L38: Subtotal
B39: 6.2.A | C39: Rear cover | E39: If X ≥ 11 years | F39: =IF(E39='C6_Data'!$E$6,'C6_Data'!$F$6,IF(E39='C6_Data'!$E$7,'C6_Data'!$F$7,IF(E39='C6_Data'!$E$8,'C6_Data'!$F$8,IF(E39='C6_Data'!$E$9,'C6_Data'!$F$9,IF(E39='C6_Data'!$E$10,'C6_Data'!$F$10,IF(E39='C6_Data'!$E$11,'C6_Data'!$F$11,IF(E39='C6_Data'!$E$12,'C6_Data'!$F$12,IF(E39='C6_Data'!$E$13,'C6_Data'!$F$13,IF(E39='C6_Data'!$E$14,'C6_Data'!$F$14,IF(E39='C6_Data'!$E$15,'C6_Data'!$F$15,IF(E39='C6_Data'!$E$16,'C6_Data'!$F$16,0))))))))))) -> 11 | G39: If X ≥ 11 years | H39: =IF(G39='C6_Data'!$E$6,'C6_Data'!$F$6,IF(G39='C6_Data'!$E$7,'C6_Data'!$F$7,IF(G39='C6_Data'!$E$8,'C6_Data'!$F$8,IF(G39='C6_Data'!$E$9,'C6_Data'!$F$9,IF(G39='C6_Data'!$E$10,'C6_Data'!$F$10,IF(G39='C6_Data'!$E$11,'C6_Data'!$F$11,IF(G39='C6_Data'!$E$12,'C6_Data'!$F$12,IF(G39='C6_Data'!$E$13,'C6_Data'!$F$13,IF(G39='C6_Data'!$E$14,'C6_Data'!$F$14,IF(G39='C6_Data'!$E$15,'C6_Data'!$F$15,IF(G39='C6_Data'!$E$16,'C6_Data'!$F$16,0))))))))))) -> 11 | I39: If X < 7 years | J39: =IF(I39='C6_Data'!$E$6,'C6_Data'!$F$6,IF(I39='C6_Data'!$E$7,'C6_Data'!$F$7,IF(I39='C6_Data'!$E$8,'C6_Data'!$F$8,IF(I39='C6_Data'!$E$9,'C6_Data'!$F$9,IF(I39='C6_Data'!$E$10,'C6_Data'!$F$10,IF(I39='C6_Data'!$E$11,'C6_Data'!$F$11,IF(I39='C6_Data'!$E$12,'C6_Data'!$F$12,IF(I39='C6_Data'!$E$13,'C6_Data'!$F$13,IF(I39='C6_Data'!$E$14,'C6_Data'!$F$14,IF(I39='C6_Data'!$E$15,'C6_Data'!$F$15,IF(I39='C6_Data'!$E$16,'C6_Data'!$F$16,0))))))))))) -> 0 | K39: If X < 7 years | L39: =IF(K39='C6_Data'!$E$6,'C6_Data'!$F$6,IF(K39='C6_Data'!$E$7,'C6_Data'!$F$7,IF(K39='C6_Data'!$E$8,'C6_Data'!$F$8,IF(K39='C6_Data'!$E$9,'C6_Data'!$F$9,IF(K39='C6_Data'!$E$10,'C6_Data'!$F$10,IF(K39='C6_Data'!$E$11,'C6_Data'!$F$11,IF(K39='C6_Data'!$E$12,'C6_Data'!$F$12,IF(K39='C6_Data'!$E$13,'C6_Data'!$F$13,IF(K39='C6_Data'!$E$14,'C6_Data'!$F$14,IF(K39='C6_Data'!$E$15,'C6_Data'!$F$15,IF(K39='C6_Data'!$E$16,'C6_Data'!$F$16,0))))))))))) -> 0
B40: 6.2.B | C40: Wifi module | E40: If X ≥ 11 years | F40: =IF($L$11="No",0,IF(E40='C6_Data'!$E$6,'C6_Data'!$F$6,IF(E40='C6_Data'!$E$7,'C6_Data'!$F$7,IF(E40='C6_Data'!$E$8,'C6_Data'!$F$8,IF(E40='C6_Data'!$E$9,'C6_Data'!$F$9,IF(E40='C6_Data'!$E$10,'C6_Data'!$F$10,IF(E40='C6_Data'!$E$11,'C6_Data'!$F$11,IF(E40='C6_Data'!$E$12,'C6_Data'!$F$12,IF(E40='C6_Data'!$E$13,'C6_Data'!$F$13,IF(E40='C6_Data'!$E$14,'C6_Data'!$F$14,IF(E40='C6_Data'!$E$15,'C6_Data'!$F$15,IF(E40='C6_Data'!$E$16,'C6_Data'!$F$16,0)))))))))))) -> 11 | G40: If X ≥ 11 years | H40: =IF($L$11="No",0,IF(G40='C6_Data'!$E$6,'C6_Data'!$F$6,IF(G40='C6_Data'!$E$7,'C6_Data'!$F$7,IF(G40='C6_Data'!$E$8,'C6_Data'!$F$8,IF(G40='C6_Data'!$E$9,'C6_Data'!$F$9,IF(G40='C6_Data'!$E$10,'C6_Data'!$F$10,IF(G40='C6_Data'!$E$11,'C6_Data'!$F$11,IF(G40='C6_Data'!$E$12,'C6_Data'!$F$12,IF(G40='C6_Data'!$E$13,'C6_Data'!$F$13,IF(G40='C6_Data'!$E$14,'C6_Data'!$F$14,IF(G40='C6_Data'!$E$15,'C6_Data'!$F$15,IF(G40='C6_Data'!$E$16,'C6_Data'!$F$16,0)))))))))))) -> 11 | I40: If X < 7 years | J40: =IF($L$11="No",0,IF(I40='C6_Data'!$E$6,'C6_Data'!$F$6,IF(I40='C6_Data'!$E$7,'C6_Data'!$F$7,IF(I40='C6_Data'!$E$8,'C6_Data'!$F$8,IF(I40='C6_Data'!$E$9,'C6_Data'!$F$9,IF(I40='C6_Data'!$E$10,'C6_Data'!$F$10,IF(I40='C6_Data'!$E$11,'C6_Data'!$F$11,IF(I40='C6_Data'!$E$12,'C6_Data'!$F$12,IF(I40='C6_Data'!$E$13,'C6_Data'!$F$13,IF(I40='C6_Data'!$E$14,'C6_Data'!$F$14,IF(I40='C6_Data'!$E$15,'C6_Data'!$F$15,IF(I40='C6_Data'!$E$16,'C6_Data'!$F$16,0)))))))))))) -> 0 | K40: If X < 7 years | L40: =IF($L$11="No",0,IF(K40='C6_Data'!$E$6,'C6_Data'!$F$6,IF(K40='C6_Data'!$E$7,'C6_Data'!$F$7,IF(K40='C6_Data'!$E$8,'C6_Data'!$F$8,IF(K40='C6_Data'!$E$9,'C6_Data'!$F$9,IF(K40='C6_Data'!$E$10,'C6_Data'!$F$10,IF(K40='C6_Data'!$E$11,'C6_Data'!$F$11,IF(K40='C6_Data'!$E$12,'C6_Data'!$F$12,IF(K40='C6_Data'!$E$13,'C6_Data'!$F$13,IF(K40='C6_Data'!$E$14,'C6_Data'!$F$14,IF(K40='C6_Data'!$E$15,'C6_Data'!$F$15,IF(K40='C6_Data'!$E$16,'C6_Data'!$F$16,0)))))))))))) -> 0
B41: 6.2.C | C41: Bluetooth module | E41: If X ≥ 11 years | F41: =IF($L$12="No",0,IF(E41='C6_Data'!$E$6,'C6_Data'!$F$6,IF(E41='C6_Data'!$E$7,'C6_Data'!$F$7,IF(E41='C6_Data'!$E$8,'C6_Data'!$F$8,IF(E41='C6_Data'!$E$9,'C6_Data'!$F$9,IF(E41='C6_Data'!$E$10,'C6_Data'!$F$10,IF(E41='C6_Data'!$E$11,'C6_Data'!$F$11,IF(E41='C6_Data'!$E$12,'C6_Data'!$F$12,IF(E41='C6_Data'!$E$13,'C6_Data'!$F$13,IF(E41='C6_Data'!$E$14,'C6_Data'!$F$14,IF(E41='C6_Data'!$E$15,'C6_Data'!$F$15,IF(E41='C6_Data'!$E$16,'C6_Data'!$F$16,0)))))))))))) -> 11 | G41: If X ≥ 11 years | H41: =IF($L$12="No",0,IF(G41='C6_Data'!$E$6,'C6_Data'!$F$6,IF(G41='C6_Data'!$E$7,'C6_Data'!$F$7,IF(G41='C6_Data'!$E$8,'C6_Data'!$F$8,IF(G41='C6_Data'!$E$9,'C6_Data'!$F$9,IF(G41='C6_Data'!$E$10,'C6_Data'!$F$10,IF(G41='C6_Data'!$E$11,'C6_Data'!$F$11,IF(G41='C6_Data'!$E$12,'C6_Data'!$F$12,IF(G41='C6_Data'!$E$13,'C6_Data'!$F$13,IF(G41='C6_Data'!$E$14,'C6_Data'!$F$14,IF(G41='C6_Data'!$E$15,'C6_Data'!$F$15,IF(G41='C6_Data'!$E$16,'C6_Data'!$F$16,0)))))))))))) -> 11 | I41: If X < 7 years | J41: =IF($L$12="No",0,IF(I41='C6_Data'!$E$6,'C6_Data'!$F$6,IF(I41='C6_Data'!$E$7,'C6_Data'!$F$7,IF(I41='C6_Data'!$E$8,'C6_Data'!$F$8,IF(I41='C6_Data'!$E$9,'C6_Data'!$F$9,IF(I41='C6_Data'!$E$10,'C6_Data'!$F$10,IF(I41='C6_Data'!$E$11,'C6_Data'!$F$11,IF(I41='C6_Data'!$E$12,'C6_Data'!$F$12,IF(I41='C6_Data'!$E$13,'C6_Data'!$F$13,IF(I41='C6_Data'!$E$14,'C6_Data'!$F$14,IF(I41='C6_Data'!$E$15,'C6_Data'!$F$15,IF(I41='C6_Data'!$E$16,'C6_Data'!$F$16,0)))))))))))) -> 0 | K41: If X < 7 years | L41: =IF($L$12="No",0,IF(K41='C6_Data'!$E$6,'C6_Data'!$F$6,IF(K41='C6_Data'!$E$7,'C6_Data'!$F$7,IF(K41='C6_Data'!$E$8,'C6_Data'!$F$8,IF(K41='C6_Data'!$E$9,'C6_Data'!$F$9,IF(K41='C6_Data'!$E$10,'C6_Data'!$F$10,IF(K41='C6_Data'!$E$11,'C6_Data'!$F$11,IF(K41='C6_Data'!$E$12,'C6_Data'!$F$12,IF(K41='C6_Data'!$E$13,'C6_Data'!$F$13,IF(K41='C6_Data'!$E$14,'C6_Data'!$F$14,IF(K41='C6_Data'!$E$15,'C6_Data'!$F$15,IF(K41='C6_Data'!$E$16,'C6_Data'!$F$16,0)))))))))))) -> 0
B42: 6.2.D | C42: Infrared receiver (IR) | E42: If X ≥ 11 years | F42: =IF(E42='C6_Data'!$E$6,'C6_Data'!$F$6,IF(E42='C6_Data'!$E$7,'C6_Data'!$F$7,IF(E42='C6_Data'!$E$8,'C6_Data'!$F$8,IF(E42='C6_Data'!$E$9,'C6_Data'!$F$9,IF(E42='C6_Data'!$E$10,'C6_Data'!$F$10,IF(E42='C6_Data'!$E$11,'C6_Data'!$F$11,IF(E42='C6_Data'!$E$12,'C6_Data'!$F$12,IF(E42='C6_Data'!$E$13,'C6_Data'!$F$13,IF(E42='C6_Data'!$E$14,'C6_Data'!$F$14,IF(E42='C6_Data'!$E$15,'C6_Data'!$F$15,IF(E42='C6_Data'!$E$16,'C6_Data'!$F$16,0))))))))))) -> 11 | G42: If X ≥ 11 years | H42: =IF(G42='C6_Data'!$E$6,'C6_Data'!$F$6,IF(G42='C6_Data'!$E$7,'C6_Data'!$F$7,IF(G42='C6_Data'!$E$8,'C6_Data'!$F$8,IF(G42='C6_Data'!$E$9,'C6_Data'!$F$9,IF(G42='C6_Data'!$E$10,'C6_Data'!$F$10,IF(G42='C6_Data'!$E$11,'C6_Data'!$F$11,IF(G42='C6_Data'!$E$12,'C6_Data'!$F$12,IF(G42='C6_Data'!$E$13,'C6_Data'!$F$13,IF(G42='C6_Data'!$E$14,'C6_Data'!$F$14,IF(G42='C6_Data'!$E$15,'C6_Data'!$F$15,IF(G42='C6_Data'!$E$16,'C6_Data'!$F$16,0))))))))))) -> 11 | I42: If X < 7 years | J42: =IF(I42='C6_Data'!$E$6,'C6_Data'!$F$6,IF(I42='C6_Data'!$E$7,'C6_Data'!$F$7,IF(I42='C6_Data'!$E$8,'C6_Data'!$F$8,IF(I42='C6_Data'!$E$9,'C6_Data'!$F$9,IF(I42='C6_Data'!$E$10,'C6_Data'!$F$10,IF(I42='C6_Data'!$E$11,'C6_Data'!$F$11,IF(I42='C6_Data'!$E$12,'C6_Data'!$F$12,IF(I42='C6_Data'!$E$13,'C6_Data'!$F$13,IF(I42='C6_Data'!$E$14,'C6_Data'!$F$14,IF(I42='C6_Data'!$E$15,'C6_Data'!$F$15,IF(I42='C6_Data'!$E$16,'C6_Data'!$F$16,0))))))))))) -> 0 | K42: If X < 7 years | L42: =IF(K42='C6_Data'!$E$6,'C6_Data'!$F$6,IF(K42='C6_Data'!$E$7,'C6_Data'!$F$7,IF(K42='C6_Data'!$E$8,'C6_Data'!$F$8,IF(K42='C6_Data'!$E$9,'C6_Data'!$F$9,IF(K42='C6_Data'!$E$10,'C6_Data'!$F$10,IF(K42='C6_Data'!$E$11,'C6_Data'!$F$11,IF(K42='C6_Data'!$E$12,'C6_Data'!$F$12,IF(K42='C6_Data'!$E$13,'C6_Data'!$F$13,IF(K42='C6_Data'!$E$14,'C6_Data'!$F$14,IF(K42='C6_Data'!$E$15,'C6_Data'!$F$15,IF(K42='C6_Data'!$E$16,'C6_Data'!$F$16,0))))))))))) -> 0
B43: 6.2.E | C43: Loudspeaker | E43: If X ≥ 11 years | F43: =IF(E43='C6_Data'!$E$6,'C6_Data'!$F$6,IF(E43='C6_Data'!$E$7,'C6_Data'!$F$7,IF(E43='C6_Data'!$E$8,'C6_Data'!$F$8,IF(E43='C6_Data'!$E$9,'C6_Data'!$F$9,IF(E43='C6_Data'!$E$10,'C6_Data'!$F$10,IF(E43='C6_Data'!$E$11,'C6_Data'!$F$11,IF(E43='C6_Data'!$E$12,'C6_Data'!$F$12,IF(E43='C6_Data'!$E$13,'C6_Data'!$F$13,IF(E43='C6_Data'!$E$14,'C6_Data'!$F$14,IF(E43='C6_Data'!$E$15,'C6_Data'!$F$15,IF(E43='C6_Data'!$E$16,'C6_Data'!$F$16,0))))))))))) -> 11 | G43: If X ≥ 11 years | H43: =IF(G43='C6_Data'!$E$6,'C6_Data'!$F$6,IF(G43='C6_Data'!$E$7,'C6_Data'!$F$7,IF(G43='C6_Data'!$E$8,'C6_Data'!$F$8,IF(G43='C6_Data'!$E$9,'C6_Data'!$F$9,IF(G43='C6_Data'!$E$10,'C6_Data'!$F$10,IF(G43='C6_Data'!$E$11,'C6_Data'!$F$11,IF(G43='C6_Data'!$E$12,'C6_Data'!$F$12,IF(G43='C6_Data'!$E$13,'C6_Data'!$F$13,IF(G43='C6_Data'!$E$14,'C6_Data'!$F$14,IF(G43='C6_Data'!$E$15,'C6_Data'!$F$15,IF(G43='C6_Data'!$E$16,'C6_Data'!$F$16,0))))))))))) -> 11 | I43: If X < 7 years | J43: =IF(I43='C6_Data'!$E$6,'C6_Data'!$F$6,IF(I43='C6_Data'!$E$7,'C6_Data'!$F$7,IF(I43='C6_Data'!$E$8,'C6_Data'!$F$8,IF(I43='C6_Data'!$E$9,'C6_Data'!$F$9,IF(I43='C6_Data'!$E$10,'C6_Data'!$F$10,IF(I43='C6_Data'!$E$11,'C6_Data'!$F$11,IF(I43='C6_Data'!$E$12,'C6_Data'!$F$12,IF(I43='C6_Data'!$E$13,'C6_Data'!$F$13,IF(I43='C6_Data'!$E$14,'C6_Data'!$F$14,IF(I43='C6_Data'!$E$15,'C6_Data'!$F$15,IF(I43='C6_Data'!$E$16,'C6_Data'!$F$16,0))))))))))) -> 0 | K43: If X < 7 years | L43: =IF(K43='C6_Data'!$E$6,'C6_Data'!$F$6,IF(K43='C6_Data'!$E$7,'C6_Data'!$F$7,IF(K43='C6_Data'!$E$8,'C6_Data'!$F$8,IF(K43='C6_Data'!$E$9,'C6_Data'!$F$9,IF(K43='C6_Data'!$E$10,'C6_Data'!$F$10,IF(K43='C6_Data'!$E$11,'C6_Data'!$F$11,IF(K43='C6_Data'!$E$12,'C6_Data'!$F$12,IF(K43='C6_Data'!$E$13,'C6_Data'!$F$13,IF(K43='C6_Data'!$E$14,'C6_Data'!$F$14,IF(K43='C6_Data'!$E$15,'C6_Data'!$F$15,IF(K43='C6_Data'!$E$16,'C6_Data'!$F$16,0))))))))))) -> 0
B44: 6.2.F | C44: Connectors to connect external equipment (cable,, antenna, USB, DVD and Blue-Ray) | E44: If X ≥ 11 years | F44: =IF(E44='C6_Data'!$E$6,'C6_Data'!$F$6,IF(E44='C6_Data'!$E$7,'C6_Data'!$F$7,IF(E44='C6_Data'!$E$8,'C6_Data'!$F$8,IF(E44='C6_Data'!$E$9,'C6_Data'!$F$9,IF(E44='C6_Data'!$E$10,'C6_Data'!$F$10,IF(E44='C6_Data'!$E$11,'C6_Data'!$F$11,IF(E44='C6_Data'!$E$12,'C6_Data'!$F$12,IF(E44='C6_Data'!$E$13,'C6_Data'!$F$13,IF(E44='C6_Data'!$E$14,'C6_Data'!$F$14,IF(E44='C6_Data'!$E$15,'C6_Data'!$F$15,IF(E44='C6_Data'!$E$16,'C6_Data'!$F$16,0))))))))))) -> 11 | G44: If X ≥ 11 years | H44: =IF(G44='C6_Data'!$E$6,'C6_Data'!$F$6,IF(G44='C6_Data'!$E$7,'C6_Data'!$F$7,IF(G44='C6_Data'!$E$8,'C6_Data'!$F$8,IF(G44='C6_Data'!$E$9,'C6_Data'!$F$9,IF(G44='C6_Data'!$E$10,'C6_Data'!$F$10,IF(G44='C6_Data'!$E$11,'C6_Data'!$F$11,IF(G44='C6_Data'!$E$12,'C6_Data'!$F$12,IF(G44='C6_Data'!$E$13,'C6_Data'!$F$13,IF(G44='C6_Data'!$E$14,'C6_Data'!$F$14,IF(G44='C6_Data'!$E$15,'C6_Data'!$F$15,IF(G44='C6_Data'!$E$16,'C6_Data'!$F$16,0))))))))))) -> 11 | I44: If X < 7 years | J44: =IF(I44='C6_Data'!$E$6,'C6_Data'!$F$6,IF(I44='C6_Data'!$E$7,'C6_Data'!$F$7,IF(I44='C6_Data'!$E$8,'C6_Data'!$F$8,IF(I44='C6_Data'!$E$9,'C6_Data'!$F$9,IF(I44='C6_Data'!$E$10,'C6_Data'!$F$10,IF(I44='C6_Data'!$E$11,'C6_Data'!$F$11,IF(I44='C6_Data'!$E$12,'C6_Data'!$F$12,IF(I44='C6_Data'!$E$13,'C6_Data'!$F$13,IF(I44='C6_Data'!$E$14,'C6_Data'!$F$14,IF(I44='C6_Data'!$E$15,'C6_Data'!$F$15,IF(I44='C6_Data'!$E$16,'C6_Data'!$F$16,0))))))))))) -> 0 | K44: If X < 7 years | L44: =IF(K44='C6_Data'!$E$6,'C6_Data'!$F$6,IF(K44='C6_Data'!$E$7,'C6_Data'!$F$7,IF(K44='C6_Data'!$E$8,'C6_Data'!$F$8,IF(K44='C6_Data'!$E$9,'C6_Data'!$F$9,IF(K44='C6_Data'!$E$10,'C6_Data'!$F$10,IF(K44='C6_Data'!$E$11,'C6_Data'!$F$11,IF(K44='C6_Data'!$E$12,'C6_Data'!$F$12,IF(K44='C6_Data'!$E$13,'C6_Data'!$F$13,IF(K44='C6_Data'!$E$14,'C6_Data'!$F$14,IF(K44='C6_Data'!$E$15,'C6_Data'!$F$15,IF(K44='C6_Data'!$E$16,'C6_Data'!$F$16,0))))))))))) -> 0
B45: 6.2.G | C45: Remote control | E45: If X ≥ 11 years | F45: =IF(E45='C6_Data'!$E$6,'C6_Data'!$F$6,IF(E45='C6_Data'!$E$7,'C6_Data'!$F$7,IF(E45='C6_Data'!$E$8,'C6_Data'!$F$8,IF(E45='C6_Data'!$E$9,'C6_Data'!$F$9,IF(E45='C6_Data'!$E$10,'C6_Data'!$F$10,IF(E45='C6_Data'!$E$11,'C6_Data'!$F$11,IF(E45='C6_Data'!$E$12,'C6_Data'!$F$12,IF(E45='C6_Data'!$E$13,'C6_Data'!$F$13,IF(E45='C6_Data'!$E$14,'C6_Data'!$F$14,IF(E45='C6_Data'!$E$15,'C6_Data'!$F$15,IF(E45='C6_Data'!$E$16,'C6_Data'!$F$16,0))))))))))) -> 11 | G45: If X ≥ 11 years | H45: =IF(G45='C6_Data'!$E$6,'C6_Data'!$F$6,IF(G45='C6_Data'!$E$7,'C6_Data'!$F$7,IF(G45='C6_Data'!$E$8,'C6_Data'!$F$8,IF(G45='C6_Data'!$E$9,'C6_Data'!$F$9,IF(G45='C6_Data'!$E$10,'C6_Data'!$F$10,IF(G45='C6_Data'!$E$11,'C6_Data'!$F$11,IF(G45='C6_Data'!$E$12,'C6_Data'!$F$12,IF(G45='C6_Data'!$E$13,'C6_Data'!$F$13,IF(G45='C6_Data'!$E$14,'C6_Data'!$F$14,IF(G45='C6_Data'!$E$15,'C6_Data'!$F$15,IF(G45='C6_Data'!$E$16,'C6_Data'!$F$16,0))))))))))) -> 11 | I45: If X ≥ 11 years | J45: =IF(I45='C6_Data'!$E$6,'C6_Data'!$F$6,IF(I45='C6_Data'!$E$7,'C6_Data'!$F$7,IF(I45='C6_Data'!$E$8,'C6_Data'!$F$8,IF(I45='C6_Data'!$E$9,'C6_Data'!$F$9,IF(I45='C6_Data'!$E$10,'C6_Data'!$F$10,IF(I45='C6_Data'!$E$11,'C6_Data'!$F$11,IF(I45='C6_Data'!$E$12,'C6_Data'!$F$12,IF(I45='C6_Data'!$E$13,'C6_Data'!$F$13,IF(I45='C6_Data'!$E$14,'C6_Data'!$F$14,IF(I45='C6_Data'!$E$15,'C6_Data'!$F$15,IF(I45='C6_Data'!$E$16,'C6_Data'!$F$16,0))))))))))) -> 11 | K45: If X ≥ 11 years | L45: =IF(K45='C6_Data'!$E$6,'C6_Data'!$F$6,IF(K45='C6_Data'!$E$7,'C6_Data'!$F$7,IF(K45='C6_Data'!$E$8,'C6_Data'!$F$8,IF(K45='C6_Data'!$E$9,'C6_Data'!$F$9,IF(K45='C6_Data'!$E$10,'C6_Data'!$F$10,IF(K45='C6_Data'!$E$11,'C6_Data'!$F$11,IF(K45='C6_Data'!$E$12,'C6_Data'!$F$12,IF(K45='C6_Data'!$E$13,'C6_Data'!$F$13,IF(K45='C6_Data'!$E$14,'C6_Data'!$F$14,IF(K45='C6_Data'!$E$15,'C6_Data'!$F$15,IF(K45='C6_Data'!$E$16,'C6_Data'!$F$16,0))))))))))) -> 11
B46: Total sub-criterion 6.2 | F46: =SUM(F39:F45) -> 77 | H46: =SUM(H39:H45) -> 77 | J46: =SUM(J39:J45) -> 11 | L46: =SUM(L39:L45) -> 11 | M46: =F46+H46+J46+L46 -> 176 | N46: =IF(AND(L11="No",L12="No"),"/220",IF(OR(L11="No",L12="No"),"/ 264","/ 308")) -> / 308
M47: =IF(AND(L11="No",L12="No"),(M46*10/220),IF(OR(L11="No",L12="No"),(M46*10/264),(M46*10/308))) -> 5.714285714 | N47: / 10
B49: SUB-CRITERION 6.3 : COMMITMENT ON THE DELIVERY TIME OF SPARE PARTS - BROKEN/MALFUNCTIONING PARTS (LIST 2)
B51: =IF(OR(G24="Select a choice",G25="Select a choice",G26="Select a choice",G27="Select a choice",G28="Select a choice",I24="Select a choice",I25="Select a choice",I26="Select a choice",I27="Select a choice",I28="Select a choice",K24="Select a choice",K25="Select a choice",K26="Select a choice",K27="Select a choice",K28="Select a choice",E24="Select a choice",E25="Select a choice",E26="Select a choice",E27="Select a choice",E28="Select a choice"),"Please fully complete criterion 6.1 before criterion 6.3","") -> 
B53: Commitment on the delivery time of spare parts (in working days) | E53: Column A | G53: Column B | I53: Column C | K53: Column D
E54: Producer | G54: Spare parts retailers | I54: Repairers | K54: Consumers
B55: List 2 : Broken / malfunctioning parts | E55: Delivery time | F55: Subtotal | G55: Delivery time | H55: Subtotal | I55: Delivery time | J55: Subtotal | K55: Delivery time | L55: Subtotal
B56: 6.3.A | C56: LED bar | E56: If X ≤ 3 d | F56: =IF(E56='C6_Data'!$E$24,'C6_Data'!$F$24,IF(E56='C6_Data'!$E$25,'C6_Data'!$F$25,IF(E56='C6_Data'!$E$26,'C6_Data'!$F$26,IF(E56='C6_Data'!$E$27,'C6_Data'!$F$27,IF(E56='C6_Data'!$E$28,'C6_Data'!$F$28,IF(E56='C6_Data'!$E$29,'C6_Data'!$F$29,IF(E56='C6_Data'!$E$30,'C6_Data'!$F$30,IF(E56='C6_Data'!$E$31,'C6_Data'!$F$31,0)))))))) -> 3 | G56: If X ≤ 3 d | H56: =IF(G56='C6_Data'!$E$24,'C6_Data'!$F$24,IF(G56='C6_Data'!$E$25,'C6_Data'!$F$25,IF(G56='C6_Data'!$E$26,'C6_Data'!$F$26,IF(G56='C6_Data'!$E$27,'C6_Data'!$F$27,IF(G56='C6_Data'!$E$28,'C6_Data'!$F$28,IF(G56='C6_Data'!$E$29,'C6_Data'!$F$29,IF(G56='C6_Data'!$E$30,'C6_Data'!$F$30,IF(G56='C6_Data'!$E$31,'C6_Data'!$F$31,0)))))))) -> 3 | I56: If X >10 d | J56: =IF(I56='C6_Data'!$E$24,'C6_Data'!$F$24,IF(I56='C6_Data'!$E$25,'C6_Data'!$F$25,IF(I56='C6_Data'!$E$26,'C6_Data'!$F$26,IF(I56='C6_Data'!$E$27,'C6_Data'!$F$27,IF(I56='C6_Data'!$E$28,'C6_Data'!$F$28,IF(I56='C6_Data'!$E$29,'C6_Data'!$F$29,IF(I56='C6_Data'!$E$30,'C6_Data'!$F$30,IF(I56='C6_Data'!$E$31,'C6_Data'!$F$31,0)))))))) -> 0 | K56: If X >10 d | L56: =IF(K56='C6_Data'!$E$24,'C6_Data'!$F$24,IF(K56='C6_Data'!$E$25,'C6_Data'!$F$25,IF(K56='C6_Data'!$E$26,'C6_Data'!$F$26,IF(K56='C6_Data'!$E$27,'C6_Data'!$F$27,IF(K56='C6_Data'!$E$28,'C6_Data'!$F$28,IF(K56='C6_Data'!$E$29,'C6_Data'!$F$29,IF(K56='C6_Data'!$E$30,'C6_Data'!$F$30,IF(K56='C6_Data'!$E$31,'C6_Data'!$F$31,0)))))))) -> 0
B57: 6.3.B | C57: External power supply | F57: =IF($L$10="Yes",0,IF(E57='C6_Data'!$E$24,'C6_Data'!$F$24,IF(E57='C6_Data'!$E$25,'C6_Data'!$F$25,IF(E57='C6_Data'!$E$26,'C6_Data'!$F$26,IF(E57='C6_Data'!$E$27,'C6_Data'!$F$27,IF(E57='C6_Data'!$E$28,'C6_Data'!$F$28,IF(E57='C6_Data'!$E$29,'C6_Data'!$F$29,IF(E57='C6_Data'!$E$30,'C6_Data'!$F$30,IF(E57='C6_Data'!$E$31,'C6_Data'!$F$31,0))))))))) -> 0 | H57: =IF($L$10="Yes",0,IF(G57='C6_Data'!$E$24,'C6_Data'!$F$24,IF(G57='C6_Data'!$E$25,'C6_Data'!$F$25,IF(G57='C6_Data'!$E$26,'C6_Data'!$F$26,IF(G57='C6_Data'!$E$27,'C6_Data'!$F$27,IF(G57='C6_Data'!$E$28,'C6_Data'!$F$28,IF(G57='C6_Data'!$E$29,'C6_Data'!$F$29,IF(G57='C6_Data'!$E$30,'C6_Data'!$F$30,IF(G57='C6_Data'!$E$31,'C6_Data'!$F$31,0))))))))) -> 0 | J57: =IF($L$10="Yes",0,IF(I57='C6_Data'!$E$24,'C6_Data'!$F$24,IF(I57='C6_Data'!$E$25,'C6_Data'!$F$25,IF(I57='C6_Data'!$E$26,'C6_Data'!$F$26,IF(I57='C6_Data'!$E$27,'C6_Data'!$F$27,IF(I57='C6_Data'!$E$28,'C6_Data'!$F$28,IF(I57='C6_Data'!$E$29,'C6_Data'!$F$29,IF(I57='C6_Data'!$E$30,'C6_Data'!$F$30,IF(I57='C6_Data'!$E$31,'C6_Data'!$F$31,0))))))))) -> 0 | L57: =IF($L$10="Yes",0,IF(K57='C6_Data'!$E$24,'C6_Data'!$F$24,IF(K57='C6_Data'!$E$25,'C6_Data'!$F$25,IF(K57='C6_Data'!$E$26,'C6_Data'!$F$26,IF(K57='C6_Data'!$E$27,'C6_Data'!$F$27,IF(K57='C6_Data'!$E$28,'C6_Data'!$F$28,IF(K57='C6_Data'!$E$29,'C6_Data'!$F$29,IF(K57='C6_Data'!$E$30,'C6_Data'!$F$30,IF(K57='C6_Data'!$E$31,'C6_Data'!$F$31,0))))))))) -> 0
B58: 6.3.C | C58: Internal power supply | E58: If X ≤ 3 d | F58: =IF($L$10="No",0,IF(E58='C6_Data'!$E$24,'C6_Data'!$F$24,IF(E58='C6_Data'!$E$25,'C6_Data'!$F$25,IF(E58='C6_Data'!$E$26,'C6_Data'!$F$26,IF(E58='C6_Data'!$E$27,'C6_Data'!$F$27,IF(E58='C6_Data'!$E$28,'C6_Data'!$F$28,IF(E58='C6_Data'!$E$29,'C6_Data'!$F$29,IF(E58='C6_Data'!$E$30,'C6_Data'!$F$30,IF(E58='C6_Data'!$E$31,'C6_Data'!$F$31,0))))))))) -> 3 | G58: If X ≤ 3 d | H58: =IF($L$10="No",0,IF(G58='C6_Data'!$E$24,'C6_Data'!$F$24,IF(G58='C6_Data'!$E$25,'C6_Data'!$F$25,IF(G58='C6_Data'!$E$26,'C6_Data'!$F$26,IF(G58='C6_Data'!$E$27,'C6_Data'!$F$27,IF(G58='C6_Data'!$E$28,'C6_Data'!$F$28,IF(G58='C6_Data'!$E$29,'C6_Data'!$F$29,IF(G58='C6_Data'!$E$30,'C6_Data'!$F$30,IF(G58='C6_Data'!$E$31,'C6_Data'!$F$31,0))))))))) -> 3 | I58: If X >10 d | J58: =IF($L$10="No",0,IF(I58='C6_Data'!$E$24,'C6_Data'!$F$24,IF(I58='C6_Data'!$E$25,'C6_Data'!$F$25,IF(I58='C6_Data'!$E$26,'C6_Data'!$F$26,IF(I58='C6_Data'!$E$27,'C6_Data'!$F$27,IF(I58='C6_Data'!$E$28,'C6_Data'!$F$28,IF(I58='C6_Data'!$E$29,'C6_Data'!$F$29,IF(I58='C6_Data'!$E$30,'C6_Data'!$F$30,IF(I58='C6_Data'!$E$31,'C6_Data'!$F$31,0))))))))) -> 0 | K58: If X >10 d | L58: =IF($L$10="No",0,IF(K58='C6_Data'!$E$24,'C6_Data'!$F$24,IF(K58='C6_Data'!$E$25,'C6_Data'!$F$25,IF(K58='C6_Data'!$E$26,'C6_Data'!$F$26,IF(K58='C6_Data'!$E$27,'C6_Data'!$F$27,IF(K58='C6_Data'!$E$28,'C6_Data'!$F$28,IF(K58='C6_Data'!$E$29,'C6_Data'!$F$29,IF(K58='C6_Data'!$E$30,'C6_Data'!$F$30,IF(K58='C6_Data'!$E$31,'C6_Data'!$F$31,0))))))))) -> 0
B59: 6.3.D | C59: Main board | E59: If X ≤ 3 d | F59: =IF(E59='C6_Data'!$E$24,'C6_Data'!$F$24,IF(E59='C6_Data'!$E$25,'C6_Data'!$F$25,IF(E59='C6_Data'!$E$26,'C6_Data'!$F$26,IF(E59='C6_Data'!$E$27,'C6_Data'!$F$27,IF(E59='C6_Data'!$E$28,'C6_Data'!$F$28,IF(E59='C6_Data'!$E$29,'C6_Data'!$F$29,IF(E59='C6_Data'!$E$30,'C6_Data'!$F$30,IF(E59='C6_Data'!$E$31,'C6_Data'!$F$31,0)))))))) -> 3 | G59: If X ≤ 3 d | H59: =IF(G59='C6_Data'!$E$24,'C6_Data'!$F$24,IF(G59='C6_Data'!$E$25,'C6_Data'!$F$25,IF(G59='C6_Data'!$E$26,'C6_Data'!$F$26,IF(G59='C6_Data'!$E$27,'C6_Data'!$F$27,IF(G59='C6_Data'!$E$28,'C6_Data'!$F$28,IF(G59='C6_Data'!$E$29,'C6_Data'!$F$29,IF(G59='C6_Data'!$E$30,'C6_Data'!$F$30,IF(G59='C6_Data'!$E$31,'C6_Data'!$F$31,0)))))))) -> 3 | I59: If X >10 d | J59: =IF(I59='C6_Data'!$E$24,'C6_Data'!$F$24,IF(I59='C6_Data'!$E$25,'C6_Data'!$F$25,IF(I59='C6_Data'!$E$26,'C6_Data'!$F$26,IF(I59='C6_Data'!$E$27,'C6_Data'!$F$27,IF(I59='C6_Data'!$E$28,'C6_Data'!$F$28,IF(I59='C6_Data'!$E$29,'C6_Data'!$F$29,IF(I59='C6_Data'!$E$30,'C6_Data'!$F$30,IF(I59='C6_Data'!$E$31,'C6_Data'!$F$31,0)))))))) -> 0 | K59: If X >10 d | L59: =IF(K59='C6_Data'!$E$24,'C6_Data'!$F$24,IF(K59='C6_Data'!$E$25,'C6_Data'!$F$25,IF(K59='C6_Data'!$E$26,'C6_Data'!$F$26,IF(K59='C6_Data'!$E$27,'C6_Data'!$F$27,IF(K59='C6_Data'!$E$28,'C6_Data'!$F$28,IF(K59='C6_Data'!$E$29,'C6_Data'!$F$29,IF(K59='C6_Data'!$E$30,'C6_Data'!$F$30,IF(K59='C6_Data'!$E$31,'C6_Data'!$F$31,0)))))))) -> 0
B60: 6.3.E | C60: Display panel / LCD panel | E60: If X ≤ 3 d | F60: =IF(E60='C6_Data'!$E$24,'C6_Data'!$F$24,IF(E60='C6_Data'!$E$25,'C6_Data'!$F$25,IF(E60='C6_Data'!$E$26,'C6_Data'!$F$26,IF(E60='C6_Data'!$E$27,'C6_Data'!$F$27,IF(E60='C6_Data'!$E$28,'C6_Data'!$F$28,IF(E60='C6_Data'!$E$29,'C6_Data'!$F$29,IF(E60='C6_Data'!$E$30,'C6_Data'!$F$30,IF(E60='C6_Data'!$E$31,'C6_Data'!$F$31,0)))))))) -> 3 | G60: If X ≤ 3 d | H60: =IF(G60='C6_Data'!$E$24,'C6_Data'!$F$24,IF(G60='C6_Data'!$E$25,'C6_Data'!$F$25,IF(G60='C6_Data'!$E$26,'C6_Data'!$F$26,IF(G60='C6_Data'!$E$27,'C6_Data'!$F$27,IF(G60='C6_Data'!$E$28,'C6_Data'!$F$28,IF(G60='C6_Data'!$E$29,'C6_Data'!$F$29,IF(G60='C6_Data'!$E$30,'C6_Data'!$F$30,IF(G60='C6_Data'!$E$31,'C6_Data'!$F$31,0)))))))) -> 3 | I60: If X >10 d | J60: =IF(I60='C6_Data'!$E$24,'C6_Data'!$F$24,IF(I60='C6_Data'!$E$25,'C6_Data'!$F$25,IF(I60='C6_Data'!$E$26,'C6_Data'!$F$26,IF(I60='C6_Data'!$E$27,'C6_Data'!$F$27,IF(I60='C6_Data'!$E$28,'C6_Data'!$F$28,IF(I60='C6_Data'!$E$29,'C6_Data'!$F$29,IF(I60='C6_Data'!$E$30,'C6_Data'!$F$30,IF(I60='C6_Data'!$E$31,'C6_Data'!$F$31,0)))))))) -> 0 | K60: If X >10 d | L60: =IF(K60='C6_Data'!$E$24,'C6_Data'!$F$24,IF(K60='C6_Data'!$E$25,'C6_Data'!$F$25,IF(K60='C6_Data'!$E$26,'C6_Data'!$F$26,IF(K60='C6_Data'!$E$27,'C6_Data'!$F$27,IF(K60='C6_Data'!$E$28,'C6_Data'!$F$28,IF(K60='C6_Data'!$E$29,'C6_Data'!$F$29,IF(K60='C6_Data'!$E$30,'C6_Data'!$F$30,IF(K60='C6_Data'!$E$31,'C6_Data'!$F$31,0)))))))) -> 0
B61: Total sub-criterion 6.3 | F61: =SUM(F56:F60) -> 12 | H61: =SUM(H56:H60) -> 12 | J61: =SUM(J56:J60) -> 0 | L61: =SUM(L56:L60) -> 0 | M61: =F61+H61+L61+J61 -> 24 | N61: / 48
M62: =M61*10/48 -> 5 | N62: / 10
B64: SUB-CRITERION 6.4 : COMMITMENT ON THE DELIVERY TIME OF SPARE PARTS - FUNCTIONAL PARTS (LIST 1)
B66: =IF(OR(G39="Select a choice",G40="Select a choice",G41="Select a choice",G42="Select a choice",G43="Select a choice",G45="Select a choice",I39="Select a choice",I40="Select a choice",I41="Select a choice",I42="Select a choice",I43="Select a choice",I45="Select a choice",K39="Select a choice",K40="Select a choice",K41="Select a choice",K42="Select a choice",K43="Select a choice",K45="Select a choice",E39="Select a choice",E40="Select a choice",E41="Select a choice",E42="Select a choice",E43="Select a choice",E45="Select a choice"),"Please fully complete criterion 6.2 before criterion 6.4","") -> 
B68: Commitment on the delivery time of spare parts (in working days) | E68: Column A | G68: Column B | I68: Column C | K68: Column D
E69: Producer | G69: Spare parts retailers | I69: Repairers | K69: Consumers
B70: List 1 : Functional parts | E70: Delivery time | F70: Subtotal | G70: Delivery time | H70: Subtotal | I70: Delivery time | J70: Subtotal | K70: Delivery time | L70: Subtotal
B71: 6.4.A | C71: Rear cover | E71: If X ≤ 3 d | F71: =IF(E71='C6_Data'!$E$24,'C6_Data'!$F$24,IF(E71='C6_Data'!$E$25,'C6_Data'!$F$25,IF(E71='C6_Data'!$E$26,'C6_Data'!$F$26,IF(E71='C6_Data'!$E$27,'C6_Data'!$F$27,IF(E71='C6_Data'!$E$28,'C6_Data'!$F$28,IF(E71='C6_Data'!$E$29,'C6_Data'!$F$29,IF(E71='C6_Data'!$E$30,'C6_Data'!$F$30,IF(E71='C6_Data'!$E$31,'C6_Data'!$F$31,0)))))))) -> 3 | G71: If X ≤ 3 d | H71: =IF(G71='C6_Data'!$E$24,'C6_Data'!$F$24,IF(G71='C6_Data'!$E$25,'C6_Data'!$F$25,IF(G71='C6_Data'!$E$26,'C6_Data'!$F$26,IF(G71='C6_Data'!$E$27,'C6_Data'!$F$27,IF(G71='C6_Data'!$E$28,'C6_Data'!$F$28,IF(G71='C6_Data'!$E$29,'C6_Data'!$F$29,IF(G71='C6_Data'!$E$30,'C6_Data'!$F$30,IF(G71='C6_Data'!$E$31,'C6_Data'!$F$31,0)))))))) -> 3 | I71: If X >10 d | J71: =IF(I71='C6_Data'!$E$24,'C6_Data'!$F$24,IF(I71='C6_Data'!$E$25,'C6_Data'!$F$25,IF(I71='C6_Data'!$E$26,'C6_Data'!$F$26,IF(I71='C6_Data'!$E$27,'C6_Data'!$F$27,IF(I71='C6_Data'!$E$28,'C6_Data'!$F$28,IF(I71='C6_Data'!$E$29,'C6_Data'!$F$29,IF(I71='C6_Data'!$E$30,'C6_Data'!$F$30,IF(I71='C6_Data'!$E$31,'C6_Data'!$F$31,0)))))))) -> 0 | K71: If X >10 d | L71: =IF(K71='C6_Data'!$E$24,'C6_Data'!$F$24,IF(K71='C6_Data'!$E$25,'C6_Data'!$F$25,IF(K71='C6_Data'!$E$26,'C6_Data'!$F$26,IF(K71='C6_Data'!$E$27,'C6_Data'!$F$27,IF(K71='C6_Data'!$E$28,'C6_Data'!$F$28,IF(K71='C6_Data'!$E$29,'C6_Data'!$F$29,IF(K71='C6_Data'!$E$30,'C6_Data'!$F$30,IF(K71='C6_Data'!$E$31,'C6_Data'!$F$31,0)))))))) -> 0
B72: 6.4.B | C72: Wifi module | E72: If X ≤ 3 d | F72: =IF($L$11="No",0,IF(E72='C6_Data'!$E$24,'C6_Data'!$F$24,IF(E72='C6_Data'!$E$25,'C6_Data'!$F$25,IF(E72='C6_Data'!$E$26,'C6_Data'!$F$26,IF(E72='C6_Data'!$E$27,'C6_Data'!$F$27,IF(E72='C6_Data'!$E$28,'C6_Data'!$F$28,IF(E72='C6_Data'!$E$29,'C6_Data'!$F$29,IF(E72='C6_Data'!$E$30,'C6_Data'!$F$30,IF(E72='C6_Data'!$E$31,'C6_Data'!$F$31,0))))))))) -> 3 | G72: If X ≤ 3 d | H72: =IF($L$11="No",0,IF(G72='C6_Data'!$E$24,'C6_Data'!$F$24,IF(G72='C6_Data'!$E$25,'C6_Data'!$F$25,IF(G72='C6_Data'!$E$26,'C6_Data'!$F$26,IF(G72='C6_Data'!$E$27,'C6_Data'!$F$27,IF(G72='C6_Data'!$E$28,'C6_Data'!$F$28,IF(G72='C6_Data'!$E$29,'C6_Data'!$F$29,IF(G72='C6_Data'!$E$30,'C6_Data'!$F$30,IF(G72='C6_Data'!$E$31,'C6_Data'!$F$31,0))))))))) -> 3 | I72: If X >10 d | J72: =IF($L$11="No",0,IF(I72='C6_Data'!$E$24,'C6_Data'!$F$24,IF(I72='C6_Data'!$E$25,'C6_Data'!$F$25,IF(I72='C6_Data'!$E$26,'C6_Data'!$F$26,IF(I72='C6_Data'!$E$27,'C6_Data'!$F$27,IF(I72='C6_Data'!$E$28,'C6_Data'!$F$28,IF(I72='C6_Data'!$E$29,'C6_Data'!$F$29,IF(I72='C6_Data'!$E$30,'C6_Data'!$F$30,IF(I72='C6_Data'!$E$31,'C6_Data'!$F$31,0))))))))) -> 0 | K72: If X >10 d | L72: =IF($L$11="No",0,IF(K72='C6_Data'!$E$24,'C6_Data'!$F$24,IF(K72='C6_Data'!$E$25,'C6_Data'!$F$25,IF(K72='C6_Data'!$E$26,'C6_Data'!$F$26,IF(K72='C6_Data'!$E$27,'C6_Data'!$F$27,IF(K72='C6_Data'!$E$28,'C6_Data'!$F$28,IF(K72='C6_Data'!$E$29,'C6_Data'!$F$29,IF(K72='C6_Data'!$E$30,'C6_Data'!$F$30,IF(K72='C6_Data'!$E$31,'C6_Data'!$F$31,0))))))))) -> 0
B73: 6.4.C | C73: Bluetooth module | E73: If X ≤ 3 d | F73: =IF($L$12="No",0,IF(E73='C6_Data'!$E$24,'C6_Data'!$F$24,IF(E73='C6_Data'!$E$25,'C6_Data'!$F$25,IF(E73='C6_Data'!$E$26,'C6_Data'!$F$26,IF(E73='C6_Data'!$E$27,'C6_Data'!$F$27,IF(E73='C6_Data'!$E$28,'C6_Data'!$F$28,IF(E73='C6_Data'!$E$29,'C6_Data'!$F$29,IF(E73='C6_Data'!$E$30,'C6_Data'!$F$30,IF(E73='C6_Data'!$E$31,'C6_Data'!$F$31,0))))))))) -> 3 | G73: If X ≤ 3 d | H73: =IF($L$12="No",0,IF(G73='C6_Data'!$E$24,'C6_Data'!$F$24,IF(G73='C6_Data'!$E$25,'C6_Data'!$F$25,IF(G73='C6_Data'!$E$26,'C6_Data'!$F$26,IF(G73='C6_Data'!$E$27,'C6_Data'!$F$27,IF(G73='C6_Data'!$E$28,'C6_Data'!$F$28,IF(G73='C6_Data'!$E$29,'C6_Data'!$F$29,IF(G73='C6_Data'!$E$30,'C6_Data'!$F$30,IF(G73='C6_Data'!$E$31,'C6_Data'!$F$31,0))))))))) -> 3 | I73: If X >10 d | J73: =IF($L$12="No",0,IF(I73='C6_Data'!$E$24,'C6_Data'!$F$24,IF(I73='C6_Data'!$E$25,'C6_Data'!$F$25,IF(I73='C6_Data'!$E$26,'C6_Data'!$F$26,IF(I73='C6_Data'!$E$27,'C6_Data'!$F$27,IF(I73='C6_Data'!$E$28,'C6_Data'!$F$28,IF(I73='C6_Data'!$E$29,'C6_Data'!$F$29,IF(I73='C6_Data'!$E$30,'C6_Data'!$F$30,IF(I73='C6_Data'!$E$31,'C6_Data'!$F$31,0))))))))) -> 0 | K73: If X >10 d | L73: =IF($L$12="No",0,IF(K73='C6_Data'!$E$24,'C6_Data'!$F$24,IF(K73='C6_Data'!$E$25,'C6_Data'!$F$25,IF(K73='C6_Data'!$E$26,'C6_Data'!$F$26,IF(K73='C6_Data'!$E$27,'C6_Data'!$F$27,IF(K73='C6_Data'!$E$28,'C6_Data'!$F$28,IF(K73='C6_Data'!$E$29,'C6_Data'!$F$29,IF(K73='C6_Data'!$E$30,'C6_Data'!$F$30,IF(K73='C6_Data'!$E$31,'C6_Data'!$F$31,0))))))))) -> 0
B74: 6.4.D | C74: Infrared receiver (IR) | E74: If X ≤ 3 d | F74: =IF(E74='C6_Data'!$E$24,'C6_Data'!$F$24,IF(E74='C6_Data'!$E$25,'C6_Data'!$F$25,IF(E74='C6_Data'!$E$26,'C6_Data'!$F$26,IF(E74='C6_Data'!$E$27,'C6_Data'!$F$27,IF(E74='C6_Data'!$E$28,'C6_Data'!$F$28,IF(E74='C6_Data'!$E$29,'C6_Data'!$F$29,IF(E74='C6_Data'!$E$30,'C6_Data'!$F$30,IF(E74='C6_Data'!$E$31,'C6_Data'!$F$31,0)))))))) -> 3 | G74: If X ≤ 3 d | H74: =IF(G74='C6_Data'!$E$24,'C6_Data'!$F$24,IF(G74='C6_Data'!$E$25,'C6_Data'!$F$25,IF(G74='C6_Data'!$E$26,'C6_Data'!$F$26,IF(G74='C6_Data'!$E$27,'C6_Data'!$F$27,IF(G74='C6_Data'!$E$28,'C6_Data'!$F$28,IF(G74='C6_Data'!$E$29,'C6_Data'!$F$29,IF(G74='C6_Data'!$E$30,'C6_Data'!$F$30,IF(G74='C6_Data'!$E$31,'C6_Data'!$F$31,0)))))))) -> 3 | I74: If X >10 d | J74: =IF(I74='C6_Data'!$E$24,'C6_Data'!$F$24,IF(I74='C6_Data'!$E$25,'C6_Data'!$F$25,IF(I74='C6_Data'!$E$26,'C6_Data'!$F$26,IF(I74='C6_Data'!$E$27,'C6_Data'!$F$27,IF(I74='C6_Data'!$E$28,'C6_Data'!$F$28,IF(I74='C6_Data'!$E$29,'C6_Data'!$F$29,IF(I74='C6_Data'!$E$30,'C6_Data'!$F$30,IF(I74='C6_Data'!$E$31,'C6_Data'!$F$31,0)))))))) -> 0 | K74: If X >10 d | L74: =IF(K74='C6_Data'!$E$24,'C6_Data'!$F$24,IF(K74='C6_Data'!$E$25,'C6_Data'!$F$25,IF(K74='C6_Data'!$E$26,'C6_Data'!$F$26,IF(K74='C6_Data'!$E$27,'C6_Data'!$F$27,IF(K74='C6_Data'!$E$28,'C6_Data'!$F$28,IF(K74='C6_Data'!$E$29,'C6_Data'!$F$29,IF(K74='C6_Data'!$E$30,'C6_Data'!$F$30,IF(K74='C6_Data'!$E$31,'C6_Data'!$F$31,0)))))))) -> 0
B75: 6.4.E | C75: Loudspeaker | E75: If X ≤ 3 d | F75: =IF(E75='C6_Data'!$E$24,'C6_Data'!$F$24,IF(E75='C6_Data'!$E$25,'C6_Data'!$F$25,IF(E75='C6_Data'!$E$26,'C6_Data'!$F$26,IF(E75='C6_Data'!$E$27,'C6_Data'!$F$27,IF(E75='C6_Data'!$E$28,'C6_Data'!$F$28,IF(E75='C6_Data'!$E$29,'C6_Data'!$F$29,IF(E75='C6_Data'!$E$30,'C6_Data'!$F$30,IF(E75='C6_Data'!$E$31,'C6_Data'!$F$31,0)))))))) -> 3 | G75: If X ≤ 3 d | H75: =IF(G75='C6_Data'!$E$24,'C6_Data'!$F$24,IF(G75='C6_Data'!$E$25,'C6_Data'!$F$25,IF(G75='C6_Data'!$E$26,'C6_Data'!$F$26,IF(G75='C6_Data'!$E$27,'C6_Data'!$F$27,IF(G75='C6_Data'!$E$28,'C6_Data'!$F$28,IF(G75='C6_Data'!$E$29,'C6_Data'!$F$29,IF(G75='C6_Data'!$E$30,'C6_Data'!$F$30,IF(G75='C6_Data'!$E$31,'C6_Data'!$F$31,0)))))))) -> 3 | I75: If X >10 d | J75: =IF(I75='C6_Data'!$E$24,'C6_Data'!$F$24,IF(I75='C6_Data'!$E$25,'C6_Data'!$F$25,IF(I75='C6_Data'!$E$26,'C6_Data'!$F$26,IF(I75='C6_Data'!$E$27,'C6_Data'!$F$27,IF(I75='C6_Data'!$E$28,'C6_Data'!$F$28,IF(I75='C6_Data'!$E$29,'C6_Data'!$F$29,IF(I75='C6_Data'!$E$30,'C6_Data'!$F$30,IF(I75='C6_Data'!$E$31,'C6_Data'!$F$31,0)))))))) -> 0 | K75: If X >10 d | L75: =IF(K75='C6_Data'!$E$24,'C6_Data'!$F$24,IF(K75='C6_Data'!$E$25,'C6_Data'!$F$25,IF(K75='C6_Data'!$E$26,'C6_Data'!$F$26,IF(K75='C6_Data'!$E$27,'C6_Data'!$F$27,IF(K75='C6_Data'!$E$28,'C6_Data'!$F$28,IF(K75='C6_Data'!$E$29,'C6_Data'!$F$29,IF(K75='C6_Data'!$E$30,'C6_Data'!$F$30,IF(K75='C6_Data'!$E$31,'C6_Data'!$F$31,0)))))))) -> 0
B76: 6.4.F | C76: Connectors to connect external equipment (cable,, antenna, USB, DVD and Blue-Ray) | E76: If X ≤ 3 d | F76: =IF(E76='C6_Data'!$E$24,'C6_Data'!$F$24,IF(E76='C6_Data'!$E$25,'C6_Data'!$F$25,IF(E76='C6_Data'!$E$26,'C6_Data'!$F$26,IF(E76='C6_Data'!$E$27,'C6_Data'!$F$27,IF(E76='C6_Data'!$E$28,'C6_Data'!$F$28,IF(E76='C6_Data'!$E$29,'C6_Data'!$F$29,IF(E76='C6_Data'!$E$30,'C6_Data'!$F$30,IF(E76='C6_Data'!$E$31,'C6_Data'!$F$31,0)))))))) -> 3 | G76: If X ≤ 3 d | H76: =IF(G76='C6_Data'!$E$24,'C6_Data'!$F$24,IF(G76='C6_Data'!$E$25,'C6_Data'!$F$25,IF(G76='C6_Data'!$E$26,'C6_Data'!$F$26,IF(G76='C6_Data'!$E$27,'C6_Data'!$F$27,IF(G76='C6_Data'!$E$28,'C6_Data'!$F$28,IF(G76='C6_Data'!$E$29,'C6_Data'!$F$29,IF(G76='C6_Data'!$E$30,'C6_Data'!$F$30,IF(G76='C6_Data'!$E$31,'C6_Data'!$F$31,0)))))))) -> 3 | I76: If X >10 d | J76: =IF(I76='C6_Data'!$E$24,'C6_Data'!$F$24,IF(I76='C6_Data'!$E$25,'C6_Data'!$F$25,IF(I76='C6_Data'!$E$26,'C6_Data'!$F$26,IF(I76='C6_Data'!$E$27,'C6_Data'!$F$27,IF(I76='C6_Data'!$E$28,'C6_Data'!$F$28,IF(I76='C6_Data'!$E$29,'C6_Data'!$F$29,IF(I76='C6_Data'!$E$30,'C6_Data'!$F$30,IF(I76='C6_Data'!$E$31,'C6_Data'!$F$31,0)))))))) -> 0 | K76: If X >10 d | L76: =IF(K76='C6_Data'!$E$24,'C6_Data'!$F$24,IF(K76='C6_Data'!$E$25,'C6_Data'!$F$25,IF(K76='C6_Data'!$E$26,'C6_Data'!$F$26,IF(K76='C6_Data'!$E$27,'C6_Data'!$F$27,IF(K76='C6_Data'!$E$28,'C6_Data'!$F$28,IF(K76='C6_Data'!$E$29,'C6_Data'!$F$29,IF(K76='C6_Data'!$E$30,'C6_Data'!$F$30,IF(K76='C6_Data'!$E$31,'C6_Data'!$F$31,0)))))))) -> 0
B77: 6.4.G | C77: Remote control | E77: If X ≤ 3 d | F77: =IF(E77='C6_Data'!$E$24,'C6_Data'!$F$24,IF(E77='C6_Data'!$E$25,'C6_Data'!$F$25,IF(E77='C6_Data'!$E$26,'C6_Data'!$F$26,IF(E77='C6_Data'!$E$27,'C6_Data'!$F$27,IF(E77='C6_Data'!$E$28,'C6_Data'!$F$28,IF(E77='C6_Data'!$E$29,'C6_Data'!$F$29,IF(E77='C6_Data'!$E$30,'C6_Data'!$F$30,IF(E77='C6_Data'!$E$31,'C6_Data'!$F$31,0)))))))) -> 3 | G77: If X ≤ 3 d | H77: =IF(G77='C6_Data'!$E$24,'C6_Data'!$F$24,IF(G77='C6_Data'!$E$25,'C6_Data'!$F$25,IF(G77='C6_Data'!$E$26,'C6_Data'!$F$26,IF(G77='C6_Data'!$E$27,'C6_Data'!$F$27,IF(G77='C6_Data'!$E$28,'C6_Data'!$F$28,IF(G77='C6_Data'!$E$29,'C6_Data'!$F$29,IF(G77='C6_Data'!$E$30,'C6_Data'!$F$30,IF(G77='C6_Data'!$E$31,'C6_Data'!$F$31,0)))))))) -> 3 | I77: If X ≤ 3 d | J77: =IF(I77='C6_Data'!$E$24,'C6_Data'!$F$24,IF(I77='C6_Data'!$E$25,'C6_Data'!$F$25,IF(I77='C6_Data'!$E$26,'C6_Data'!$F$26,IF(I77='C6_Data'!$E$27,'C6_Data'!$F$27,IF(I77='C6_Data'!$E$28,'C6_Data'!$F$28,IF(I77='C6_Data'!$E$29,'C6_Data'!$F$29,IF(I77='C6_Data'!$E$30,'C6_Data'!$F$30,IF(I77='C6_Data'!$E$31,'C6_Data'!$F$31,0)))))))) -> 3 | K77: If X ≤ 3 d | L77: =IF(K77='C6_Data'!$E$24,'C6_Data'!$F$24,IF(K77='C6_Data'!$E$25,'C6_Data'!$F$25,IF(K77='C6_Data'!$E$26,'C6_Data'!$F$26,IF(K77='C6_Data'!$E$27,'C6_Data'!$F$27,IF(K77='C6_Data'!$E$28,'C6_Data'!$F$28,IF(K77='C6_Data'!$E$29,'C6_Data'!$F$29,IF(K77='C6_Data'!$E$30,'C6_Data'!$F$30,IF(K77='C6_Data'!$E$31,'C6_Data'!$F$31,0)))))))) -> 3
B78: Total sub-criterion 6.4 | F78: =SUM(F71:F77) -> 21 | H78: =SUM(H71:H77) -> 21 | J78: =SUM(J71:J77) -> 3 | L78: =SUM(L71:L77) -> 3 | M78: =F78+H78+L78+J78 -> 48 | N78: =IF(AND(L11="No",L12="No"),"/60",IF(OR(L11="No",L12="No"),"/ 72","/ 84")) -> / 84
M79: =IF(AND(L11="No",L12="No"),(M78*10/60),IF(OR(L11="No",L12="No"),(M78*10/72),(M78*10/84))) -> 5.714285714 | N79: / 10

Sheet C6_Data (hidden)
C1: CRITERION 5 : DOCUMENTATION
C2: SUB-CRITERION 6.1 and 6.2: COMMITMENT ON THE AVAILABILITY OVER TIME OF SPARE PARTS - BROKEN/MALFUNCTIONING PARTS
C3: 5.1
D4: Availability time of spare part
D6: Select a choice | E6: Select a choice | F6: 0
D7: If X < 7 years | E7: If X < 7 years | F7: 0
D8: If 7 years ≤ X < 9 years | E8: If 7 years ≤ X < 9 years | F8: 7
D9: If 9 years ≤ X < 11 years | E9: If 9 years ≤ X < 11 years | F9: 9
D10: If X ≥ 11 years | E10: If X ≥ 11 years | F10: 11
D11: Not available | E11: Not available | F11: 0
D12: Part not included | E12: Part not included | F12: 11
D13: Select a choice | E13: Select a choice | F13: 0
D14: Not removable et disponible | E14: Not removable and available | F14: 0
D15: Not available | E15: Not available | F15: 0
D16: Not removable | E16: Not removable | F16: 0
C20: SUB-CRITERION 6.3 and 6.4 : COMMITMENT ON THE DELIVERY TIME OF SPARE PARTS - BROKEN/MALFUNCTIONING PARTS
C21: 5.2.A | D21: Consumer information
D22: Delivery time of spare part
D24: Select a choice | E24: Select a choice | F24: 0
D25: If X >10 d | E25: If X >10 d | F25: 0
D26: If 10 d ≥ X > 5 d | E26: If 10 d ≥ X > 5 d | F26: 1
D27: If 5 d ≥ X > 3 d | E27: If 5 d ≥ X > 3 d | F27: 2
D28: If X ≤ 3 d | E28: If X ≤ 3 d | F28: 3
D29: Not available | E29: Not available | F29: 0
D30: Part not included | E30: Part not included | F30: 3

Sheet C7_PRICE
B1: CRITERION 7 : PRICE OF SPARE PARTS | M1: Television
B4: ADDITIONAL INFORMATIONS: | N4: Reminder of regulatory provisions "Sub-criterion 7.1. Ratio between the manufacturer's or importer's selling price for parts and the manufacturer's or importer's selling price for equipment. The criterion is established by calculating the ratio between : [the pre-tax price of the most expensive part in list 2 + (average of the pre-tax prices of the other parts in list 2)]/2 and the pre-tax price of the equipment model concerned, where each price is understood to be the price excluding tax in the price list in force at the time the index is calculated and appearing in the manufacturer's or importer's general terms and conditions of sale, or failing that in any relevant contractual document. Where a manufacturer or importer has, for the parts or equipment in question, several price scales according to the different categories of distributor or seller customers, the prices used to calculate the index are those of the scale which represented the highest proportion of the manufacturer's or importer's sales for the type of part or type of equipment concerned, during the last financial year. Where some of these parts are inseparable, or where the part in question is integrated into a module which is the only one available, the price to be taken into account is the combined price of the parts or the price of the module".
B5: Deduction of delivery costs: The principle adopted is to make a calculation excluding transport or delivery costs. If the latter are
B6: included in the tariffs of the general terms and conditions of sale, it is up to the producer or importer to deduct them in order to
B7: calculate the ratio. In particular for the price of spare parts, two methods are possible for deducting transport or delivery costs:
B8: individually for each of the parts in list 2 or on a flat-rate basis (in absolute value or as a percentage). The same applies to the
B9: price of new equipment.
B10: Spare part(s) forming part of a batch: If one or more of the parts in list 2 are part of a batch offered for sale or of any other subset of
B11: inseparable parts, the price of the part concerned is the price of this batch or subset.
B12: Part not available: In the event that, at the time the index is calculated, a part from list 2 is not available, the number of points
B13: awarded for criterion 7 relating to the price of spare parts is 0.
B14: Parts not managed by the producer or importer: If parts from list 2 are not managed by the producer or importer, the price of the
B15: parts to be considered is then that of the supplier's general terms and conditions of sale at the time of the index calculation.
B16: Options for products with the same reference: If options are offered for the same reference, and do not influence the technical
B17: characteristics for the purpose of calculating the index, then the calculation of the price ratio to be achieved is based on the
B18: price of spare parts and the price of the most current version of the product concerned.
B19: Absence of a part: If the equipment does not include a part listed in list 1 or 2 of the category concerned, then the price of the
B20: absent part does not appear in the calculation of the ratio.
B22: =IF(OR(P24="Select a choice",Q24="Select a choice",R24="Select a choice",S24="Select a choice",P25="Select a choice",Q25="Select a choice",R25="Select a choice",S25="Select a choice",S26="Select a choice",R26="Select a choice",P26="Select a choice",Q26="Select a choice",P27="Select a choice",Q27="Select a choice",R27="Select a choice",S27="Select a choice",P28="Select a choice",Q28="Select a choice",R28="Select a choice",S28="Select a choice"),"Please fully complete criterion 6.1 before criterion 7","") -> 
B24: PRICE Criterion | H24: RATING | P24: ='C6_AVAILABILITY_SP'!E24 -> If X ≥ 11 years | Q24: ='C6_AVAILABILITY_SP'!G24 -> If X ≥ 11 years | R24: ='C6_AVAILABILITY_SP'!I24 -> If X < 7 years | S24: ='C6_AVAILABILITY_SP'!K24 -> If X < 7 years | U24: =IF(AND(P24="Non disponible",Q24="Non disponible",R24="Non disponible",S24="Non disponible"),0,"dispo") -> dispo
H25: Value (euros) | I25: Score (%) | J25: POINTS (/100) | K25: FINAL SCORE (/10) | P25: ='C6_AVAILABILITY_SP'!E25 -> 0 | Q25: ='C6_AVAILABILITY_SP'!G25 -> 0 | R25: ='C6_AVAILABILITY_SP'!I25 -> 0 | S25: ='C6_AVAILABILITY_SP'!K25 -> 0 | U25: dispo
P26: ='C6_AVAILABILITY_SP'!E26 -> If X ≥ 11 years | Q26: ='C6_AVAILABILITY_SP'!G26 -> If X ≥ 11 years | R26: ='C6_AVAILABILITY_SP'!I26 -> If X < 7 years | S26: ='C6_AVAILABILITY_SP'!K26 -> If X < 7 years | U26: =IF(AND(P26="Non disponible",Q26="Non disponible",R26="Non disponible",S26="Non disponible"),0,"dispo") -> dispo
B27: Pre-tax price of the most expensive spare part (list 2) | H27: =IF(OR(U24=0,U25=0,U26=0,U27=0,U28=0),0,"Please fill out") -> Please fill out | I27: =IF(ISERROR((($H$27+($H$28))/2)/$H$29),"0%",((($H$27+($H$28))/B45)/$H$29)) -> 0% | J27: =IF(N27<0,0,IF(N27>100,100,MROUND(N27,5))) -> 0 | K27: =IF(N27/10<0,0,IF(N27/10>=10,10,MROUND(N27,5)/10)) -> 0 | L27: =IF(J27<0,"NOTE DE ZERO CAR SCORE HORS BAREME DE NOTATION") -> FALSE | N27: =IF(FORECAST($I$27,B43:B143,C43:C143)=150,0,FORECAST($I$27,B43:B143,C43:C143)) -> 0 | O27: =IF(N27/10<0,0,IF(N27/10>=10,10,N27/10 )) -> 0 | P27: ='C6_AVAILABILITY_SP'!E27 -> If X ≥ 11 years | Q27: ='C6_AVAILABILITY_SP'!G27 -> If X ≥ 11 years | R27: ='C6_AVAILABILITY_SP'!I27 -> If X < 7 years | S27: ='C6_AVAILABILITY_SP'!K27 -> If X < 7 years | U27: =IF(AND(P27="Non disponible",Q27="Non disponible",R27="Non disponible",S27="Non disponible"),0,"dispo") -> dispo
B28: Average pre-tax price of other spare parts (list 2) | H28: =IF(OR(U24=0,U25=0,U26=0,U27=0,U28=0),0,"Please fill out") -> Please fill out | P28: ='C6_AVAILABILITY_SP'!E28 -> If X ≥ 11 years | Q28: ='C6_AVAILABILITY_SP'!G28 -> If X ≥ 11 years | R28: ='C6_AVAILABILITY_SP'!I28 -> If X < 7 years | S28: ='C6_AVAILABILITY_SP'!K28 -> If X < 7 years | U28: =IF(AND(P28="Non disponible",Q28="Non disponible",R28="Non disponible",S28="Non disponible"),0,"dispo") -> dispo
B29: Manufacturer's pre-tax price of concerned model | H29: =IF(OR(U24=0,U25=0,U26=0,U27=0,U28=0),0,"Please fill out") -> Please fill out
B34: The number of points obtained for this criterion is determined as follows:
B35: - if the result is greater than 0.3 then the number of points is 0;
B36: - if the result is less than 0.1 then the number of points is 100;
B37: - if the result is between 0.1 and 0.3 then the number of points is determined according to the following correspondence table :
B40: DATA
B42: y | C42: x | D42: a | E42: b | F42: y ' | H42: x '
B43: 0 | C43: =$D$43*B43+$E$43 -> 0.3 | D43: -0.002 | E43: 0.3 | F43: 100 | G43: 0 | H43: =$D$43*F43+$E$43 -> 0.1 | I43: =IF($I$27>=H43,$I$27,IF($I$27<H43,-2.2)) -> 0% | J43: 0.2
B44: 1 | C44: 0.298 | D44: -0.2 | E44: 0.3 | F44: 99 | G44: 0 | H44: 0.102 | I44: =IF($I$27>=H44,$I$27,IF($I$27<H44,-2.2)) -> 0% | J44: 0.2
B45: 2 | C45: 0.296 | D45: -0.2 | E45: 0.3 | F45: 98 | G45: 0 | H45: 0.104 | I45: 0% | J45: 0.2
B46: 3 | C46: 0.294 | D46: -0.2 | E46: 0.3 | F46: 97 | G46: 0 | H46: 0.106 | I46: 0% | J46: 0.2
B47: 4 | C47: 0.292 | D47: -0.2 | E47: 0.3 | F47: 96 | G47: 0 | H47: 0.108 | I47: 0% | J47: 0.2
B48: 5 | C48: 0.29 | D48: -0.2 | E48: 0.3 | F48: 95 | G48: 0 | H48: 0.11 | I48: 0% | J48: 0.2
B49: 6 | C49: 0.288 | D49: -0.2 | E49: 0.3 | F49: 94 | G49: 0 | H49: 0.112 | I49: 0% | J49: 0.2
B50: 7 | C50: 0.286 | D50: -0.2 | E50: 0.3 | F50: 93 | G50: 0 | H50: 0.114 | I50: 0% | J50: 0.2
B51: 8 | C51: 0.284 | D51: -0.2 | E51: 0.3 | F51: 92 | G51: 0 | H51: 0.116 | I51: 0% | J51: 0.2
B52: 9 | C52: 0.282 | D52: -0.2 | E52: 0.3 | F52: 91 | G52: 0 | H52: 0.118 | I52: 0% | J52: 0.2
B53: 10 | C53: 0.28 | D53: -0.2 | E53: 0.3 | F53: 90 | G53: 0 | H53: 0.12 | I53: 0% | J53: 0.2
B54: 11 | C54: 0.278 | D54: -0.2 | E54: 0.3 | F54: 89 | G54: 0 | H54: 0.122 | I54: 0% | J54: 0.2
B55: 12 | C55: 0.276 | D55: -0.2 | E55: 0.3 | F55: 88 | G55: 0 | H55: 0.124 | I55: 0% | J55: 0.2
B56: 13 | C56: 0.274 | D56: -0.2 | E56: 0.3 | F56: 87 | G56: 0 | H56: 0.126 | I56: 0% | J56: 0.2
B57: 14 | C57: 0.272 | D57: -0.2 | E57: 0.3 | F57: 86 | G57: 0 | H57: 0.128 | I57: 0% | J57: 0.2
B58: 15 | C58: 0.27 | D58: -0.2 | E58: 0.3 | F58: 85 | G58: 0 | H58: 0.13 | I58: 0% | J58: 0.2
B59: 16 | C59: 0.268 | D59: -0.2 | E59: 0.3 | F59: 84 | G59: 0 | H59: 0.132 | I59: 0% | J59: 0.2
B60: 17 | C60: 0.266 | D60: -0.2 | E60: 0.3 | F60: 83 | G60: 0 | H60: 0.134 | I60: 0% | J60: 0.2
B61: 18 | C61: 0.264 | D61: -0.2 | E61: 0.3 | F61: 82 | G61: 0 | H61: 0.136 | I61: 0% | J61: 0.2
B62: 19 | C62: 0.262 | D62: -0.2 | E62: 0.3 | F62: 81 | G62: 0 | H62: 0.138 | I62: 0% | J62: 0.2
B63: 20 | C63: 0.26 | D63: -0.2 | E63: 0.3 | F63: 80 | G63: 0 | H63: 0.14 | I63: 0% | J63: 0.2
B64: 21 | C64: 0.258 | D64: -0.2 | E64: 0.3 | F64: 79 | G64: 0 | H64: 0.142 | I64: 0% | J64: 0.2
B65: 22 | C65: 0.256 | D65: -0.2 | E65: 0.3 | F65: 78 | G65: 0 | H65: 0.144 | I65: 0% | J65: 0.2
B66: 23 | C66: 0.254 | D66: -0.2 | E66: 0.3 | F66: 77 | G66: 0 | H66: 0.146 | I66: 0% | J66: 0.2
B67: 24 | C67: 0.252 | D67: -0.2 | E67: 0.3 | F67: 76 | G67: 0 | H67: 0.148 | I67: 0% | J67: 0.2
B68: 25 | C68: 0.25 | D68: -0.2 | E68: 0.3 | F68: 75 | G68: 0 | H68: 0.15 | I68: 0% | J68: 0.2
B69: 26 | C69: 0.248 | D69: -0.2 | E69: 0.3 | F69: 74 | G69: 0 | H69: 0.152 | I69: 0% | J69: 0.2
B70: 27 | C70: 0.246 | D70: -0.2 | E70: 0.3 | F70: 73 | G70: 0 | H70: 0.154 | I70: 0% | J70: 0.2
B71: 28 | C71: 0.244 | D71: -0.2 | E71: 0.3 | F71: 72 | G71: 0 | H71: 0.156 | I71: 0% | J71: 0.2
B72: 29 | C72: 0.242 | D72: -0.2 | E72: 0.3 | F72: 71 | G72: 0 | H72: 0.158 | I72: 0% | J72: 0.2
B73: 30 | C73: 0.24 | D73: -0.2 | E73: 0.3 | F73: 70 | G73: 0 | H73: 0.16 | I73: 0% | J73: 0.2
B74: 31 | C74: 0.238 | D74: -0.2 | E74: 0.3 | F74: 69 | G74: 0 | H74: 0.162 | I74: 0% | J74: 0.2
B75: 32 | C75: 0.236 | D75: -0.2 | E75: 0.3 | F75: 68 | G75: 0 | H75: 0.164 | I75: 0% | J75: 0.2
B76: 33 | C76: 0.234 | D76: -0.2 | E76: 0.3 | F76: 67 | G76: 0 | H76: 0.166 | I76: 0% | J76: 0.2
B77: 34 | C77: 0.232 | D77: -0.2 | E77: 0.3 | F77: 66 | G77: 0 | H77: 0.168 | I77: 0% | J77: 0.2
B78: 35 | C78: 0.23 | D78: -0.2 | E78: 0.3 | F78: 65 | G78: 0 | H78: 0.17 | I78: 0% | J78: 0.2
B79: 36 | C79: 0.228 | D79: -0.2 | E79: 0.3 | F79: 64 | G79: 0 | H79: 0.172 | I79: 0% | J79: 0.2
B80: 37 | C80: 0.226 | D80: -0.2 | E80: 0.3 | F80: 63 | G80: 0 | H80: 0.174 | I80: 0% | J80: 0.2
B81: 38 | C81: 0.224 | D81: -0.2 | E81: 0.3 | F81: 62 | G81: 0 | H81: 0.176 | I81: 0% | J81: 0.2
B82: 39 | C82: 0.222 | D82: -0.2 | E82: 0.3 | F82: 61 | G82: 0 | H82: 0.178 | I82: 0% | J82: 0.2
B83: 40 | C83: 0.22 | D83: -0.2 | E83: 0.3 | F83: 60 | G83: 0 | H83: 0.18 | I83: 0% | J83: 0.2
B84: 41 | C84: 0.218 | D84: -0.2 | E84: 0.3 | F84: 59 | G84: 0 | H84: 0.182 | I84: 0% | J84: 0.2
B85: 42 | C85: 0.216 | D85: -0.2 | E85: 0.3 | F85: 58 | G85: 0 | H85: 0.184 | I85: 0% | J85: 0.2
B86: 43 | C86: 0.214 | D86: -0.2 | E86: 0.3 | F86: 57 | G86: 0 | H86: 0.186 | I86: 0% | J86: 0.2
B87: 44 | C87: 0.212 | D87: -0.2 | E87: 0.3 | F87: 56 | G87: 0 | H87: 0.188 | I87: 0% | J87: 0.2
B88: 45 | C88: 0.21 | D88: -0.2 | E88: 0.3 | F88: 55 | G88: 0 | H88: 0.19 | I88: 0% | J88: 0.2
B89: 46 | C89: 0.208 | D89: -0.2 | E89: 0.3 | F89: 54 | G89: 0 | H89: 0.192 | I89: 0% | J89: 0.2
B90: 47 | C90: 0.206 | D90: -0.2 | E90: 0.3 | F90: 53 | G90: 0 | H90: 0.194 | I90: 0% | J90: 0.2
B91: 48 | C91: 0.204 | D91: -0.2 | E91: 0.3 | F91: 52 | G91: 0 | H91: 0.196 | I91: 0% | J91: 0.2
B92: 49 | C92: 0.202 | D92: -0.2 | E92: 0.3 | F92: 51 | G92: 0 | H92: 0.198 | I92: 0% | J92: 0.2
B93: 50 | C93: 0.2 | D93: -0.2 | E93: 0.3 | F93: 50 | G93: 0.2 | H93: 0.2 | I93: 0% | J93: 0.2
B94: 51 | C94: 0.198 | D94: -0.2 | E94: 0.3 | F94: 49 | G94: 0.2 | H94: 0.202 | I94: =IF($I$27>=H94,$I$27,IF($I$27<H94,-2.2)) -> 0% | J94: -2.2
B95: 52 | C95: 0.196 | D95: -0.2 | E95: 0.3 | F95: 48 | G95: 0.2 | H95: 0.204 | I95: 0% | J95: -2.2
B96: 53 | C96: 0.194 | D96: -0.2 | E96: 0.3 | F96: 47 | G96: 0.2 | H96: 0.206 | I96: 0% | J96: -2.2
B97: 54 | C97: 0.192 | D97: -0.2 | E97: 0.3 | F97: 46 | G97: 0.2 | H97: 0.208 | I97: 0% | J97: -2.2
B98: 55 | C98: 0.19 | D98: -0.2 | E98: 0.3 | F98: 45 | G98: 0.2 | H98: 0.21 | I98: 0% | J98: -2.2
B99: 56 | C99: 0.188 | D99: -0.2 | E99: 0.3 | F99: 44 | G99: 0.2 | H99: 0.212 | I99: 0% | J99: -2.2
B100: 57 | C100: 0.186 | D100: -0.2 | E100: 0.3 | F100: 43 | G100: 0.2 | H100: 0.214 | I100: 0% | J100: -2.2
B101: 58 | C101: 0.184 | D101: -0.2 | E101: 0.3 | F101: 42 | G101: 0.2 | H101: 0.216 | I101: 0% | J101: -2.2
B102: 59 | C102: 0.182 | D102: -0.2 | E102: 0.3 | F102: 41 | G102: 0.2 | H102: 0.218 | I102: 0% | J102: -2.2
B103: 60 | C103: 0.18 | D103: -0.2 | E103: 0.3 | F103: 40 | G103: 0.2 | H103: 0.22 | I103: 0% | J103: -2.2
B104: 61 | C104: 0.178 | D104: -0.2 | E104: 0.3 | F104: 39 | G104: 0.2 | H104: 0.222 | I104: 0% | J104: -2.2
B105: 62 | C105: 0.176 | D105: -0.2 | E105: 0.3 | F105: 38 | G105: 0.2 | H105: 0.224 | I105: =IF($I$27>=H105,$I$27,IF($I$27<H105,-2.2)) -> 0% | J105: -2.2
B106: 63 | C106: 0.174 | D106: -0.2 | E106: 0.3 | F106: 37 | G106: 0.2 | H106: 0.226 | I106: 0% | J106: -2.2
B107: 64 | C107: =$D$43*B107+$E$43 -> 0.172 | D107: -0.2 | E107: 0.3 | F107: 36 | G107: 0.2 | H107: =$D$43*F107+$E$43 -> 0.228 | I107: 0% | J107: -2.2
B108: 65 | C108: 0.17 | D108: -0.2 | E108: 0.3 | F108: 35 | G108: 0.2 | H108: 0.23 | I108: =IF($I$27>=H108,$I$27,IF($I$27<H108,-2.2)) -> 0% | J108: -2.2
B109: 66 | C109: 0.168 | D109: -0.2 | E109: 0.3 | F109: 34 | G109: 0.2 | H109: 0.232 | I109: 0% | J109: -2.2
B110: 67 | C110: 0.166 | D110: -0.2 | E110: 0.3 | F110: 33 | G110: 0.2 | H110: 0.234 | I110: 0% | J110: -2.2
B111: 68 | C111: 0.164 | D111: -0.2 | E111: 0.3 | F111: 32 | G111: 0.2 | H111: 0.236 | I111: 0% | J111: -2.2
B112: 69 | C112: 0.162 | D112: -0.2 | E112: 0.3 | F112: 31 | G112: 0.2 | H112: 0.238 | I112: 0% | J112: -2.2
B113: 70 | C113: 0.16 | D113: -0.2 | E113: 0.3 | F113: 30 | G113: 0.2 | H113: 0.24 | I113: 0% | J113: -2.2
B114: 71 | C114: 0.158 | D114: -0.2 | E114: 0.3 | F114: 29 | G114: 0.2 | H114: 0.242 | I114: 0% | J114: -2.2
B115: 72 | C115: 0.156 | D115: -0.2 | E115: 0.3 | F115: 28 | G115: 0.2 | H115: 0.244 | I115: 0% | J115: -2.2
B116: 73 | C116: 0.154 | D116: -0.2 | E116: 0.3 | F116: 27 | G116: 0.2 | H116: 0.246 | I116: 0% | J116: -2.2
B117: 74 | C117: 0.152 | D117: -0.2 | E117: 0.3 | F117: 26 | G117: 0.2 | H117: 0.248 | I117: 0% | J117: -2.2
B118: 75 | C118: 0.15 | D118: -0.2 | E118: 0.3 | F118: 25 | G118: 0.2 | H118: 0.25 | I118: 0% | J118: -2.2
B119: 76 | C119: 0.148 | D119: -0.2 | E119: 0.3 | F119: 24 | G119: 0.2 | H119: 0.252 | I119: 0% | J119: -2.2
B120: 77 | C120: 0.146 | D120: -0.2 | E120: 0.3 | F120: 23 | G120: 0.2 | H120: 0.254 | I120: 0% | J120: -2.2
B121: 78 | C121: 0.144 | D121: -0.2 | E121: 0.3 | F121: 22 | G121: 0.2 | H121: 0.256 | I121: 0% | J121: -2.2
B122: 79 | C122: 0.142 | D122: -0.2 | E122: 0.3 | F122: 21 | G122: 0.2 | H122: 0.258 | I122: 0% | J122: -2.2
B123: 80 | C123: 0.14 | D123: -0.2 | E123: 0.3 | F123: 20 | G123: 0.2 | H123: 0.26 | I123: 0% | J123: -2.2
B124: 81 | C124: 0.138 | D124: -0.2 | E124: 0.3 | F124: 19 | G124: 0.2 | H124: 0.262 | I124: 0% | J124: -2.2
B125: 82 | C125: 0.136 | D125: -0.2 | E125: 0.3 | F125: 18 | G125: 0.2 | H125: 0.264 | I125: 0% | J125: -2.2
B126: 83 | C126: 0.134 | D126: -0.2 | E126: 0.3 | F126: 17 | G126: 0.2 | H126: 0.266 | I126: 0% | J126: -2.2
B127: 84 | C127: 0.132 | D127: -0.2 | E127: 0.3 | F127: 16 | G127: 0.2 | H127: 0.268 | I127: 0% | J127: -2.2
B128: 85 | C128: 0.13 | D128: -0.2 | E128: 0.3 | F128: 15 | G128: 0.2 | H128: 0.27 | I128: 0% | J128: -2.2
B129: 86 | C129: 0.128 | D129: -0.2 | E129: 0.3 | F129: 14 | G129: 0.2 | H129: 0.272 | I129: 0% | J129: -2.2
B130: 87 | C130: 0.126 | D130: -0.2 | E130: 0.3 | F130: 13 | G130: 0.2 | H130: 0.274 | I130: 0% | J130: -2.2
B131: 88 | C131: 0.124 | D131: -0.2 | E131: 0.3 | F131: 12 | G131: 0.2 | H131: 0.276 | I131: 0% | J131: -2.2
B132: 89 | C132: 0.122 | D132: -0.2 | E132: 0.3 | F132: 11 | G132: 0.2 | H132: 0.278 | I132: 0% | J132: -2.2
B133: 90 | C133: 0.12 | D133: -0.2 | E133: 0.3 | F133: 10 | G133: 0.2 | H133: 0.28 | I133: 0% | J133: -2.2
B134: 91 | C134: 0.118 | D134: -0.2 | E134: 0.3 | F134: 9 | G134: 0.2 | H134: 0.282 | I134: 0% | J134: -2.2
B135: 92 | C135: 0.116 | D135: -0.2 | E135: 0.3 | F135: 8 | G135: 0.2 | H135: 0.284 | I135: 0% | J135: -2.2
B136: 93 | C136: 0.114 | D136: -0.2 | E136: 0.3 | F136: 7 | G136: 0.2 | H136: 0.286 | I136: 0% | J136: -2.2
B137: 94 | C137: 0.112 | D137: -0.2 | E137: 0.3 | F137: 6 | G137: 0.2 | H137: 0.288 | I137: 0% | J137: -2.2
B138: 95 | C138: 0.11 | D138: -0.2 | E138: 0.3 | F138: 5 | G138: 0.2 | H138: 0.29 | I138: 0% | J138: -2.2
B139: 96 | C139: =$D$43*B139+$E$43 -> 0.108 | D139: -0.2 | E139: 0.3 | F139: 4 | G139: 0.2 | H139: 0.292 | I139: 0% | J139: -2.2
B140: 97 | C140: =$D$43*B140+$E$43 -> 0.106 | D140: -0.2 | E140: 0.3 | F140: 3 | G140: 0.2 | H140: 0.294 | I140: 0% | J140: -2.2
B141: 98 | C141: =$D$43*B141+$E$43 -> 0.104 | D141: -0.2 | E141: 0.3 | F141: 2 | G141: 0.2 | H141: 0.296 | I141: 0% | J141: -2.2
B142: 99 | C142: =$D$43*B142+$E$43 -> 0.102 | D142: -0.2 | E142: 0.3 | F142: 1 | G142: 0.2 | H142: 0.298 | I142: 0% | J142: -2.2
B143: 100 | C143: =$D$43*B143+$E$43 -> 0.1 | D143: -0.2 | E143: 0.3 | F143: 0 | G143: 0.2 | H143: 0.3 | I143: 0% | J143: -2.2

Sheet FINAL_SCORE
C1: DURABILITY INDEX CALCULATION AND PRESENTATION OF THE PARAMETERS WHICH ALLOWED TO ESTABLISH IT | G1: Television
C4: This "FINAL_SCORE" tab in English is purely indicative. In order to meet regulatory obligations, only the "NOTE_FINALE" tab in French (see the next tab) is to be sent. Note: The results are automatically reported in the French tab.
C6: Date of calculation | E6: =PRODUCT_INFORMATION!D6 -> 2025-04-09
C7: Producer's or importer's name or trademark | E7: =PRODUCT_INFORMATION!D18 -> Sony France, succursale de Sony. Europe B.V.
C8: Producer or importer adress | E8: =PRODUCT_INFORMATION!D19 -> Located at 49/51, quai de Dion Bouton, 92800 Puteaux, France
C9: Producer's or importer's model identifier | E9: =PRODUCT_INFORMATION!D20 -> K-43S3
C14: Criteria | D14: Sub-criteria | G14: Score of subcriterion /10 | H14: Weighting factor of subcriterion | I14: Intermediate calculation
C19: CRITERION 1: RESISTANCE TO STRESS AND/OR WEAR | D19: 1.1 Resistance to external stress | G19: ='C1_RESISTANCE'!H13 -> 10 | H19: 0.05 | I19: =G19*H19+G20*H20 -> 3.425
B20: Reliability | D20: 1.2 Wear resistance | G20: ='C1_RESISTANCE'!H29 -> 6.5 | H20: 0.45
C21: CRITERION 2: MAINTENANCE AND SERVICING | D21: 2.1 Maintenance (including software) | G21: ='C2_MAINTENANCE_SERVICING'!H16 -> 10 | H21: 0.24 | I21: =G21*H21+G22*H22 -> 3.2
D22: 2.2 Servicing | G22: ='C2_MAINTENANCE_SERVICING'!L35 -> 5 | H22: 0.16
C23: CRITERION 3: GUARANTEE AND CONTINUOUS IMPROVEMENT | D23: 3.1 Commercial guarantee of durability | G23: ='C3_GUARANTEE'!H13 -> 0 | H23: 0.075 | I23: =G23*H23+G24*H24 -> 0.25
D24: 3.2 Implementation of a continuous improvement process | G24: ='C3_GUARANTEE'!H28 -> 10 | H24: 0.025
C25: Reliability grade out of 10 | I25: =SUM(I19:I24) -> 6.875
B26: Reparability | C26: CRITERION 4 : DOCUMENTATION | D26: 4.1 Commitment on the availability over time (without charge) of the technical documentation and the other documentation related to user and maintenance instructions | G26: ='C4_DOCUMENTATION'!I41 -> 10 | H26: 0.2 | I26: =G26*H26+G27*H27 -> 2.5
D27: 4.2 Consumer support for diagnosis and repair | G27: ='C4_DOCUMENTATION'!H65 -> 10 | H27: 0.05
C28: CRITERION 5 : DISASSEMBLY, ACCESSIBILITY, TOOLS, FASTENERS | D28: 5.1 Ease of disassembly parts from List 2* | G28: ='C5_DISASSEMBLY'!F26 -> 10 | H28: 0.13 | I28: =G28*H28+G29*H29+G30*H30 -> 2.472727273
D29: 5.2 Necessary tools (List 2) | G29: ='C5_DISASSEMBLY'!F47 -> 10 | H29: 0.06
D30: 5.3 Fasteners characteristics parts from List 1** and List 2 | G30: ='C5_DISASSEMBLY'!F79 -> 9.545454545 | H30: 0.06
C31: CRITERION 6 : AVAILABILITY OF SPARE PARTS | D31: 6.1 Availability over time parts from List 2 | G31: ='C6_AVAILABILITY_SP'!M30 -> 5 | H31: 0.13 | I31: =G31*H31+G32*H32+G33*H33+G34*H34 -> 1.314285714
D32: 6.2 Availability over time parts from List 1 | G32: ='C6_AVAILABILITY_SP'!M47 -> 5.714285714 | H32: 0.06
D33: 6.3 Delivery time parts from List 2 | G33: ='C6_AVAILABILITY_SP'!M62 -> 5 | H33: 0.03
D34: 6.4 Delivery time parts from List 1 | G34: ='C6_AVAILABILITY_SP'!M79 -> 5.714285714 | H34: 0.03
C35: CRITERION 7 : PRICE OF SPARE PARTS | D35: 7. Ratio between price of parts from list 2 to the price of the product | G35: ='C7_PRICE'!K27 -> 0 | H35: 0.25 | I35: =G35*H35 -> 0
C36: Reparability grade out of 10 | I36: =SUM(I26:I35) -> 6.287012987
C37: Index score out of 10 | I37: =(I25+I36)/2 -> 6.581006494

Sheet NOTE_FINALE
C1: CALCUL DE L'INDICE DE DURABILITÉ ET PRÉSENTATION DES PARAMÈTRES AYANT PERMIS DE L'ÉTABLIR | H1: Téléviseur
C4: FICHE D'INFORMATION À TRANSMETTRE AUX DEMANDEURS
C6: Date du calcul | E6: =PRODUCT_INFORMATION!D6 -> 2025-04-09
C7: Nom ou marque commerciale du fournisseur | E7: =PRODUCT_INFORMATION!D18 -> Sony France, succursale de Sony. Europe B.V.
C8: Adresse du fournisseur | E8: =PRODUCT_INFORMATION!D19 -> Located at 49/51, quai de Dion Bouton, 92800 Puteaux, France
C9: Référence du modèle donnée par le fournisseur | E9: =PRODUCT_INFORMATION!D20 -> K-43S3
C11: Critère | D11: Sous-critère | G11: Note du sous-critère sur 10 | H11: Coefficient du sous critère | I11: Calcul intermediaire
B16: Fiabilité | C16: CRITÈRE 1 : RÉSISTANCE AUX CONTRAINTES ET/OU À L'USURE | D16: SOUS-CRITÈRE 1.1 : RÉSISTANCE AUX CONTRAINTES EXTERIEUR | G16: ='C1_RESISTANCE'!H13 -> 10 | H16: 0.05 | I16: =G16*H16+G17*H17 -> 3.425
D17: SOUS-CRITÈRE 1.2 : RESSISTANCE A L'USURE | G17: ='C1_RESISTANCE'!H29 -> 6.5 | H17: 0.45
C18: CRITÈRE 2 : MAINTENANCE (Y COMPRIS LOGICIELLE) & ENTRETIEN | D18: SOUS-CRITÈRE 2.1 : MAINTENANCE (Y COMPRIS LOGICIELLE) | G18: ='C2_MAINTENANCE_SERVICING'!H16 -> 10 | H18: 0.24 | I18: =G18*H18+G19*H19 -> 3.2
D19: SOUS-CRITÈRE 2.2 : ENTRETIEN | G19: ='C2_MAINTENANCE_SERVICING'!L35 -> 5 | H19: 0.16
C20: CRITÈRE 3 : GARANTIE ET PROCESSUS QUALITE | D20: SOUS-CRITÈRE 3.1 : GARANTIE COMMERCIALE DE DURABILITÉ | G20: ='C3_GUARANTEE'!H13 -> 0 | H20: 0.075 | I20: =G20*H20+G21*H21 -> 0.25
D21: SOUS-CRITÈRE 3.2 : MISE EN PLACE D'UN PROCESSUS DE QUALITE | G21: ='C3_GUARANTEE'!H28 -> 10 | H21: 0.025
C22: Note du bloc fiabilité sur 10 | I22: =SUM(I16:I21) -> 6.875
B23: Réparabilité | C23: CRITÈRE 4 : DOCUMENTATION | D23: SOUS-CRITÈRE 4.1 : ENGAGEMENT SUR LA DURÉE DE MISE À DISPOSITION SANS FRAIS DE LA DOCUMENTATION TECHNIQUE ET RELATIVE AUX CONSEILS D'UTILISATION ET D'ENTRETIEN | G23: ='C4_DOCUMENTATION'!I41 -> 10 | H23: 0.2 | I23: =G23*H23+G24*H24 -> 2.5
D24: SOUS-CRITÈRE 4.2 : ACCOMPAGNEMENT DU CONSOMMATEUR POUR LE DIAGNOSTIC ET LA RÉPARATION | G24: ='C4_DOCUMENTATION'!H65 -> 10 | H24: 0.05
C25: CRITÈRE 5 : DÉMONTABILITÉ, ACCÈS, OUTILS, FIXATIONS | D25: SOUS-CRITÈRE 5.1 : FACILITÉ DE DÉMONTAGE DES PIÈCES DÉTACHÉES - PIÈCES PANNE/CASSE (LISTE 2) | G25: ='C5_DISASSEMBLY'!F26 -> 10 | H25: 0.13 | I25: =G25*H25+G26*H26+G27*H27 -> 2.472727273
D26: SOUS-CRITÈRE 5.2 : OUTILS NÉCESSAIRES AU DÉMONTAGE DES PIÈCES DÉTACHÉES - PIÈCES PANNE/CASSE (LISTE 2) | G26: ='C5_DISASSEMBLY'!F47 -> 10 | H26: 0.06
D27: SOUS-CRITÈRE 5.3 : CARACTÉRISTIQUES DES FIXATIONS POUR L'ASSEMBLAGE DES PIÈCES DES LISTES 1 ET 2 | G27: ='C5_DISASSEMBLY'!F79 -> 9.545454545 | H27: 0.06
C28: CRITÈRE 6 : DISPONIBILITÉ DES PIÈCES DÉTACHÉES | D28: SOUS-CRITÈRE 6.1 : ENGAGEMENT SUR LA DURÉE DE DISPONIBILITÉ DES PIÈCES DÉTACHÉES - PIÈCES PANNE / CASSE (LISTE 2) | G28: ='C6_AVAILABILITY_SP'!M30 -> 5 | H28: 0.13 | I28: =G28*H28+G29*H29+G30*H30+G31*H31 -> 1.314285714
D29: SOUS-CRITÈRE 6.2 : ENGAGEMENT SUR LA DURÉE DE DISPONIBILITÉ DES PIÈCES DÉTACHÉES - PIÈCES FONCTIONNELLES (LISTE 1) | G29: ='C6_AVAILABILITY_SP'!M47 -> 5.714285714 | H29: 0.06
D30: SOUS-CRITÈRE 6.3 : ENGAGEMENT SUR LES DÉLAIS DE LIVRAISON DES PIÈCES DÉTACHÉES - PIÈCES PANNE / CASSE (LISTE 2) | G30: ='C6_AVAILABILITY_SP'!M62 -> 5 | H30: 0.03
D31: SOUS-CRITÈRE 6.4 : ENGAGEMENT SUR LES DÉLAIS DE LIVRAISON DES PIÈCES DÉTACHÉES - PIÈCES FONCTIONNELLES (LISTE 1) | G31: ='C6_AVAILABILITY_SP'!M79 -> 5.714285714 | H31: 0.03
C32: CRITÈRE 7: PRIX | D32: SOUS-CRITÈRE 7.1 : PRIX | G32: ='C7_PRICE'!K27 -> 0 | H32: 0.25 | I32: =G32*H32 -> 0
C33: Note du bloc réparabilité sur 10 | I33: =SUM(I23:I32) -> 6.287012987
C34: Note de l'indice sur 10 | I34: =(I22+I33)/2 -> 6.581006494

Sheet ANNEX_1
B1: ANNEX 1 : TERMINOLOGY USED FOR THE REPARABILITY INDEX
B4: The definitions of the following terms are specified in the decree relating to the repairability index for electrical and electronic equipment:
B5: "Making available onthe market", "Placing on the market", "producer", "importer", "distributor", "Seller", "distance selling", "model".
B7: Authorized repairer | C7: The authorized repairer is often referred to as a technical station or authorized service center. It is a professional repairer for whom one or more contracts precisely define the relationship between the authorized repairer and the producer(s). | D7: Based on the technical expertise of the repairability index working groups
B8: Independent repairer | C8: Independent repairers are repairers in the sense of "professional craftsmen repairers" designating repair companies listed in the trade directory with an APE or NAFA code. They are professional repairers who do not fall into the category of authorized repairers. For example, 95.11 Z-Z: Repair of computers and peripheral equipment; 95.21 Z-Z: Repair of televisions, radio receivers, VCRs, CD and DVD players, camcorders for domestic use; 95.22 Z-Z: Repair of household appliances and home and garden equipment.
B9: Professional repairer | C9: Authorized repairer or independent repairer.
B10: Distributor of spare parts | C10: Any moral or physica person in the supply chain, other than the producer or importer, who offers a spare part for sale. They are commonly referred to as "spare parts wholesalers". | D10: According to Standard NF EN 45554 "General methods for the evaluation of the repair, reuse and improvement capacity of energy-related products", 2020.
B11: Disassembly | C11: The process by which a product, spare part or fastener is disassembled so that it can then be reassembled and made operational.
B12: Reassembly | C12: The process by which a product, a spare part or a fastener is reassembled so as to fulfill its functional role and be made operational.
B13: Reuse / Reusable | C13: The process by which a product, spare part or fastener, having reached the end of its first use, is used for the same purpose for which it was designed. Reuse after a second or subsequent use(s) is also considered to be reuse.
B14: Factory Restoration | C14: A specific functionality or setting to be activated by the customer, if the product allows it, to restore the default value of a specific functionality of the device as set at the factory and available when the customer first uses the product. | D14: Inspired by the Commission regulation (EU) 2019/2021
B15: Update / Upgrade | C15: The process of improving the functionality, performance, capacity or aesthetics of a product. This process may involve changes to the software, firmware and/or a hardware component of the product. | D15: According to Standard NF EN 45554 "General methods for the evaluation of the repair, reuse and improvement capacity of energy-related products", 2020.
B16: Corrective update | C16: An update performed after a failure has been detected and intended to restore an asset or software to a state in which it can perform a required function. This type of update corrects hardware or software malfunctions or non-conformity but does not add new functionality. | D16: Inspired by the AFNOR NF EN 13306 X 60-319 standard of June 2011 "All the technical, administrative and management actions during the life cycle of an asset, intended to maintain or restore it to a state in which it can perform the required function "
B17: Evolutionary update | C17: Upgrading, which consists of gradually modifying the software application by adding new features or additional modules, or by replacing an existing function with another, or even by proposing a different approach.
B18: Fastener | C18: A hardware device that mechanically or magnetically connects or fixes two or more objects, parts or pieces. A fastener is generally non-permanent, i.e., it can be easily removed or disassembled without damaging the objects, parts or pieces connected or fixed together (e.g., screws or clips). Welds and some glues are in contrast to permanent fixings. Adhesives are considered non-reusable fasteners unless new ones are supplied with the spare part. | D18: Inspired by, "Fasteners - Their Needs and Types", Bright Hub Engineering, 2020.
B19: Reusable fastener | C19: See the definition of "reusable". | D19: According to Standard NF EN 45554 "General methods for the evaluation of the repair, reuse and improvement capacity of energy-related products", 2020.
B20: Removable fastener | C20: An original fastener system that can be completely removed (without causing damage or leaving residue).
B21: Proprietary tool | C21: A tool that is not commercially available and is owned exclusively by one party or company, and under which its use by another party (an end user or customer) involves copyright, license and/or cost. | D21: Inspired by Will Kenton, "Proprietary Technology", 2019.
B22: Part / Spare parts | C22: A unitary element in the composition of the equipment.
B25: VOCABULAIRE EUROPEEN
B27: Eco-conception des Televisions | C27: Ecodesign of Televisions
B28: RÈGLEMENT (UE) 2019/2023 DE LA COMMISSION du 1er octobre 2019 établissant des exigences en matière d’écoconception applicables aux Television ménagers et aux Television séchants ménagers conformément à la directive 2009/125/CE du Parlement européen et du Conseil, modifiant le règlement (CE) no 1275/2008 de la Commission et abrogeant le règlement (UE) no 1015/2010 de la Commission. | C28: COMMISSION REGULATION (EU) 2019/2021 Of 1 October 2019 laying down ecodesign requirements for electronic displays pursuant to Directive 2009/125/EC of the European Parliament and of the Council, amending Commission Regulation (EC) No 1275/2008 and repealing Commission Regulation (EC) No 642/2009
B30: Liste des informations à fournir (documentation)
B32: → Les informations de réparation et d’entretien du Television ménager ou du Television séchant ménager mentionnées au point a) comprennent : | C32: → the household Television or household washer-dryer repair and maintenance information referred to in (a) shall include :
B34: une identification sans équivoque du Television ménager ou du Television séchant ménager | C34: the unequivocal household Television or household washer-dryer identification
B35: un schéma de démontage ou une vue éclatée | C35: a disassembly map or exploded view
B36: un manuel technique d’instructions relatives à la réparation | C36: technical manual of instructions for repair
B37: une liste du matériel de réparation et de test nécessaire | C37: list of necessary repair and test equipment
B38: les informations concernant les composants et le diagnosis (telles que les valeurs théoriques minimales et maximales pour les mesures) | C38: component and diagnosis information (such as minimum and maximum theoretical values for measurements)
B39: des schémas de câblage et de raccordement | C39: wiring and connection diagrams
B40: les codes d’erreur et de diagnosis (y compris les codes spécifiques au fabricant, le cas échéant) | C40: diagnosis fault and error codes (including manufacturer-specific codes, where applicable)
B41: les instructions pour l’installation des logiciels et micrologiciels pertinents, y compris les logiciels de réinitialisation | C41: instructions for installation of relevant software and firmware including reset software
B42: les informations sur les modalités d’accès aux données relatives aux incidents de défaillance signalés enregistrées dans le Television ménager ou le Television séchant ménager (le cas échéant) | C42: information on how to access data records of reported failure incidents stored on the household Television or washer-dryer (where applicable)
B44: Liste des pièces détachées à mettre à disposition
B46: Moteur et balais de moteur | C46: Motor and motor brushes
B47: Transmission entre moteur et tambour | C47: Transmission between motor and drum
B48: Pompes | C48: Pumps
B49: Amortisseurs et ressorts | C49: Shock absorbers and springs
B50: Tambour de lavage, croisillon de tambour et roulements correspondants (séparément ou en lot) | C50: Washing drum, drum spider and related ball bearings (separately or bundled)
B51: Générateurs de chaleurs et éléments chauffants, y compris les pompes à chaleur, (séparément ou groupés) | C51: Heaters and heating elements, including heat pumps (separately or bundled)
B52: Conduites et matériel connexe y compris l’ensemble des flexibles, vannes, filtres et systèmes aquastop (séparé­ment ou groupés) | C52: Piping and related equipment including all hoses, valves, filters and aquastops (separately or bundled)
B53: Cartes de circuit imprimé | C53: Printed circuit boards
B54: Affichages électroniques | C54: Electronic displays
B55: Manocontacts | C55: Pressure switches
B56: Thermostats et capteurs | C56: Thermostats and sensors
B57: Logiciels et micrologiciels, y compris logiciels de réinitialisation | C57: Software and firmware including reset software
B58: Portes | C58: Door
B59: Charnières et joints de porte | C59: Door hinge and seals
B60: Autres joints | C60: Other seals
B61: Assemblage de verrouillage de la porte | C61: Door locking assembly
B62: Accessoires en matière plastique tels que distributeurs de détergent | C62: Plastic peripherals such as detergent dispensers
B65: Eco-conception des dispositifs d’affichage | C65: Ecodesign of electronic displays
B66: REGLEMENT (UE) 2019/2021 DE LA COMMISSION du 1er octobre 2019 fixant les exigences en matière d’écoconception pour les dispositifs d’affichage électronique conformément à la directive 2019/125/CE du Parlement européen et du Conseil modifiant le règlement (CE) n°642/2009 de la Commission. | C66: COMMISSION REGULATION (EU) 2019/2021 of 1 October 2019 laying down ecodesign requirements for electronic displays pursuant to Directive 2009/125/EC of the European Parliament and of the Council, amending Commission Regulation (EC) No 1275/2008 and repealing Commission Regulation (EC) No 642/2009
B68: Liste des informations à fournir (documentation) - List of required informations for the consumer
B70: → Les informations disponibles sur la réparation et la maintenance comprennent : | C70: → The available repair and maintenance information shall include:
B72: une identification sans équivoque du Television ménager ou du Television séchant ménager | C72: the unequivocal appliance identification
B73: un schéma de démontage ou une vue éclatée | C73: a disassembly map or exploded view
B74: une liste du matériel de réparation et de test nécessaire | C74: list of necessary repair and test equipment
B75: les informations concernant les composants et le diagnosis (telles que les valeurs théoriques minimales et maximales pour les mesures) | C75: component and diagnosis information (such as minimum and maximum theoretical values for measurements)
B76: des schémas de câblage et de raccordement | C76: wiring and connection diagrams
B77: les codes d’erreur et de diagnosis (y compris les codes spécifiques au fabricant, le cas échéant) | C77: diagnosis fault and error codes (including manufacturer-specific codes, where applicable)
B78: les informations sur les modalités d’accès aux données relatives aux incidents de défaillance signalés enregistrées dans le Television ménager ou le Television séchant ménager (le cas échéant) | C78: information on how to access data records of reported failure incidents stored on the household Television or washer-dryer (where applicable)
B80: Liste des pièces détachées à mettre à disposition – List of spare parts to be made available
B82: Les sources d’alimentation internes | C82: Internal power supply
B83: Les sources d’alimentation externes | C83: External power supply
B84: Les connecteurs pour connecter les équipements externes (câble, antenne, USB, DVD et Blue-Ray) | C84: Connectors to connect external equipment (cable, antenna, usb, dvd and blue-ray)
B85: Les condensateurs | C85: Capacitors
B86: Les piles et accumulateurs | C86: Batteries and accumulators
B87: Les modules DVD/Blue-Ray le cas échéant | C87: DVD/Blue-Ray module
B88: Les modules HD/SSD | C88: HD/SSD module
B89: La télécommande | C89: Remote control

Sheet ANNEX_2
B1: ANNEX 2 : BASIC TOOLS AND THEIR REFERENCE STANDARDS
B3: According to the European Standard NF EN 45554 "General methods for the assessment of the ability to repair, reuse and upgrade energy-related products", 2020.
B6: Tool type | C6: Illustration | D6: Reference
C7: (informative example)
B8: Screwdriver for slotted heads, cross recess or for hexalobular recess heads | D8: ISO 2380, ISO 8764, ISO 10664
B9: Hexagon socket key | D9: ISO 2936
B10: Combination wrench | D10: ISO 7738
B11: Combination pliers | D11: ISO 5746
B12: Half round nose pliers | D12: ISO 5745
B13: Diagonal cutters | D13: ISO 5749
B14: Multigrip pliers (multiple slip joint pliers) | D14: ISO 8976
B15: Locking pliers
B16: Combination pliers for wire stripping and terminal crimping
B17: Prying lever
B18: Tweezers
B19: Hammer, steel head | D19: ISO 15601
B20: Utility knife (cutter) with snap-off blades
B21: Multimeter
B22: Voltage tester
B23: Soldering iron
B24: Hot glue gun
B25: Magnifying glass

Sheet ANNEX_3
B1: ANNEX 3 : DETAILS ABOUT THE CONCEPT OF DISASSEMBLY STEP AND APPLICATION CASE
